Workbook

Sheet MainDisplay
M1: =CEILING(Sheet3!N6,0.05) -> 342.9 | N1: =FLOOR(Sheet3!N7,0.05) -> 307.3
F2: CQG NASDAQ 100 Index® Performance | U2: =RTD("cqg.rtd", ,"SystemInfo", "Linetime") -> 44350.37639
L4: Symbol: | M4: QQQ | N4: Period: | O4: D | P4: Last Trade | S4: Bid | U4: Ask
L5: Open | M5: High | N5: Low | P5: =RTD("cqg.rtd", ,"ContractData",M4, "LastTrade",,"T") -> 329.34 | R5: =RTD("cqg.rtd", ,"ContractData", M4, "MT_LastBidVolume",, "T") -> 100 | S5: =RTD("cqg.rtd", ,"ContractData",M4, "Bid",, "T") -> 329.34 | U5: =RTD("cqg.rtd", ,"ContractData",M4, "Ask",, "T") -> 329.35 | W5: =RTD("cqg.rtd", ,"ContractData", M4, "MT_LastAskVolume",, "T") -> 300
B6: Bin | L6: =RTD("cqg.rtd", ,"ContractData",M4, "Open",,"T") -> 330.55 | M6: =RTD("cqg.rtd", ,"ContractData",M4, "High",,"T") -> 330.89 | N6: =RTD("cqg.rtd", ,"ContractData",M4, "Low",,"T") -> 328.28
B45: Copyright © 2021, CQG Inc. | F45: Designed by Thom Hartle

Sheet Sheet1 (hidden)
A1: =H1 -> 37 | B1: S.US.AAPL | C1: =RTD("cqg.rtd", ,"ContractData",B1, "LongDescription",, "T") -> Apple Inc | D1: =RTD("cqg.rtd",,"StudyData",B1, "Bar", "", "High","A","0",,,,,"T") -> 145.09 | E1: =RTD("cqg.rtd",,"StudyData",B1, "Bar", "", "Close","D","0",,,,,"T") -> 123.57 | F1: =(D1-E1)/E1 -> 0.1741523023 | H1: =RANK($F1,$F$1:F$102)+COUNTIF($F$1:F1,F1)-1 -> 37 | I1: =B1 -> S.US.AAPL | J1: 102 | K1: =VLOOKUP(J1,$A$1:$H$102,2,FALSE) -> S.US.MRNA | L1: =VLOOKUP(J1,$A$1:$H$102,6,FALSE) -> 0.005116014676 | M1: 1 | N1: =L1 -> 0.005116014676 | O1: =FREQUENCY(N1:N102,M1:M21) -> 0 | P1: =IFERROR(O1,"") -> 0 | Q1: =RTD("cqg.rtd",,"StudyData",B1, "Bar", "", "High","A","0",,,,,"T") -> 145.09 | R1: =RTD("cqg.rtd",,"StudyData",B1, "Bar", "", "Close","D","0",,,,,"T") -> 123.57 | S1: =RIGHT(B1,LEN(B1)-5) -> AAPL | V1: 1 | X1: =IFERROR(IF(O1=0,"",O1),"") ->  | AB1: =B1 -> S.US.AAPL | AC1: =RTD("cqg.rtd",,"StudyData",AB1, "Bar", "", "Low","A","0",,,,,"T") -> 116.21 | AD1: =RTD("cqg.rtd",,"StudyData",AB1, "Bar", "", "Close","D","0",,,,,"T") -> 123.57 | AE1: =(AC1-AD1)/AD1 -> -0.05956138221
A2: =H2 -> 63 | B2: S.US.ADBE | C2: =RTD("cqg.rtd", ,"ContractData",B2, "LongDescription",, "T") -> Adobe Inc. | D2: =RTD("cqg.rtd",,"StudyData",B2, "Bar", "", "High","A","0",,,,,"T") -> 525.44 | E2: =RTD("cqg.rtd",,"StudyData",B2, "Bar", "", "Close","D","0",,,,,"T") -> 489.49 | F2: =(D2-E2)/E2 -> 0.07344378843 | H2: =RANK($F2,$F$1:F$102)+COUNTIF($F$1:F2,F2)-1 -> 63 | I2: =B2 -> S.US.ADBE | J2: =J1-1 -> 101 | K2: =VLOOKUP(J2,$A$1:$H$102,2,FALSE) -> S.US.NVDA | L2: =VLOOKUP(J2,$A$1:$H$102,6,FALSE) -> 0.007443245255 | M2: =M1-0.05 -> 0.95 | N2: =L2 -> 0.007443245255 | O2: 0 | P2: =IFERROR(O2,"") -> 0 | Q2: =Q1-R1 -> 21.52 | S2: =RIGHT(B2,LEN(B2)-5) -> ADBE | V2: 0.95 | W2: =TEXT(V2,"0%")&"<"&TEXT(V1,"0%") -> 95%<100% | X2: =IFERROR(IF(O2=0,"",O2),"") ->  | AB2: =B2 -> S.US.ADBE | AC2: =RTD("cqg.rtd",,"StudyData",AB2, "Bar", "", "Low","A","0",,,,,"T") -> 420.78 | AD2: =RTD("cqg.rtd",,"StudyData",AB2, "Bar", "", "Close","D","0",,,,,"T") -> 489.49 | AE2: =(AC2-AD2)/AD2 -> -0.1403705898
A3: 87 | B3: S.US.ADI | C3: =RTD("cqg.rtd", ,"ContractData",B3, "LongDescription",, "T") -> Analog Devices Inc | D3: =RTD("cqg.rtd",,"StudyData",B3, "Bar", "", "High","A","0",,,,,"T") -> 166.32 | E3: =RTD("cqg.rtd",,"StudyData",B3, "Bar", "", "Close","D","0",,,,,"T") -> 161.21 | F3: 0.0316977855 | H3: =RANK($F3,$F$1:F$102)+COUNTIF($F$1:F3,F3)-1 -> 87 | I3: =B3 -> S.US.ADI | J3: =J2-1 -> 100 | K3: S.US.MDLZ | L3: 0.007712891547 | M3: =M2-0.05 -> 0.9 | N3: 0.007712891547 | O3: 0 | P3: 0 | Q3: =Q2/R1 -> 0.1741523023 | S3: ADI | V3: 0.9 | W3: 90%<95% | AB3: S.US.ADI | AC3: =RTD("cqg.rtd",,"StudyData",AB3, "Bar", "", "Low","A","0",,,,,"T") -> 142.25 | AD3: =RTD("cqg.rtd",,"StudyData",AB3, "Bar", "", "Close","D","0",,,,,"T") -> 161.21 | AE3: -0.1176105701
A4: 95 | B4: S.US.ADP | C4: =RTD("cqg.rtd", ,"ContractData",B4, "LongDescription",, "T") -> Auto Data Processing Inc | D4: =RTD("cqg.rtd",,"StudyData",B4, "Bar", "", "High","A","0",,,,,"T") -> 199.52 | E4: =RTD("cqg.rtd",,"StudyData",B4, "Bar", "", "Close","D","0",,,,,"T") -> 195.93 | F4: 0.01832287041 | H4: =RANK($F4,$F$1:F$102)+COUNTIF($F$1:F4,F4)-1 -> 95 | I4: S.US.ADP | J4: 99 | K4: S.US.KDP | L4: 0.009795918367 | M4: 0.85 | N4: 0.009795918367 | O4: 1 | P4: 1 | S4: ADP | V4: 0.85 | W4: 85%<90% | X4: 1 | AB4: S.US.ADP | AC4: =RTD("cqg.rtd",,"StudyData",AB4, "Bar", "", "Low","A","0",,,,,"T") -> 159.35 | AD4: =RTD("cqg.rtd",,"StudyData",AB4, "Bar", "", "Close","D","0",,,,,"T") -> 195.93 | AE4: -0.1866993314
A5: 36 | B5: S.US.ADSK | C5: =RTD("cqg.rtd", ,"ContractData",B5, "LongDescription",, "T") -> Autodesk Inc | D5: =RTD("cqg.rtd",,"StudyData",B5, "Bar", "", "High","A","0",,,,,"T") -> 321.13 | E5: =RTD("cqg.rtd",,"StudyData",B5, "Bar", "", "Close","D","0",,,,,"T") -> 273.37 | F5: 0.1747082708 | H5: =RANK($F5,$F$1:F$102)+COUNTIF($F$1:F5,F5)-1 -> 36 | I5: S.US.ADSK | J5: 98 | K5: S.US.INTU | L5: 0.01149321267 | M5: 0.8 | N5: 0.01149321267 | O5: 0 | P5: 0 | Q5: =RTD("cqg.rtd",,"StudyData",B1, "Bar", "", "Low","A","0",,,,,"T") -> 116.21 | S5: ADSK | V5: 0.8 | W5: 80%<85% | AB5: S.US.ADSK | AC5: =RTD("cqg.rtd",,"StudyData",AB5, "Bar", "", "Low","A","0",,,,,"T") -> 252.6 | AD5: =RTD("cqg.rtd",,"StudyData",AB5, "Bar", "", "Close","D","0",,,,,"T") -> 273.37 | AE5: -0.07597761276
A6: 71 | B6: S.US.AEP | C6: =RTD("cqg.rtd", ,"ContractData",B6, "LongDescription",, "T") -> American Electric Power Company, Inc. | D6: =RTD("cqg.rtd",,"StudyData",B6, "Bar", "", "High","A","0",,,,,"T") -> 90.62 | E6: =RTD("cqg.rtd",,"StudyData",B6, "Bar", "", "Close","D","0",,,,,"T") -> 85.39 | F6: 0.06124838974 | H6: =RANK($F6,$F$1:F$102)+COUNTIF($F$1:F6,F6)-1 -> 71 | I6: S.US.AEP | J6: 97 | K6: S.US.PEP | L6: 0.01361933946 | M6: 0.75 | N6: 0.01361933946 | O6: 0 | P6: 0 | Q6: =Q5-R1 -> -7.36 | S6: AEP | V6: 0.75 | W6: 75%<80% | AB6: S.US.AEP | AC6: =RTD("cqg.rtd",,"StudyData",AB6, "Bar", "", "Low","A","0",,,,,"T") -> 74.8 | AD6: =RTD("cqg.rtd",,"StudyData",AB6, "Bar", "", "Close","D","0",,,,,"T") -> 85.39 | AE6: -0.124019206
A7: 46 | B7: S.US.ALGN | C7: =RTD("cqg.rtd", ,"ContractData",B7, "LongDescription",, "T") -> Align Technology Inc | D7: =RTD("cqg.rtd",,"StudyData",B7, "Bar", "", "High","A","0",,,,,"T") -> 647.2 | E7: =RTD("cqg.rtd",,"StudyData",B7, "Bar", "", "Close","D","0",,,,,"T") -> 568.65 | F7: 0.1381341774 | H7: =RANK($F7,$F$1:F$102)+COUNTIF($F$1:F7,F7)-1 -> 46 | I7: S.US.ALGN | J7: 96 | K7: S.US.PAYX | L7: 0.01503610644 | M7: 0.7 | N7: 0.01503610644 | O7: 0 | P7: 0 | Q7: =Q6/R1 -> -0.05956138221 | S7: ALGN | V7: 0.7 | W7: 70%<75% | AB7: S.US.ALGN | AC7: =RTD("cqg.rtd",,"StudyData",AB7, "Bar", "", "Low","A","0",,,,,"T") -> 494.45 | AD7: =RTD("cqg.rtd",,"StudyData",AB7, "Bar", "", "Close","D","0",,,,,"T") -> 568.65 | AE7: -0.1304844808
A8: 92 | B8: S.US.ALXN | C8: =RTD("cqg.rtd", ,"ContractData",B8, "LongDescription",, "T") -> Alexion Pharmaceuticals | D8: =RTD("cqg.rtd",,"StudyData",B8, "Bar", "", "High","A","0",,,,,"T") -> 179.12 | E8: =RTD("cqg.rtd",,"StudyData",B8, "Bar", "", "Close","D","0",,,,,"T") -> 175.1 | F8: 0.02295830954 | H8: =RANK($F8,$F$1:F$102)+COUNTIF($F$1:F8,F8)-1 -> 92 | I8: S.US.ALXN | J8: 95 | K8: S.US.ADP | L8: 0.01832287041 | M8: 0.65 | N8: 0.01832287041 | O8: 2 | P8: 2 | S8: ALXN | V8: 0.65 | W8: 65%<70% | X8: 2 | AB8: S.US.ALXN | AC8: =RTD("cqg.rtd",,"StudyData",AB8, "Bar", "", "Low","A","0",,,,,"T") -> 146.97 | AD8: =RTD("cqg.rtd",,"StudyData",AB8, "Bar", "", "Close","D","0",,,,,"T") -> 175.1 | AE8: -0.1606510565
A9: 60 | B9: S.US.AMAT | C9: =RTD("cqg.rtd", ,"ContractData",B9, "LongDescription",, "T") -> Applied Materials Inc | D9: =RTD("cqg.rtd",,"StudyData",B9, "Bar", "", "High","A","0",,,,,"T") -> 146 | E9: =RTD("cqg.rtd",,"StudyData",B9, "Bar", "", "Close","D","0",,,,,"T") -> 135.72 | F9: 0.07574417919 | H9: =RANK($F9,$F$1:F$102)+COUNTIF($F$1:F9,F9)-1 -> 60 | I9: S.US.AMAT | J9: 94 | K9: S.US.TMUS | L9: 0.0184341637 | M9: 0.6 | N9: 0.0184341637 | O9: 1 | P9: 1 | S9: AMAT | V9: 0.6 | W9: 60%<65% | X9: 1 | AB9: S.US.AMAT | AC9: =RTD("cqg.rtd",,"StudyData",AB9, "Bar", "", "Low","A","0",,,,,"T") -> 86.15 | AD9: =RTD("cqg.rtd",,"StudyData",AB9, "Bar", "", "Close","D","0",,,,,"T") -> 135.72 | AE9: -0.3652372532
A10: 20 | B10: S.US.AMD | C10: =RTD("cqg.rtd", ,"ContractData",B10, "LongDescription",, "T") -> Advanced Micro Devices | D10: =RTD("cqg.rtd",,"StudyData",B10, "Bar", "", "High","A","0",,,,,"T") -> 99.23 | E10: =RTD("cqg.rtd",,"StudyData",B10, "Bar", "", "Close","D","0",,,,,"T") -> 80.84 | F10: 0.2274863929 | H10: =RANK($F10,$F$1:F$102)+COUNTIF($F$1:F10,F10)-1 -> 20 | I10: S.US.AMD | J10: 93 | K10: S.US.COST | L10: 0.0225005251 | M10: 0.55 | N10: 0.0225005251 | O10: 2 | P10: 2 | S10: AMD | V10: 0.55 | W10: 55%<60% | X10: 2 | AB10: S.US.AMD | AC10: =RTD("cqg.rtd",,"StudyData",AB10, "Bar", "", "Low","A","0",,,,,"T") -> 72.5 | AD10: =RTD("cqg.rtd",,"StudyData",AB10, "Bar", "", "Close","D","0",,,,,"T") -> 80.84 | AE10: -0.1031667491
A11: 34 | B11: S.US.AMGN | C11: =RTD("cqg.rtd", ,"ContractData",B11, "LongDescription",, "T") -> Amgen Inc | D11: =RTD("cqg.rtd",,"StudyData",B11, "Bar", "", "High","A","0",,,,,"T") -> 276.69 | E11: =RTD("cqg.rtd",,"StudyData",B11, "Bar", "", "Close","D","0",,,,,"T") -> 235.11 | F11: 0.1768533878 | H11: =RANK($F11,$F$1:F$102)+COUNTIF($F$1:F11,F11)-1 -> 34 | I11: S.US.AMGN | J11: 92 | K11: S.US.ALXN | L11: 0.02295830954 | M11: 0.5 | N11: 0.02295830954 | O11: 0 | P11: 0 | S11: AMGN | V11: 0.5 | W11: 50%<55% | AB11: S.US.AMGN | AC11: =RTD("cqg.rtd",,"StudyData",AB11, "Bar", "", "Low","A","0",,,,,"T") -> 220.25 | AD11: =RTD("cqg.rtd",,"StudyData",AB11, "Bar", "", "Close","D","0",,,,,"T") -> 235.11 | AE11: -0.06320445749
A12: 52 | B12: S.US.AMZN | C12: =RTD("cqg.rtd", ,"ContractData",B12, "LongDescription",, "T") -> Amazon.com Inc | D12: =RTD("cqg.rtd",,"StudyData",B12, "Bar", "", "High","A","0",,,,,"T") -> 3554 | E12: =RTD("cqg.rtd",,"StudyData",B12, "Bar", "", "Close","D","0",,,,,"T") -> 3199 | F12: 0.1109721788 | H12: =RANK($F12,$F$1:F$102)+COUNTIF($F$1:F12,F12)-1 -> 52 | I12: S.US.AMZN | J12: 91 | K12: S.US.KHC | L12: 0.02298588985 | M12: 0.45 | N12: 0.02298588985 | O12: 3 | P12: 3 | S12: AMZN | V12: 0.45 | W12: 45%<50% | X12: 3 | AB12: S.US.AMZN | AC12: =RTD("cqg.rtd",,"StudyData",AB12, "Bar", "", "Low","A","0",,,,,"T") -> 2881 | AD12: =RTD("cqg.rtd",,"StudyData",AB12, "Bar", "", "Close","D","0",,,,,"T") -> 3199 | AE12: -0.0994060644
A13: 17 | B13: S.US.ANSS | C13: =RTD("cqg.rtd", ,"ContractData",B13, "LongDescription",, "T") -> ANSYS Inc | D13: =RTD("cqg.rtd",,"StudyData",B13, "Bar", "", "High","A","0",,,,,"T") -> 413.19 | E13: =RTD("cqg.rtd",,"StudyData",B13, "Bar", "", "Close","D","0",,,,,"T") -> 328.71 | F13: 0.2570046546 | H13: =RANK($F13,$F$1:F$102)+COUNTIF($F$1:F13,F13)-1 -> 17 | I13: S.US.ANSS | J13: 90 | K13: S.US.FB | L13: 0.02461935167 | M13: 0.4 | N13: 0.02461935167 | O13: 3 | P13: 3 | S13: ANSS | V13: 0.4 | W13: 40%<45% | X13: 3 | AB13: S.US.ANSS | AC13: =RTD("cqg.rtd",,"StudyData",AB13, "Bar", "", "Low","A","0",,,,,"T") -> 292.79 | AD13: =RTD("cqg.rtd",,"StudyData",AB13, "Bar", "", "Close","D","0",,,,,"T") -> 328.71 | AE13: -0.1092756533
A14: 85 | B14: S.US.ASML | C14: =RTD("cqg.rtd", ,"ContractData",B14, "LongDescription",, "T") -> ASML Holding NV NY Reg Shs | D14: =RTD("cqg.rtd",,"StudyData",B14, "Bar", "", "High","A","0",,,,,"T") -> 688.09 | E14: =RTD("cqg.rtd",,"StudyData",B14, "Bar", "", "Close","D","0",,,,,"T") -> 662.66 | F14: 0.03837563758 | H14: =RANK($F14,$F$1:F$102)+COUNTIF($F$1:F14,F14)-1 -> 85 | I14: S.US.ASML | J14: 89 | K14: S.US.CSCO | L14: 0.02479651713 | M14: 0.35 | N14: 0.02479651713 | O14: 0 | P14: 0 | S14: ASML | V14: 0.35 | W14: 35%<40% | AB14: S.US.ASML | AC14: =RTD("cqg.rtd",,"StudyData",AB14, "Bar", "", "Low","A","0",,,,,"T") -> 489.74 | AD14: =RTD("cqg.rtd",,"StudyData",AB14, "Bar", "", "Close","D","0",,,,,"T") -> 662.66 | AE14: -0.2609482993
A15: 55 | B15: S.US.ATVI | C15: =RTD("cqg.rtd", ,"ContractData",B15, "LongDescription",, "T") -> Activision Blizzard Inc | D15: =RTD("cqg.rtd",,"StudyData",B15, "Bar", "", "High","A","0",,,,,"T") -> 104.53 | E15: =RTD("cqg.rtd",,"StudyData",B15, "Bar", "", "Close","D","0",,,,,"T") -> 94.54 | F15: 0.1056695579 | H15: =RANK($F15,$F$1:F$102)+COUNTIF($F$1:F15,F15)-1 -> 55 | I15: S.US.ATVI | J15: 88 | K15: S.US.GOOG | L15: 0.02556843131 | M15: 0.3 | N15: 0.02556843131 | O15: 5 | P15: 5 | S15: ATVI | V15: 0.3 | W15: 30%<35% | X15: 5 | AB15: S.US.ATVI | AC15: =RTD("cqg.rtd",,"StudyData",AB15, "Bar", "", "Low","A","0",,,,,"T") -> 87.44 | AD15: =RTD("cqg.rtd",,"StudyData",AB15, "Bar", "", "Close","D","0",,,,,"T") -> 94.54 | AE15: -0.07510048657
A16: 66 | B16: S.US.AVGO | C16: =RTD("cqg.rtd", ,"ContractData",B16, "LongDescription",, "T") -> Broadcom Inc. | D16: =RTD("cqg.rtd",,"StudyData",B16, "Bar", "", "High","A","0",,,,,"T") -> 495.14 | E16: =RTD("cqg.rtd",,"StudyData",B16, "Bar", "", "Close","D","0",,,,,"T") -> 464.36 | F16: 0.06628477905 | H16: =RANK($F16,$F$1:F$102)+COUNTIF($F$1:F16,F16)-1 -> 66 | I16: S.US.AVGO | J16: 87 | K16: S.US.ADI | L16: 0.0316977855 | M16: 0.25 | N16: 0.0316977855 | O16: 12 | P16: 12 | S16: AVGO | V16: 0.25 | W16: 25%<30% | X16: 12 | AB16: S.US.AVGO | AC16: =RTD("cqg.rtd",,"StudyData",AB16, "Bar", "", "Low","A","0",,,,,"T") -> 419.14 | AD16: =RTD("cqg.rtd",,"StudyData",AB16, "Bar", "", "Close","D","0",,,,,"T") -> 464.36 | AE16: -0.09738134206
A17: 1 | B17: S.US.BIDU | C17: =RTD("cqg.rtd", ,"ContractData",B17, "LongDescription",, "T") -> Baidu Inc | D17: =RTD("cqg.rtd",,"StudyData",B17, "Bar", "", "High","A","0",,,,,"T") -> 354.82 | E17: =RTD("cqg.rtd",,"StudyData",B17, "Bar", "", "Close","D","0",,,,,"T") -> 191.96 | F17: 0.8484059179 | H17: =RANK($F17,$F$1:F$102)+COUNTIF($F$1:F17,F17)-1 -> 1 | I17: S.US.BIDU | J17: 86 | K17: S.US.MXIM | L17: 0.03229689067 | M17: 0.2 | N17: 0.03229689067 | O17: 15 | P17: 15 | S17: BIDU | V17: 0.2 | W17: 20%<25% | X17: 15 | AB17: S.US.BIDU | AC17: =RTD("cqg.rtd",,"StudyData",AB17, "Bar", "", "Low","A","0",,,,,"T") -> 174.05 | AD17: =RTD("cqg.rtd",,"StudyData",AB17, "Bar", "", "Close","D","0",,,,,"T") -> 191.96 | AE17: -0.09330068764
A18: 54 | B18: S.US.BIIB | C18: =RTD("cqg.rtd", ,"ContractData",B18, "LongDescription",, "T") -> Biogen Inc. | D18: =RTD("cqg.rtd",,"StudyData",B18, "Bar", "", "High","A","0",,,,,"T") -> 296.38 | E18: =RTD("cqg.rtd",,"StudyData",B18, "Bar", "", "Close","D","0",,,,,"T") -> 267.5 | F18: 0.1079626168 | H18: =RANK($F18,$F$1:F$102)+COUNTIF($F$1:F18,F18)-1 -> 54 | I18: S.US.BIIB | J18: 85 | K18: S.US.ASML | L18: 0.03837563758 | M18: 0.15 | N18: 0.03837563758 | O18: 13 | P18: 13 | S18: BIIB | V18: 0.15 | W18: 15%<20% | X18: 13 | AB18: S.US.BIIB | AC18: =RTD("cqg.rtd",,"StudyData",AB18, "Bar", "", "Low","A","0",,,,,"T") -> 238.4 | AD18: =RTD("cqg.rtd",,"StudyData",AB18, "Bar", "", "Close","D","0",,,,,"T") -> 267.5 | AE18: -0.1087850467
A19: 53 | B19: S.US.BKNG | C19: =RTD("cqg.rtd", ,"ContractData",B19, "LongDescription",, "T") -> Booking Holdings Inc. | D19: =RTD("cqg.rtd",,"StudyData",B19, "Bar", "", "High","A","0",,,,,"T") -> 2516 | E19: =RTD("cqg.rtd",,"StudyData",B19, "Bar", "", "Close","D","0",,,,,"T") -> 2268.27 | F19: 0.1092153932 | H19: =RANK($F19,$F$1:F$102)+COUNTIF($F$1:F19,F19)-1 -> 53 | I19: S.US.BKNG | J19: 84 | K19: S.US.EBAY | L19: 0.03959763692 | M19: 0.1 | N19: 0.03959763692 | O19: 21 | P19: 21 | S19: BKNG | V19: 0.1 | W19: 10%<15% | X19: 21 | AB19: S.US.BKNG | AC19: =RTD("cqg.rtd",,"StudyData",AB19, "Bar", "", "Low","A","0",,,,,"T") -> 1860.73 | AD19: =RTD("cqg.rtd",,"StudyData",AB19, "Bar", "", "Close","D","0",,,,,"T") -> 2268.27 | AE19: -0.1796699687
A20: 23 | B20: S.US.CDNS | C20: =RTD("cqg.rtd", ,"ContractData",B20, "LongDescription",, "T") -> Cadence Design Systems, Inc | D20: =RTD("cqg.rtd",,"StudyData",B20, "Bar", "", "High","A","0",,,,,"T") -> 149.08 | E20: =RTD("cqg.rtd",,"StudyData",B20, "Bar", "", "Close","D","0",,,,,"T") -> 122.23 | F20: 0.2196678393 | H20: =RANK($F20,$F$1:F$102)+COUNTIF($F$1:F20,F20)-1 -> 23 | I20: S.US.CDNS | J20: 83 | K20: S.US.GOOGL | L20: 0.03975333772 | M20: 0.05 | N20: 0.03975333772 | O20: 24 | P20: 24 | S20: CDNS | V20: 0.05 | W20: 5%<10% | X20: 24 | AB20: S.US.CDNS | AC20: =RTD("cqg.rtd",,"StudyData",AB20, "Bar", "", "Low","A","0",,,,,"T") -> 118.11 | AD20: =RTD("cqg.rtd",,"StudyData",AB20, "Bar", "", "Close","D","0",,,,,"T") -> 122.23 | AE20: -0.03370694592
A21: 48 | B21: S.US.CDW | C21: =RTD("cqg.rtd", ,"ContractData",B21, "LongDescription",, "T") -> CDW Corporation | D21: =RTD("cqg.rtd",,"StudyData",B21, "Bar", "", "High","A","0",,,,,"T") -> 184.58 | E21: =RTD("cqg.rtd",,"StudyData",B21, "Bar", "", "Close","D","0",,,,,"T") -> 163.25 | F21: 0.1306584992 | H21: =RANK($F21,$F$1:F$102)+COUNTIF($F$1:F21,F21)-1 -> 48 | I21: S.US.CDW | J21: 82 | K21: S.US.XEL | L21: 0.03992015968 | M21: -3.191891196e-16 | N21: 0.03992015968 | O21: 0 | P21: 0 | S21: CDW | V21: -3.191891196e-16 | W21: =TEXT(V21,"0%")&"<"&TEXT(V20,"0%") -> 0%<5% | AB21: S.US.CDW | AC21: =RTD("cqg.rtd",,"StudyData",AB21, "Bar", "", "Low","A","0",,,,,"T") -> 125.46 | AD21: =RTD("cqg.rtd",,"StudyData",AB21, "Bar", "", "Close","D","0",,,,,"T") -> 163.25 | AE21: -0.2314854518
A22: 64 | B22: S.US.CERN | C22: =RTD("cqg.rtd", ,"ContractData",B22, "LongDescription",, "T") -> Cerner Corporation | D22: =RTD("cqg.rtd",,"StudyData",B22, "Bar", "", "High","A","0",,,,,"T") -> 84.2 | E22: =RTD("cqg.rtd",,"StudyData",B22, "Bar", "", "Close","D","0",,,,,"T") -> 78.46 | F22: 0.07315829722 | H22: =RANK($F22,$F$1:F$102)+COUNTIF($F$1:F22,F22)-1 -> 64 | I22: S.US.CERN | J22: 81 | K22: S.US.EXC | L22: 0.0439090295 | N22: 0.0439090295 | S22: CERN | AB22: S.US.CERN | AC22: =RTD("cqg.rtd",,"StudyData",AB22, "Bar", "", "Low","A","0",,,,,"T") -> 67.96 | AD22: =RTD("cqg.rtd",,"StudyData",AB22, "Bar", "", "Close","D","0",,,,,"T") -> 78.46 | AE22: -0.1338261535
A23: 32 | B23: S.US.CHKP | C23: =RTD("cqg.rtd", ,"ContractData",B23, "LongDescription",, "T") -> Check Point Sftwr Tech Ltd | D23: =RTD("cqg.rtd",,"StudyData",B23, "Bar", "", "High","A","0",,,,,"T") -> 137.49 | E23: =RTD("cqg.rtd",,"StudyData",B23, "Bar", "", "Close","D","0",,,,,"T") -> 116.36 | F23: 0.1815916122 | H23: =RANK($F23,$F$1:F$102)+COUNTIF($F$1:F23,F23)-1 -> 32 | I23: S.US.CHKP | J23: 80 | K23: S.US.FAST | L23: 0.04501731435 | N23: 0.04501731435 | S23: CHKP | AB23: S.US.CHKP | AC23: =RTD("cqg.rtd",,"StudyData",AB23, "Bar", "", "Low","A","0",,,,,"T") -> 109.07 | AD23: =RTD("cqg.rtd",,"StudyData",AB23, "Bar", "", "Close","D","0",,,,,"T") -> 116.36 | AE23: -0.06265039532
A24: 73 | B24: S.US.CHTR | C24: =RTD("cqg.rtd", ,"ContractData",B24, "LongDescription",, "T") -> Charter Communications, Inc. Class A | D24: =RTD("cqg.rtd",,"StudyData",B24, "Bar", "", "High","A","0",,,,,"T") -> 712.41 | E24: =RTD("cqg.rtd",,"StudyData",B24, "Bar", "", "Close","D","0",,,,,"T") -> 673.05 | F24: 0.05848005349 | H24: =RANK($F24,$F$1:F$102)+COUNTIF($F$1:F24,F24)-1 -> 73 | I24: S.US.CHTR | J24: 79 | K24: S.US.CTAS | L24: 0.04826971205 | N24: 0.04826971205 | S24: CHTR | AB24: S.US.CHTR | AC24: =RTD("cqg.rtd",,"StudyData",AB24, "Bar", "", "Low","A","0",,,,,"T") -> 585.45 | AD24: =RTD("cqg.rtd",,"StudyData",AB24, "Bar", "", "Close","D","0",,,,,"T") -> 673.05 | AE24: -0.1301537776
A25: 76 | B25: S.US.CMCSA | C25: =RTD("cqg.rtd", ,"ContractData",B25, "LongDescription",, "T") -> Comcast Corp ClsA | D25: =RTD("cqg.rtd",,"StudyData",B25, "Bar", "", "High","A","0",,,,,"T") -> 59.11 | E25: =RTD("cqg.rtd",,"StudyData",B25, "Bar", "", "Close","D","0",,,,,"T") -> 56.02 | F25: 0.05515887183 | H25: =RANK($F25,$F$1:F$102)+COUNTIF($F$1:F25,F25)-1 -> 76 | I25: S.US.CMCSA | J25: 78 | K25: S.US.VRSN | L25: 0.05405909218 | N25: 0.05405909218 | S25: CMCSA | AB25: S.US.CMCSA | AC25: =RTD("cqg.rtd",,"StudyData",AB25, "Bar", "", "Low","A","0",,,,,"T") -> 48.15 | AD25: =RTD("cqg.rtd",,"StudyData",AB25, "Bar", "", "Close","D","0",,,,,"T") -> 56.02 | AE25: -0.1404855409
A26: 93 | B26: S.US.COST | C26: =RTD("cqg.rtd", ,"ContractData",B26, "LongDescription",, "T") -> Costco Wholesale Corp | D26: =RTD("cqg.rtd",,"StudyData",B26, "Bar", "", "High","A","0",,,,,"T") -> 389.45 | E26: =RTD("cqg.rtd",,"StudyData",B26, "Bar", "", "Close","D","0",,,,,"T") -> 380.88 | F26: 0.0225005251 | H26: =RANK($F26,$F$1:F$102)+COUNTIF($F$1:F26,F26)-1 -> 93 | I26: S.US.COST | J26: 77 | K26: S.US.MNST | L26: 0.05418038882 | N26: 0.05418038882 | S26: COST | AB26: S.US.COST | AC26: =RTD("cqg.rtd",,"StudyData",AB26, "Bar", "", "Low","A","0",,,,,"T") -> 307 | AD26: =RTD("cqg.rtd",,"StudyData",AB26, "Bar", "", "Close","D","0",,,,,"T") -> 380.88 | AE26: -0.1939718547
A27: 65 | B27: S.US.CPRT | C27: =RTD("cqg.rtd", ,"ContractData",B27, "LongDescription",, "T") -> Copart Inc | D27: =RTD("cqg.rtd",,"StudyData",B27, "Bar", "", "High","A","0",,,,,"T") -> 130.07 | E27: =RTD("cqg.rtd",,"StudyData",B27, "Bar", "", "Close","D","0",,,,,"T") -> 121.76 | F27: 0.06824901445 | H27: =RANK($F27,$F$1:F$102)+COUNTIF($F$1:F27,F27)-1 -> 65 | I27: S.US.CPRT | J27: 76 | K27: S.US.CMCSA | L27: 0.05515887183 | N27: 0.05515887183 | S27: CPRT | AB27: S.US.CPRT | AC27: =RTD("cqg.rtd",,"StudyData",AB27, "Bar", "", "Low","A","0",,,,,"T") -> 101.92 | AD27: =RTD("cqg.rtd",,"StudyData",AB27, "Bar", "", "Close","D","0",,,,,"T") -> 121.76 | AE27: -0.1629434954
A28: 89 | B28: S.US.CSCO | C28: =RTD("cqg.rtd", ,"ContractData",B28, "LongDescription",, "T") -> Cisco Systems Inc | D28: =RTD("cqg.rtd",,"StudyData",B28, "Bar", "", "High","A","0",,,,,"T") -> 54.14 | E28: =RTD("cqg.rtd",,"StudyData",B28, "Bar", "", "Close","D","0",,,,,"T") -> 52.83 | F28: 0.02479651713 | H28: =RANK($F28,$F$1:F$102)+COUNTIF($F$1:F28,F28)-1 -> 89 | I28: S.US.CSCO | J28: 75 | K28: S.US.WBA | L28: 0.05746061168 | N28: 0.05746061168 | S28: CSCO | AB28: S.US.CSCO | AC28: =RTD("cqg.rtd",,"StudyData",AB28, "Bar", "", "Low","A","0",,,,,"T") -> 43.35 | AD28: =RTD("cqg.rtd",,"StudyData",AB28, "Bar", "", "Close","D","0",,,,,"T") -> 52.83 | AE28: -0.179443498
A29: 70 | B29: S.US.CSX | C29: =RTD("cqg.rtd", ,"ContractData",B29, "LongDescription",, "T") -> CSX Corporation | D29: =RTD("cqg.rtd",,"StudyData",B29, "Bar", "", "High","A","0",,,,,"T") -> 104.87 | E29: =RTD("cqg.rtd",,"StudyData",B29, "Bar", "", "Close","D","0",,,,,"T") -> 98.74 | F29: 0.06208223618 | H29: =RANK($F29,$F$1:F$102)+COUNTIF($F$1:F29,F29)-1 -> 70 | I29: S.US.CSX | J29: 74 | K29: S.US.GILD | L29: 0.05826415094 | N29: 0.05826415094 | S29: CSX | AB29: S.US.CSX | AC29: =RTD("cqg.rtd",,"StudyData",AB29, "Bar", "", "Low","A","0",,,,,"T") -> 83.11 | AD29: =RTD("cqg.rtd",,"StudyData",AB29, "Bar", "", "Close","D","0",,,,,"T") -> 98.74 | AE29: -0.1582945108
A30: 79 | B30: S.US.CTAS | C30: =RTD("cqg.rtd", ,"ContractData",B30, "LongDescription",, "T") -> Cintas Corp | D30: =RTD("cqg.rtd",,"StudyData",B30, "Bar", "", "High","A","0",,,,,"T") -> 364.41 | E30: =RTD("cqg.rtd",,"StudyData",B30, "Bar", "", "Close","D","0",,,,,"T") -> 347.63 | F30: 0.04826971205 | H30: =RANK($F30,$F$1:F$102)+COUNTIF($F$1:F30,F30)-1 -> 79 | I30: S.US.CTAS | J30: 73 | K30: S.US.CHTR | L30: 0.05848005349 | N30: 0.05848005349 | S30: CTAS | AB30: S.US.CTAS | AC30: =RTD("cqg.rtd",,"StudyData",AB30, "Bar", "", "Low","A","0",,,,,"T") -> 314.62 | AD30: =RTD("cqg.rtd",,"StudyData",AB30, "Bar", "", "Close","D","0",,,,,"T") -> 347.63 | AE30: -0.09495728217
A31: 39 | B31: S.US.CTSH | C31: =RTD("cqg.rtd", ,"ContractData",B31, "LongDescription",, "T") -> Cognizant Tech Solutions Corp | D31: =RTD("cqg.rtd",,"StudyData",B31, "Bar", "", "High","A","0",,,,,"T") -> 82.57 | E31: =RTD("cqg.rtd",,"StudyData",B31, "Bar", "", "Close","D","0",,,,,"T") -> 70.59 | F31: 0.1697124239 | H31: =RANK($F31,$F$1:F$102)+COUNTIF($F$1:F31,F31)-1 -> 39 | I31: S.US.CTSH | J31: 72 | K31: S.US.IDXX | L31: 0.059119845 | N31: 0.059119845 | S31: CTSH | AB31: S.US.CTSH | AC31: =RTD("cqg.rtd",,"StudyData",AB31, "Bar", "", "Low","A","0",,,,,"T") -> 69.4 | AD31: =RTD("cqg.rtd",,"StudyData",AB31, "Bar", "", "Close","D","0",,,,,"T") -> 70.59 | AE31: -0.01685791189
A32: 25 | B32: S.US.DLTR | C32: =RTD("cqg.rtd", ,"ContractData",B32, "LongDescription",, "T") -> Dollar Tree Stores | D32: =RTD("cqg.rtd",,"StudyData",B32, "Bar", "", "High","A","0",,,,,"T") -> 120.37 | E32: =RTD("cqg.rtd",,"StudyData",B32, "Bar", "", "Close","D","0",,,,,"T") -> 99.01 | F32: 0.2157357843 | H32: =RANK($F32,$F$1:F$102)+COUNTIF($F$1:F32,F32)-1 -> 25 | I32: S.US.DLTR | J32: 71 | K32: S.US.AEP | L32: 0.06124838974 | N32: 0.06124838974 | S32: DLTR | AB32: S.US.DLTR | AC32: =RTD("cqg.rtd",,"StudyData",AB32, "Bar", "", "Low","A","0",,,,,"T") -> 95.86 | AD32: =RTD("cqg.rtd",,"StudyData",AB32, "Bar", "", "Close","D","0",,,,,"T") -> 99.01 | AE32: -0.03181496819
A33: 9 | B33: S.US.DOCU | C33: =RTD("cqg.rtd", ,"ContractData",B33, "LongDescription",, "T") -> DocuSign, Inc. | D33: =RTD("cqg.rtd",,"StudyData",B33, "Bar", "", "High","A","0",,,,,"T") -> 275.46 | E33: =RTD("cqg.rtd",,"StudyData",B33, "Bar", "", "Close","D","0",,,,,"T") -> 196.37 | F33: 0.4027600957 | H33: =RANK($F33,$F$1:F$102)+COUNTIF($F$1:F33,F33)-1 -> 9 | I33: S.US.DOCU | J33: 70 | K33: S.US.CSX | L33: 0.06208223618 | N33: 0.06208223618 | S33: DOCU | AB33: S.US.DOCU | AC33: =RTD("cqg.rtd",,"StudyData",AB33, "Bar", "", "Low","A","0",,,,,"T") -> 179.49 | AD33: =RTD("cqg.rtd",,"StudyData",AB33, "Bar", "", "Close","D","0",,,,,"T") -> 196.37 | AE33: -0.08596017722
A34: 43 | B34: S.US.DXCM | C34: =RTD("cqg.rtd", ,"ContractData",B34, "LongDescription",, "T") -> DexCom Inc | D34: =RTD("cqg.rtd",,"StudyData",B34, "Bar", "", "High","A","0",,,,,"T") -> 428.94 | E34: =RTD("cqg.rtd",,"StudyData",B34, "Bar", "", "Close","D","0",,,,,"T") -> 371.2 | F34: 0.155549569 | H34: =RANK($F34,$F$1:F$102)+COUNTIF($F$1:F34,F34)-1 -> 43 | I34: S.US.DXCM | J34: 69 | K34: S.US.LRCX | L34: 0.06321204279 | N34: 0.06321204279 | S34: DXCM | AB34: S.US.DXCM | AC34: =RTD("cqg.rtd",,"StudyData",AB34, "Bar", "", "Low","A","0",,,,,"T") -> 318.45 | AD34: =RTD("cqg.rtd",,"StudyData",AB34, "Bar", "", "Close","D","0",,,,,"T") -> 371.2 | AE34: -0.142106681
A35: 68 | B35: S.US.EA | C35: =RTD("cqg.rtd", ,"ContractData",B35, "LongDescription",, "T") -> Electronic Arts | D35: =RTD("cqg.rtd",,"StudyData",B35, "Bar", "", "High","A","0",,,,,"T") -> 150.3 | E35: =RTD("cqg.rtd",,"StudyData",B35, "Bar", "", "Close","D","0",,,,,"T") -> 141.2 | F35: 0.06444759207 | H35: =RANK($F35,$F$1:F$102)+COUNTIF($F$1:F35,F35)-1 -> 68 | I35: S.US.EA | J35: 68 | K35: S.US.EA | L35: 0.06444759207 | N35: 0.06444759207 | S35: EA | AB35: S.US.EA | AC35: =RTD("cqg.rtd",,"StudyData",AB35, "Bar", "", "Low","A","0",,,,,"T") -> 127.17 | AD35: =RTD("cqg.rtd",,"StudyData",AB35, "Bar", "", "Close","D","0",,,,,"T") -> 141.2 | AE35: -0.09936260623
A36: 84 | B36: S.US.EBAY | C36: =RTD("cqg.rtd", ,"ContractData",B36, "LongDescription",, "T") -> eBay Inc | D36: =RTD("cqg.rtd",,"StudyData",B36, "Bar", "", "High","A","0",,,,,"T") -> 65.11 | E36: =RTD("cqg.rtd",,"StudyData",B36, "Bar", "", "Close","D","0",,,,,"T") -> 62.63 | F36: 0.03959763692 | H36: =RANK($F36,$F$1:F$102)+COUNTIF($F$1:F36,F36)-1 -> 84 | I36: S.US.EBAY | J36: 67 | K36: S.US.TXN | L36: 0.06563831509 | N36: 0.06563831509 | S36: EBAY | AB36: S.US.EBAY | AC36: =RTD("cqg.rtd",,"StudyData",AB36, "Bar", "", "Low","A","0",,,,,"T") -> 50.45 | AD36: =RTD("cqg.rtd",,"StudyData",AB36, "Bar", "", "Close","D","0",,,,,"T") -> 62.63 | AE36: -0.194475491
A37: 81 | B37: S.US.EXC | C37: =RTD("cqg.rtd", ,"ContractData",B37, "LongDescription",, "T") -> Exelon Corporation | D37: =RTD("cqg.rtd",,"StudyData",B37, "Bar", "", "High","A","0",,,,,"T") -> 46.36 | E37: =RTD("cqg.rtd",,"StudyData",B37, "Bar", "", "Close","D","0",,,,,"T") -> 44.41 | F37: 0.0439090295 | H37: =RANK($F37,$F$1:F$102)+COUNTIF($F$1:F37,F37)-1 -> 81 | I37: S.US.EXC | J37: 66 | K37: S.US.AVGO | L37: 0.06628477905 | N37: 0.06628477905 | S37: EXC | AB37: S.US.EXC | AC37: =RTD("cqg.rtd",,"StudyData",AB37, "Bar", "", "Low","A","0",,,,,"T") -> 38.35 | AD37: =RTD("cqg.rtd",,"StudyData",AB37, "Bar", "", "Close","D","0",,,,,"T") -> 44.41 | AE37: -0.1364557532
A38: 80 | B38: S.US.FAST | C38: =RTD("cqg.rtd", ,"ContractData",B38, "LongDescription",, "T") -> Fastenal Co | D38: =RTD("cqg.rtd",,"StudyData",B38, "Bar", "", "High","A","0",,,,,"T") -> 54.32 | E38: =RTD("cqg.rtd",,"StudyData",B38, "Bar", "", "Close","D","0",,,,,"T") -> 51.98 | F38: 0.04501731435 | H38: =RANK($F38,$F$1:F$102)+COUNTIF($F$1:F38,F38)-1 -> 80 | I38: S.US.FAST | J38: 65 | K38: S.US.CPRT | L38: 0.06824901445 | N38: 0.06824901445 | S38: FAST | AB38: S.US.FAST | AC38: =RTD("cqg.rtd",,"StudyData",AB38, "Bar", "", "Low","A","0",,,,,"T") -> 43.37 | AD38: =RTD("cqg.rtd",,"StudyData",AB38, "Bar", "", "Close","D","0",,,,,"T") -> 51.98 | AE38: -0.165640631
A39: 90 | B39: S.US.FB | C39: =RTD("cqg.rtd", ,"ContractData",B39, "LongDescription",, "T") -> Facebook, Inc. | D39: =RTD("cqg.rtd",,"StudyData",B39, "Bar", "", "High","A","0",,,,,"T") -> 333.78 | E39: =RTD("cqg.rtd",,"StudyData",B39, "Bar", "", "Close","D","0",,,,,"T") -> 325.76 | F39: 0.02461935167 | H39: =RANK($F39,$F$1:F$102)+COUNTIF($F$1:F39,F39)-1 -> 90 | I39: S.US.FB | J39: 64 | K39: S.US.CERN | L39: 0.07315829722 | N39: 0.07315829722 | S39: FB | AB39: S.US.FB | AC39: =RTD("cqg.rtd",,"StudyData",AB39, "Bar", "", "Low","A","0",,,,,"T") -> 244.61 | AD39: =RTD("cqg.rtd",,"StudyData",AB39, "Bar", "", "Close","D","0",,,,,"T") -> 325.76 | AE39: -0.2491097741
A40: 49 | B40: S.US.FISV | C40: =RTD("cqg.rtd", ,"ContractData",B40, "LongDescription",, "T") -> FISERV Inc | D40: =RTD("cqg.rtd",,"StudyData",B40, "Bar", "", "High","A","0",,,,,"T") -> 127.34 | E40: =RTD("cqg.rtd",,"StudyData",B40, "Bar", "", "Close","D","0",,,,,"T") -> 113.32 | F40: 0.1237204377 | H40: =RANK($F40,$F$1:F$102)+COUNTIF($F$1:F40,F40)-1 -> 49 | I40: S.US.FISV | J40: 63 | K40: S.US.ADBE | L40: 0.07344378843 | N40: 0.07344378843 | S40: FISV | AB40: S.US.FISV | AC40: =RTD("cqg.rtd",,"StudyData",AB40, "Bar", "", "Low","A","0",,,,,"T") -> 100.36 | AD40: =RTD("cqg.rtd",,"StudyData",AB40, "Bar", "", "Close","D","0",,,,,"T") -> 113.32 | AE40: -0.114366396
A41: 29 | B41: S.US.FOX | C41: =RTD("cqg.rtd", ,"ContractData",B41, "LongDescription",, "T") -> Fox Corporation | D41: =RTD("cqg.rtd",,"StudyData",B41, "Bar", "", "High","A","0",,,,,"T") -> 42.14 | E41: =RTD("cqg.rtd",,"StudyData",B41, "Bar", "", "Close","D","0",,,,,"T") -> 35.08 | F41: 0.2012542759 | H41: =RANK($F41,$F$1:F$102)+COUNTIF($F$1:F41,F41)-1 -> 29 | I41: S.US.FOX | J41: 62 | K41: S.US.NXPI | L41: 0.07388111541 | N41: 0.07388111541 | S41: FOX | AB41: S.US.FOX | AC41: =RTD("cqg.rtd",,"StudyData",AB41, "Bar", "", "Low","A","0",,,,,"T") -> 28.15 | AD41: =RTD("cqg.rtd",,"StudyData",AB41, "Bar", "", "Close","D","0",,,,,"T") -> 35.08 | AE41: -0.1975484607
A42: 19 | B42: S.US.FOXA | C42: =RTD("cqg.rtd", ,"ContractData",B42, "LongDescription",, "T") -> Fox Corporation Class A | D42: =RTD("cqg.rtd",,"StudyData",B42, "Bar", "", "High","A","0",,,,,"T") -> 44.8 | E42: =RTD("cqg.rtd",,"StudyData",B42, "Bar", "", "Close","D","0",,,,,"T") -> 36.3 | F42: 0.2341597796 | H42: =RANK($F42,$F$1:F$102)+COUNTIF($F$1:F42,F42)-1 -> 19 | I42: S.US.FOXA | J42: 61 | K42: S.US.ORLY | L42: 0.07570798888 | N42: 0.07570798888 | S42: FOXA | AB42: S.US.FOXA | AC42: =RTD("cqg.rtd",,"StudyData",AB42, "Bar", "", "Low","A","0",,,,,"T") -> 28.46 | AD42: =RTD("cqg.rtd",,"StudyData",AB42, "Bar", "", "Close","D","0",,,,,"T") -> 36.3 | AE42: -0.2159779614
A43: 74 | B43: S.US.GILD | C43: =RTD("cqg.rtd", ,"ContractData",B43, "LongDescription",, "T") -> Gilead Sciences Inc | D43: =RTD("cqg.rtd",,"StudyData",B43, "Bar", "", "High","A","0",,,,,"T") -> 70.11 | E43: =RTD("cqg.rtd",,"StudyData",B43, "Bar", "", "Close","D","0",,,,,"T") -> 66.25 | F43: 0.05826415094 | H43: =RANK($F43,$F$1:F$102)+COUNTIF($F$1:F43,F43)-1 -> 74 | I43: S.US.GILD | J43: 60 | K43: S.US.AMAT | L43: 0.07574417919 | N43: 0.07574417919 | S43: GILD | AB43: S.US.GILD | AC43: =RTD("cqg.rtd",,"StudyData",AB43, "Bar", "", "Low","A","0",,,,,"T") -> 57.92 | AD43: =RTD("cqg.rtd",,"StudyData",AB43, "Bar", "", "Close","D","0",,,,,"T") -> 66.25 | AE43: -0.1257358491
A44: 88 | B44: S.US.GOOG | C44: =RTD("cqg.rtd", ,"ContractData",B44, "LongDescription",, "T") -> Alphabet, Inc. Class C | D44: =RTD("cqg.rtd",,"StudyData",B44, "Bar", "", "High","A","0",,,,,"T") -> 2452.37 | E44: =RTD("cqg.rtd",,"StudyData",B44, "Bar", "", "Close","D","0",,,,,"T") -> 2391.23 | F44: 0.02556843131 | H44: =RANK($F44,$F$1:F$102)+COUNTIF($F$1:F44,F44)-1 -> 88 | I44: S.US.GOOG | J44: 59 | K44: S.US.SBUX | L44: 0.07654723127 | N44: 0.07654723127 | S44: GOOG | AB44: S.US.GOOG | AC44: =RTD("cqg.rtd",,"StudyData",AB44, "Bar", "", "Low","A","0",,,,,"T") -> 1699 | AD44: =RTD("cqg.rtd",,"StudyData",AB44, "Bar", "", "Close","D","0",,,,,"T") -> 2391.23 | AE44: -0.2894870004
A45: 83 | B45: S.US.GOOGL | C45: =RTD("cqg.rtd", ,"ContractData",B45, "LongDescription",, "T") -> Alphabet, Inc. Class A | D45: =RTD("cqg.rtd",,"StudyData",B45, "Bar", "", "High","A","0",,,,,"T") -> 2431.38 | E45: =RTD("cqg.rtd",,"StudyData",B45, "Bar", "", "Close","D","0",,,,,"T") -> 2338.42 | F45: 0.03975333772 | H45: =RANK($F45,$F$1:F$102)+COUNTIF($F$1:F45,F45)-1 -> 83 | I45: S.US.GOOGL | J45: 58 | K45: S.US.MSFT | L45: 0.07763174057 | N45: 0.07763174057 | S45: GOOGL | AB45: S.US.GOOGL | AC45: =RTD("cqg.rtd",,"StudyData",AB45, "Bar", "", "Low","A","0",,,,,"T") ->  | AD45: =RTD("cqg.rtd",,"StudyData",AB45, "Bar", "", "Close","D","0",,,,,"T") -> 2338.42
A46: 72 | B46: S.US.IDXX | C46: =RTD("cqg.rtd", ,"ContractData",B46, "LongDescription",, "T") -> IDEXX Laboratories Inc | D46: =RTD("cqg.rtd",,"StudyData",B46, "Bar", "", "High","A","0",,,,,"T") -> 573.99 | E46: =RTD("cqg.rtd",,"StudyData",B46, "Bar", "", "Close","D","0",,,,,"T") -> 541.95 | F46: 0.059119845 | H46: =RANK($F46,$F$1:F$102)+COUNTIF($F$1:F46,F46)-1 -> 72 | I46: S.US.IDXX | J46: 57 | K46: S.US.ISRG | L46: 0.1002794431 | N46: 0.1002794431 | S46: IDXX | AB46: S.US.IDXX | AC46: =RTD("cqg.rtd",,"StudyData",AB46, "Bar", "", "Low","A","0",,,,,"T") -> 455.23 | AD46: =RTD("cqg.rtd",,"StudyData",AB46, "Bar", "", "Close","D","0",,,,,"T") -> 541.95 | AE46: -0.1600147615
A47: 12 | B47: S.US.ILMN | C47: =RTD("cqg.rtd", ,"ContractData",B47, "LongDescription",, "T") -> Illumina Inc | D47: =RTD("cqg.rtd",,"StudyData",B47, "Bar", "", "High","A","0",,,,,"T") -> 555.77 | E47: =RTD("cqg.rtd",,"StudyData",B47, "Bar", "", "Close","D","0",,,,,"T") -> 407.91 | F47: 0.36248192 | H47: =RANK($F47,$F$1:F$102)+COUNTIF($F$1:F47,F47)-1 -> 12 | I47: S.US.ILMN | J47: 56 | K47: S.US.MCHP | L47: 0.1003499043 | N47: 0.1003499043 | S47: ILMN | AB47: S.US.ILMN | AC47: =RTD("cqg.rtd",,"StudyData",AB47, "Bar", "", "Low","A","0",,,,,"T") -> 356 | AD47: =RTD("cqg.rtd",,"StudyData",AB47, "Bar", "", "Close","D","0",,,,,"T") -> 407.91 | AE47: -0.1272584639
A48: 18 | B48: S.US.INCY | C48: =RTD("cqg.rtd", ,"ContractData",B48, "LongDescription",, "T") -> Incyte Corporation | D48: =RTD("cqg.rtd",,"StudyData",B48, "Bar", "", "High","A","0",,,,,"T") -> 101.47 | E48: =RTD("cqg.rtd",,"StudyData",B48, "Bar", "", "Close","D","0",,,,,"T") -> 81.87 | F48: 0.2394039331 | H48: =RANK($F48,$F$1:F$102)+COUNTIF($F$1:F48,F48)-1 -> 18 | I48: S.US.INCY | J48: 55 | K48: S.US.ATVI | L48: 0.1056695579 | N48: 0.1056695579 | S48: INCY | AB48: S.US.INCY | AC48: =RTD("cqg.rtd",,"StudyData",AB48, "Bar", "", "Low","A","0",,,,,"T") -> 75.52 | AD48: =RTD("cqg.rtd",,"StudyData",AB48, "Bar", "", "Close","D","0",,,,,"T") -> 81.87 | AE48: -0.07756198852
A49: 24 | B49: S.US.INTC | C49: =RTD("cqg.rtd", ,"ContractData",B49, "LongDescription",, "T") -> Intel Corporation | D49: =RTD("cqg.rtd",,"StudyData",B49, "Bar", "", "High","A","0",,,,,"T") -> 68.49 | E49: =RTD("cqg.rtd",,"StudyData",B49, "Bar", "", "Close","D","0",,,,,"T") -> 56.27 | F49: 0.2171672294 | H49: =RANK($F49,$F$1:F$102)+COUNTIF($F$1:F49,F49)-1 -> 24 | I49: S.US.INTC | J49: 54 | K49: S.US.BIIB | L49: 0.1079626168 | N49: 0.1079626168 | S49: INTC | AB49: S.US.INTC | AC49: =RTD("cqg.rtd",,"StudyData",AB49, "Bar", "", "Low","A","0",,,,,"T") -> 49.33 | AD49: =RTD("cqg.rtd",,"StudyData",AB49, "Bar", "", "Close","D","0",,,,,"T") -> 56.27 | AE49: -0.1233339257
A50: 98 | B50: S.US.INTU | C50: =RTD("cqg.rtd", ,"ContractData",B50, "LongDescription",, "T") -> Intuit Corp | D50: =RTD("cqg.rtd",,"StudyData",B50, "Bar", "", "High","A","0",,,,,"T") -> 447.08 | E50: =RTD("cqg.rtd",,"StudyData",B50, "Bar", "", "Close","D","0",,,,,"T") -> 442 | F50: 0.01149321267 | H50: =RANK($F50,$F$1:F$102)+COUNTIF($F$1:F50,F50)-1 -> 98 | I50: S.US.INTU | J50: 53 | K50: S.US.BKNG | L50: 0.1092153932 | N50: 0.1092153932 | S50: INTU | AB50: S.US.INTU | AC50: =RTD("cqg.rtd",,"StudyData",AB50, "Bar", "", "Low","A","0",,,,,"T") -> 357.69 | AD50: =RTD("cqg.rtd",,"StudyData",AB50, "Bar", "", "Close","D","0",,,,,"T") -> 442 | AE50: -0.1907466063
A51: 57 | B51: S.US.ISRG | C51: =RTD("cqg.rtd", ,"ContractData",B51, "LongDescription",, "T") -> Intuitive Surgical Inc | D51: =RTD("cqg.rtd",,"StudyData",B51, "Bar", "", "High","A","0",,,,,"T") -> 893.79 | E51: =RTD("cqg.rtd",,"StudyData",B51, "Bar", "", "Close","D","0",,,,,"T") -> 812.33 | F51: 0.1002794431 | H51: =RANK($F51,$F$1:F$102)+COUNTIF($F$1:F51,F51)-1 -> 57 | I51: S.US.ISRG | J51: 52 | K51: S.US.AMZN | L51: 0.1109721788 | N51: 0.1109721788 | S51: ISRG | AB51: S.US.ISRG | AC51: =RTD("cqg.rtd",,"StudyData",AB51, "Bar", "", "Low","A","0",,,,,"T") -> 682.4 | AD51: =RTD("cqg.rtd",,"StudyData",AB51, "Bar", "", "Close","D","0",,,,,"T") -> 812.33 | AE51: -0.1599473121
A52: 7 | B52: S.US.JD | C52: =RTD("cqg.rtd", ,"ContractData",B52, "LongDescription",, "T") -> JD.com, Inc. | D52: =RTD("cqg.rtd",,"StudyData",B52, "Bar", "", "High","A","0",,,,,"T") -> 108.29 | E52: =RTD("cqg.rtd",,"StudyData",B52, "Bar", "", "Close","D","0",,,,,"T") -> 74.92 | F52: 0.4454084357 | H52: =RANK($F52,$F$1:F$102)+COUNTIF($F$1:F52,F52)-1 -> 7 | I52: S.US.JD | J52: 51 | K52: S.US.REGN | L52: 0.1114845381 | N52: 0.1114845381 | S52: JD | AB52: S.US.JD | AC52: =RTD("cqg.rtd",,"StudyData",AB52, "Bar", "", "Low","A","0",,,,,"T") -> 66.55 | AD52: =RTD("cqg.rtd",,"StudyData",AB52, "Bar", "", "Close","D","0",,,,,"T") -> 74.92 | AE52: -0.1117191671
A53: 99 | B53: S.US.KDP | C53: =RTD("cqg.rtd", ,"ContractData",B53, "LongDescription",, "T") -> Keurig Dr Pepper Inc. | D53: =RTD("cqg.rtd",,"StudyData",B53, "Bar", "", "High","A","0",,,,,"T") -> 37.11 | E53: =RTD("cqg.rtd",,"StudyData",B53, "Bar", "", "Close","D","0",,,,,"T") -> 36.75 | F53: 0.009795918367 | H53: =RANK($F53,$F$1:F$102)+COUNTIF($F$1:F53,F53)-1 -> 99 | I53: S.US.KDP | J53: 50 | K53: S.US.PCAR | L53: 0.1230953418 | N53: 0.1230953418 | S53: KDP | AB53: S.US.KDP | AC53: =RTD("cqg.rtd",,"StudyData",AB53, "Bar", "", "Low","A","0",,,,,"T") -> 30.28 | AD53: =RTD("cqg.rtd",,"StudyData",AB53, "Bar", "", "Close","D","0",,,,,"T") -> 36.75 | AE53: -0.1760544218
A54: 91 | B54: S.US.KHC | C54: =RTD("cqg.rtd", ,"ContractData",B54, "LongDescription",, "T") -> The Kraft Heinz Company | D54: =RTD("cqg.rtd",,"StudyData",B54, "Bar", "", "High","A","0",,,,,"T") -> 44.95 | E54: =RTD("cqg.rtd",,"StudyData",B54, "Bar", "", "Close","D","0",,,,,"T") -> 43.94 | F54: 0.02298588985 | H54: =RANK($F54,$F$1:F$102)+COUNTIF($F$1:F54,F54)-1 -> 91 | I54: S.US.KHC | J54: 49 | K54: S.US.FISV | L54: 0.1237204377 | N54: 0.1237204377 | S54: KHC | AB54: S.US.KHC | AC54: =RTD("cqg.rtd",,"StudyData",AB54, "Bar", "", "Low","A","0",,,,,"T") -> 31.6 | AD54: =RTD("cqg.rtd",,"StudyData",AB54, "Bar", "", "Close","D","0",,,,,"T") -> 43.94 | AE54: -0.2808375057
A55: 40 | B55: S.US.KLAC | C55: =RTD("cqg.rtd", ,"ContractData",B55, "LongDescription",, "T") -> KLA Corporation | D55: =RTD("cqg.rtd",,"StudyData",B55, "Bar", "", "High","A","0",,,,,"T") -> 359.69 | E55: =RTD("cqg.rtd",,"StudyData",B55, "Bar", "", "Close","D","0",,,,,"T") -> 308.18 | F55: 0.167142579 | H55: =RANK($F55,$F$1:F$102)+COUNTIF($F$1:F55,F55)-1 -> 40 | I55: S.US.KLAC | J55: 48 | K55: S.US.CDW | L55: 0.1306584992 | N55: 0.1306584992 | S55: KLAC | AB55: S.US.KLAC | AC55: =RTD("cqg.rtd",,"StudyData",AB55, "Bar", "", "Low","A","0",,,,,"T") -> 257.7 | AD55: =RTD("cqg.rtd",,"StudyData",AB55, "Bar", "", "Close","D","0",,,,,"T") -> 308.18 | AE55: -0.1638003764
A56: 69 | B56: S.US.LRCX | C56: =RTD("cqg.rtd", ,"ContractData",B56, "LongDescription",, "T") -> LAM Research Corporation | D56: =RTD("cqg.rtd",,"StudyData",B56, "Bar", "", "High","A","0",,,,,"T") -> 673.8 | E56: =RTD("cqg.rtd",,"StudyData",B56, "Bar", "", "Close","D","0",,,,,"T") -> 633.74 | F56: 0.06321204279 | H56: =RANK($F56,$F$1:F$102)+COUNTIF($F$1:F56,F56)-1 -> 69 | I56: S.US.LRCX | J56: 47 | K56: S.US.ROST | L56: 0.1365060547 | N56: 0.1365060547 | S56: LRCX | AB56: S.US.LRCX | AC56: =RTD("cqg.rtd",,"StudyData",AB56, "Bar", "", "Low","A","0",,,,,"T") -> 473.32 | AD56: =RTD("cqg.rtd",,"StudyData",AB56, "Bar", "", "Close","D","0",,,,,"T") -> 633.74 | AE56: -0.2531321993
A57: 31 | B57: S.US.LULU | C57: =RTD("cqg.rtd", ,"ContractData",B57, "LongDescription",, "T") -> Lululemon Athletica Inc | D57: =RTD("cqg.rtd",,"StudyData",B57, "Bar", "", "High","A","0",,,,,"T") -> 374.2 | E57: =RTD("cqg.rtd",,"StudyData",B57, "Bar", "", "Close","D","0",,,,,"T") -> 314.43 | F57: 0.1900900041 | H57: =RANK($F57,$F$1:F$102)+COUNTIF($F$1:F57,F57)-1 -> 31 | I57: S.US.LULU | J57: 46 | K57: S.US.ALGN | L57: 0.1381341774 | N57: 0.1381341774 | S57: LULU | AB57: S.US.LULU | AC57: =RTD("cqg.rtd",,"StudyData",AB57, "Bar", "", "Low","A","0",,,,,"T") -> 269.28 | AD57: =RTD("cqg.rtd",,"StudyData",AB57, "Bar", "", "Close","D","0",,,,,"T") -> 314.43 | AE57: -0.1435931686
A58: 45 | B58: S.US.MAR | C58: =RTD("cqg.rtd", ,"ContractData",B58, "LongDescription",, "T") -> Marriot International, Inc. | D58: =RTD("cqg.rtd",,"StudyData",B58, "Bar", "", "High","A","0",,,,,"T") -> 159.98 | E58: =RTD("cqg.rtd",,"StudyData",B58, "Bar", "", "Close","D","0",,,,,"T") -> 140.08 | F58: 0.142061679 | H58: =RANK($F58,$F$1:F$102)+COUNTIF($F$1:F58,F58)-1 -> 45 | I58: S.US.MAR | J58: 45 | K58: S.US.MAR | L58: 0.142061679 | N58: 0.142061679 | S58: MAR | AB58: S.US.MAR | AC58: =RTD("cqg.rtd",,"StudyData",AB58, "Bar", "", "Low","A","0",,,,,"T") -> 115.5 | AD58: =RTD("cqg.rtd",,"StudyData",AB58, "Bar", "", "Close","D","0",,,,,"T") -> 140.08 | AE58: -0.1754711593
A59: 56 | B59: S.US.MCHP | C59: =RTD("cqg.rtd", ,"ContractData",B59, "LongDescription",, "T") -> Microchip Technology Inc | D59: =RTD("cqg.rtd",,"StudyData",B59, "Bar", "", "High","A","0",,,,,"T") -> 166.67 | E59: =RTD("cqg.rtd",,"StudyData",B59, "Bar", "", "Close","D","0",,,,,"T") -> 151.47 | F59: 0.1003499043 | H59: =RANK($F59,$F$1:F$102)+COUNTIF($F$1:F59,F59)-1 -> 56 | I59: S.US.MCHP | J59: 44 | K59: S.US.TCOM | L59: 0.1531002807 | N59: 0.1531002807 | S59: MCHP | AB59: S.US.MCHP | AC59: =RTD("cqg.rtd",,"StudyData",AB59, "Bar", "", "Low","A","0",,,,,"T") -> 132.54 | AD59: =RTD("cqg.rtd",,"StudyData",AB59, "Bar", "", "Close","D","0",,,,,"T") -> 151.47 | AE59: -0.1249752426
A60: 100 | B60: S.US.MDLZ | C60: =RTD("cqg.rtd", ,"ContractData",B60, "LongDescription",, "T") -> Mondelez International, Inc. | D60: =RTD("cqg.rtd",,"StudyData",B60, "Bar", "", "High","A","0",,,,,"T") -> 64.02 | E60: =RTD("cqg.rtd",,"StudyData",B60, "Bar", "", "Close","D","0",,,,,"T") -> 63.53 | F60: 0.007712891547 | H60: =RANK($F60,$F$1:F$102)+COUNTIF($F$1:F60,F60)-1 -> 100 | I60: S.US.MDLZ | J60: 43 | K60: S.US.DXCM | L60: 0.155549569 | N60: 0.155549569 | S60: MDLZ | AB60: S.US.MDLZ | AC60: =RTD("cqg.rtd",,"StudyData",AB60, "Bar", "", "Low","A","0",,,,,"T") -> 52.91 | AD60: =RTD("cqg.rtd",,"StudyData",AB60, "Bar", "", "Close","D","0",,,,,"T") -> 63.53 | AE60: -0.1671651188
A61: 5 | B61: S.US.MELI | C61: =RTD("cqg.rtd", ,"ContractData",B61, "LongDescription",, "T") -> MercadoLibre Inc | D61: =RTD("cqg.rtd",,"StudyData",B61, "Bar", "", "High","A","0",,,,,"T") -> 2020 | E61: =RTD("cqg.rtd",,"StudyData",B61, "Bar", "", "Close","D","0",,,,,"T") -> 1337.22 | F61: 0.5105966109 | H61: =RANK($F61,$F$1:F$102)+COUNTIF($F$1:F61,F61)-1 -> 5 | I61: S.US.MELI | J61: 42 | K61: S.US.VRTX | L61: 0.1600782966 | N61: 0.1600782966 | S61: MELI | AB61: S.US.MELI | AC61: =RTD("cqg.rtd",,"StudyData",AB61, "Bar", "", "Low","A","0",,,,,"T") -> 1262.38 | AD61: =RTD("cqg.rtd",,"StudyData",AB61, "Bar", "", "Close","D","0",,,,,"T") -> 1337.22 | AE61: -0.05596685661
A62: 77 | B62: S.US.MNST | C62: =RTD("cqg.rtd", ,"ContractData",B62, "LongDescription",, "T") -> Monster Beverage Corporation | D62: =RTD("cqg.rtd",,"StudyData",B62, "Bar", "", "High","A","0",,,,,"T") -> 99.23 | E62: =RTD("cqg.rtd",,"StudyData",B62, "Bar", "", "Close","D","0",,,,,"T") -> 94.13 | F62: 0.05418038882 | H62: =RANK($F62,$F$1:F$102)+COUNTIF($F$1:F62,F62)-1 -> 77 | I62: S.US.MNST | J62: 41 | K62: S.US.MU | L62: 0.1621718806 | N62: 0.1621718806 | S62: MNST | AB62: S.US.MNST | AC62: =RTD("cqg.rtd",,"StudyData",AB62, "Bar", "", "Low","A","0",,,,,"T") -> 82.96 | AD62: =RTD("cqg.rtd",,"StudyData",AB62, "Bar", "", "Close","D","0",,,,,"T") -> 94.13 | AE62: -0.1186656751
A63: 102 | B63: S.US.MRNA | C63: =RTD("cqg.rtd", ,"ContractData",B63, "LongDescription",, "T") -> Moderna, Inc. | D63: =RTD("cqg.rtd",,"StudyData",B63, "Bar", "", "High","A","0",,,,,"T") -> 194.5 | E63: =RTD("cqg.rtd",,"StudyData",B63, "Bar", "", "Close","D","0",,,,,"T") -> 193.51 | F63: 0.005116014676 | H63: =RANK($F63,$F$1:F$102)+COUNTIF($F$1:F63,F63)-1 -> 102 | I63: S.US.MRNA | J63: 40 | K63: S.US.KLAC | L63: 0.167142579 | N63: 0.167142579 | S63: MRNA | AB63: S.US.MRNA | AC63: =RTD("cqg.rtd",,"StudyData",AB63, "Bar", "", "Low","A","0",,,,,"T") -> 103.26 | AD63: =RTD("cqg.rtd",,"StudyData",AB63, "Bar", "", "Close","D","0",,,,,"T") -> 193.51 | AE63: -0.4663841662
A64: 33 | B64: S.US.MRVL | C64: =RTD("cqg.rtd", ,"ContractData",B64, "LongDescription",, "T") -> Marvell Technology, Inc. | D64: =RTD("cqg.rtd",,"StudyData",B64, "Bar", "", "High","A","0",,,,,"T") -> 55.7 | E64: =RTD("cqg.rtd",,"StudyData",B64, "Bar", "", "Close","D","0",,,,,"T") -> 47.26 | F64: 0.1785865425 | H64: =RANK($F64,$F$1:F$102)+COUNTIF($F$1:F64,F64)-1 -> 33 | I64: S.US.MRVL | J64: 39 | K64: S.US.CTSH | L64: 0.1697124239 | N64: 0.1697124239 | S64: MRVL | AB64: S.US.MRVL | AC64: =RTD("cqg.rtd",,"StudyData",AB64, "Bar", "", "Low","A","0",,,,,"T") -> 37.92 | AD64: =RTD("cqg.rtd",,"StudyData",AB64, "Bar", "", "Close","D","0",,,,,"T") -> 47.26 | AE64: -0.1976301312
A65: 58 | B65: S.US.MSFT | C65: =RTD("cqg.rtd", ,"ContractData",B65, "LongDescription",, "T") -> Microsoft Corporation | D65: =RTD("cqg.rtd",,"StudyData",B65, "Bar", "", "High","A","0",,,,,"T") -> 263.19 | E65: =RTD("cqg.rtd",,"StudyData",B65, "Bar", "", "Close","D","0",,,,,"T") -> 244.23 | F65: 0.07763174057 | H65: =RANK($F65,$F$1:F$102)+COUNTIF($F$1:F65,F65)-1 -> 58 | I65: S.US.MSFT | J65: 38 | K65: S.US.TEAM | L65: 0.1722135358 | N65: 0.1722135358 | S65: MSFT | AB65: S.US.MSFT | AC65: =RTD("cqg.rtd",,"StudyData",AB65, "Bar", "", "Low","A","0",,,,,"T") -> 211.94 | AD65: =RTD("cqg.rtd",,"StudyData",AB65, "Bar", "", "Close","D","0",,,,,"T") -> 244.23 | AE65: -0.13221144
A66: =H66 -> 16 | B66: S.US.MTCH | C66: =RTD("cqg.rtd", ,"ContractData",B66, "LongDescription",, "T") -> Match Group, Inc. | D66: =RTD("cqg.rtd",,"StudyData",B66, "Bar", "", "High","A","0",,,,,"T") -> 174.68 | E66: =RTD("cqg.rtd",,"StudyData",B66, "Bar", "", "Close","D","0",,,,,"T") -> 137.71 | F66: =(D66-E66)/E66 -> 0.2684627115 | H66: =RANK($F66,$F$1:F$102)+COUNTIF($F$1:F66,F66)-1 -> 16 | I66: S.US.MTCH | J66: 37 | K66: =VLOOKUP(J66,$A$1:$H$102,2,FALSE) -> S.US.AAPL | L66: =VLOOKUP(J66,$A$1:$H$102,6,FALSE) -> 0.1741523023 | N66: =L66 -> 0.1741523023 | S66: =RIGHT(B66,LEN(B66)-5) -> MTCH | AB66: =B66 -> S.US.MTCH | AC66: =RTD("cqg.rtd",,"StudyData",AB66, "Bar", "", "Low","A","0",,,,,"T") -> 129.68 | AD66: =RTD("cqg.rtd",,"StudyData",AB66, "Bar", "", "Close","D","0",,,,,"T") -> 137.71 | AE66: =(AC66-AD66)/AD66 -> -0.05831094329
A67: 41 | B67: S.US.MU | C67: =RTD("cqg.rtd", ,"ContractData",B67, "LongDescription",, "T") -> Micron Technology Inc | D67: =RTD("cqg.rtd",,"StudyData",B67, "Bar", "", "High","A","0",,,,,"T") -> 96.96 | E67: =RTD("cqg.rtd",,"StudyData",B67, "Bar", "", "Close","D","0",,,,,"T") -> 83.43 | F67: 0.1621718806 | H67: =RANK($F67,$F$1:F$102)+COUNTIF($F$1:F67,F67)-1 -> 41 | I67: =B67 -> S.US.MU | J67: =J66-1 -> 36 | K67: S.US.ADSK | L67: 0.1747082708 | N67: 0.1747082708 | S67: MU | AB67: S.US.MU | AC67: =RTD("cqg.rtd",,"StudyData",AB67, "Bar", "", "Low","A","0",,,,,"T") -> 73.75 | AD67: =RTD("cqg.rtd",,"StudyData",AB67, "Bar", "", "Close","D","0",,,,,"T") -> 83.43 | AE67: -0.1160254105
A68: 86 | B68: S.US.MXIM | C68: =RTD("cqg.rtd", ,"ContractData",B68, "LongDescription",, "T") -> Maxim Integrated Products Inc | D68: =RTD("cqg.rtd",,"StudyData",B68, "Bar", "", "High","A","0",,,,,"T") -> 102.92 | E68: =RTD("cqg.rtd",,"StudyData",B68, "Bar", "", "Close","D","0",,,,,"T") -> 99.7 | F68: 0.03229689067 | H68: =RANK($F68,$F$1:F$102)+COUNTIF($F$1:F68,F68)-1 -> 86 | I68: S.US.MXIM | J68: 35 | K68: S.US.NTES | L68: 0.1750349895 | N68: 0.1750349895 | S68: MXIM | AB68: S.US.MXIM | AC68: =RTD("cqg.rtd",,"StudyData",AB68, "Bar", "", "Low","A","0",,,,,"T") -> 84.82 | AD68: =RTD("cqg.rtd",,"StudyData",AB68, "Bar", "", "Close","D","0",,,,,"T") -> 99.7 | AE68: -0.1492477432
A69: 28 | B69: S.US.NFLX | C69: =RTD("cqg.rtd", ,"ContractData",B69, "LongDescription",, "T") -> Netflix Inc | D69: =RTD("cqg.rtd",,"StudyData",B69, "Bar", "", "High","A","0",,,,,"T") -> 593.28 | E69: =RTD("cqg.rtd",,"StudyData",B69, "Bar", "", "Close","D","0",,,,,"T") -> 492.83 | F69: 0.2038228192 | H69: =RANK($F69,$F$1:F$102)+COUNTIF($F$1:F69,F69)-1 -> 28 | I69: S.US.NFLX | J69: 34 | K69: S.US.AMGN | L69: 0.1768533878 | N69: 0.1768533878 | S69: NFLX | AB69: S.US.NFLX | AC69: =RTD("cqg.rtd",,"StudyData",AB69, "Bar", "", "Low","A","0",,,,,"T") -> 478.54 | AD69: =RTD("cqg.rtd",,"StudyData",AB69, "Bar", "", "Close","D","0",,,,,"T") -> 492.83 | AE69: -0.02899579977
A70: 35 | B70: S.US.NTES | C70: =RTD("cqg.rtd", ,"ContractData",B70, "LongDescription",, "T") -> NetEase, Inc. | D70: =RTD("cqg.rtd",,"StudyData",B70, "Bar", "", "High","A","0",,,,,"T") -> 134.33 | E70: =RTD("cqg.rtd",,"StudyData",B70, "Bar", "", "Close","D","0",,,,,"T") -> 114.32 | F70: 0.1750349895 | H70: =RANK($F70,$F$1:F$102)+COUNTIF($F$1:F70,F70)-1 -> 35 | I70: S.US.NTES | J70: 33 | K70: S.US.MRVL | L70: 0.1785865425 | N70: 0.1785865425 | S70: NTES | AB70: S.US.NTES | AC70: =RTD("cqg.rtd",,"StudyData",AB70, "Bar", "", "Low","A","0",,,,,"T") -> 95.3 | AD70: =RTD("cqg.rtd",,"StudyData",AB70, "Bar", "", "Close","D","0",,,,,"T") -> 114.32 | AE70: -0.1663750875
A71: 101 | B71: S.US.NVDA | C71: =RTD("cqg.rtd", ,"ContractData",B71, "LongDescription",, "T") -> NVIDIA Corp | D71: =RTD("cqg.rtd",,"StudyData",B71, "Bar", "", "High","A","0",,,,,"T") -> 676.75 | E71: =RTD("cqg.rtd",,"StudyData",B71, "Bar", "", "Close","D","0",,,,,"T") -> 671.75 | F71: 0.007443245255 | H71: =RANK($F71,$F$1:F$102)+COUNTIF($F$1:F71,F71)-1 -> 101 | I71: S.US.NVDA | J71: 32 | K71: S.US.CHKP | L71: 0.1815916122 | N71: 0.1815916122 | S71: NVDA | AB71: S.US.NVDA | AC71: =RTD("cqg.rtd",,"StudyData",AB71, "Bar", "", "Low","A","0",,,,,"T") -> 462.66 | AD71: =RTD("cqg.rtd",,"StudyData",AB71, "Bar", "", "Close","D","0",,,,,"T") -> 671.75 | AE71: -0.3112616301
A72: 62 | B72: S.US.NXPI | C72: =RTD("cqg.rtd", ,"ContractData",B72, "LongDescription",, "T") -> NXP Semiconductors N.V. | D72: =RTD("cqg.rtd",,"StudyData",B72, "Bar", "", "High","A","0",,,,,"T") -> 216.43 | E72: =RTD("cqg.rtd",,"StudyData",B72, "Bar", "", "Close","D","0",,,,,"T") -> 201.54 | F72: 0.07388111541 | H72: =RANK($F72,$F$1:F$102)+COUNTIF($F$1:F72,F72)-1 -> 62 | I72: S.US.NXPI | J72: 31 | K72: S.US.LULU | L72: 0.1900900041 | N72: 0.1900900041 | S72: NXPI | AB72: S.US.NXPI | AC72: =RTD("cqg.rtd",,"StudyData",AB72, "Bar", "", "Low","A","0",,,,,"T") -> 156.02 | AD72: =RTD("cqg.rtd",,"StudyData",AB72, "Bar", "", "Close","D","0",,,,,"T") -> 201.54 | AE72: -0.2258608713
A73: 10 | B73: S.US.OKTA | C73: =RTD("cqg.rtd", ,"ContractData",B73, "LongDescription",, "T") -> Okta, Inc. Cl A | D73: =RTD("cqg.rtd",,"StudyData",B73, "Bar", "", "High","A","0",,,,,"T") -> 294 | E73: =RTD("cqg.rtd",,"StudyData",B73, "Bar", "", "Close","D","0",,,,,"T") -> 211.78 | F73: 0.3882330721 | H73: =RANK($F73,$F$1:F$102)+COUNTIF($F$1:F73,F73)-1 -> 10 | I73: S.US.OKTA | J73: 30 | K73: S.US.PYPL | L73: 0.1970107643 | N73: 0.1970107643 | S73: OKTA | AB73: S.US.OKTA | AC73: =RTD("cqg.rtd",,"StudyData",AB73, "Bar", "", "Low","A","0",,,,,"T") -> 199.08 | AD73: =RTD("cqg.rtd",,"StudyData",AB73, "Bar", "", "Close","D","0",,,,,"T") -> 211.78 | AE73: -0.05996789121
A74: 61 | B74: S.US.ORLY | C74: =RTD("cqg.rtd", ,"ContractData",B74, "LongDescription",, "T") -> OReilly Automotive Inc | D74: =RTD("cqg.rtd",,"StudyData",B74, "Bar", "", "High","A","0",,,,,"T") -> 568.63 | E74: =RTD("cqg.rtd",,"StudyData",B74, "Bar", "", "Close","D","0",,,,,"T") -> 528.61 | F74: 0.07570798888 | H74: =RANK($F74,$F$1:F$102)+COUNTIF($F$1:F74,F74)-1 -> 61 | I74: S.US.ORLY | J74: 29 | K74: S.US.FOX | L74: 0.2012542759 | N74: 0.2012542759 | S74: ORLY | AB74: S.US.ORLY | AC74: =RTD("cqg.rtd",,"StudyData",AB74, "Bar", "", "Low","A","0",,,,,"T") -> 424.03 | AD74: =RTD("cqg.rtd",,"StudyData",AB74, "Bar", "", "Close","D","0",,,,,"T") -> 528.61 | AE74: -0.1978396171
A75: 96 | B75: S.US.PAYX | C75: =RTD("cqg.rtd", ,"ContractData",B75, "LongDescription",, "T") -> Paychex Inc | D75: =RTD("cqg.rtd",,"StudyData",B75, "Bar", "", "High","A","0",,,,,"T") -> 102.61 | E75: =RTD("cqg.rtd",,"StudyData",B75, "Bar", "", "Close","D","0",,,,,"T") -> 101.09 | F75: 0.01503610644 | H75: =RANK($F75,$F$1:F$102)+COUNTIF($F$1:F75,F75)-1 -> 96 | I75: S.US.PAYX | J75: 28 | K75: S.US.NFLX | L75: 0.2038228192 | N75: 0.2038228192 | S75: PAYX | AB75: S.US.PAYX | AC75: =RTD("cqg.rtd",,"StudyData",AB75, "Bar", "", "Low","A","0",,,,,"T") -> 85.3 | AD75: =RTD("cqg.rtd",,"StudyData",AB75, "Bar", "", "Close","D","0",,,,,"T") -> 101.09 | AE75: -0.1561974478
A76: 50 | B76: S.US.PCAR | C76: =RTD("cqg.rtd", ,"ContractData",B76, "LongDescription",, "T") -> PACCAR Inc | D76: =RTD("cqg.rtd",,"StudyData",B76, "Bar", "", "High","A","0",,,,,"T") -> 103.19 | E76: =RTD("cqg.rtd",,"StudyData",B76, "Bar", "", "Close","D","0",,,,,"T") -> 91.88 | F76: 0.1230953418 | H76: =RANK($F76,$F$1:F$102)+COUNTIF($F$1:F76,F76)-1 -> 50 | I76: S.US.PCAR | J76: 27 | K76: S.US.SNPS | L76: 0.2125644745 | N76: 0.2125644745 | S76: PCAR | AB76: S.US.PCAR | AC76: =RTD("cqg.rtd",,"StudyData",AB76, "Bar", "", "Low","A","0",,,,,"T") -> 84.23 | AD76: =RTD("cqg.rtd",,"StudyData",AB76, "Bar", "", "Close","D","0",,,,,"T") -> 91.88 | AE76: -0.08326077492
A77: 3 | B77: S.US.PDD | C77: =RTD("cqg.rtd", ,"ContractData",B77, "LongDescription",, "T") -> Pinduoduo Inc | D77: =RTD("cqg.rtd",,"StudyData",B77, "Bar", "", "High","A","0",,,,,"T") -> 212.59 | E77: =RTD("cqg.rtd",,"StudyData",B77, "Bar", "", "Close","D","0",,,,,"T") -> 132.69 | F77: 0.6021553998 | H77: =RANK($F77,$F$1:F$102)+COUNTIF($F$1:F77,F77)-1 -> 3 | I77: S.US.PDD | J77: 26 | K77: S.US.SWKS | L77: 0.2139244273 | N77: 0.2139244273 | S77: PDD | AB77: S.US.PDD | AC77: =RTD("cqg.rtd",,"StudyData",AB77, "Bar", "", "Low","A","0",,,,,"T") -> 112.33 | AD77: =RTD("cqg.rtd",,"StudyData",AB77, "Bar", "", "Close","D","0",,,,,"T") -> 132.69 | AE77: -0.1534403497
A78: 97 | B78: S.US.PEP | C78: =RTD("cqg.rtd", ,"ContractData",B78, "LongDescription",, "T") -> PepsiCo Inc | D78: =RTD("cqg.rtd",,"StudyData",B78, "Bar", "", "High","A","0",,,,,"T") -> 148.85 | E78: =RTD("cqg.rtd",,"StudyData",B78, "Bar", "", "Close","D","0",,,,,"T") -> 146.85 | F78: 0.01361933946 | H78: =RANK($F78,$F$1:F$102)+COUNTIF($F$1:F78,F78)-1 -> 97 | I78: S.US.PEP | J78: 25 | K78: S.US.DLTR | L78: 0.2157357843 | N78: 0.2157357843 | S78: PEP | AB78: S.US.PEP | AC78: =RTD("cqg.rtd",,"StudyData",AB78, "Bar", "", "Low","A","0",,,,,"T") -> 128.32 | AD78: =RTD("cqg.rtd",,"StudyData",AB78, "Bar", "", "Close","D","0",,,,,"T") -> 146.85 | AE78: -0.1261831801
A79: 2 | B79: S.US.PTON | C79: =RTD("cqg.rtd", ,"ContractData",B79, "LongDescription",, "T") -> Peloton Interactive, Inc. Class A | D79: =RTD("cqg.rtd",,"StudyData",B79, "Bar", "", "High","A","0",,,,,"T") -> 171.09 | E79: =RTD("cqg.rtd",,"StudyData",B79, "Bar", "", "Close","D","0",,,,,"T") -> 105.21 | F79: 0.626176219 | H79: =RANK($F79,$F$1:F$102)+COUNTIF($F$1:F79,F79)-1 -> 2 | I79: S.US.PTON | J79: 24 | K79: S.US.INTC | L79: 0.2171672294 | N79: 0.2171672294 | S79: PTON | AB79: S.US.PTON | AC79: =RTD("cqg.rtd",,"StudyData",AB79, "Bar", "", "Low","A","0",,,,,"T") -> 80.48 | AD79: =RTD("cqg.rtd",,"StudyData",AB79, "Bar", "", "Close","D","0",,,,,"T") -> 105.21 | AE79: -0.2350537021
A80: 30 | B80: S.US.PYPL | C80: =RTD("cqg.rtd", ,"ContractData",B80, "LongDescription",, "T") ->  | D80: =RTD("cqg.rtd",,"StudyData",B80, "Bar", "", "High","A","0",,,,,"T") -> 309.14 | E80: =RTD("cqg.rtd",,"StudyData",B80, "Bar", "", "Close","D","0",,,,,"T") -> 258.26 | F80: 0.1970107643 | H80: =RANK($F80,$F$1:F$102)+COUNTIF($F$1:F80,F80)-1 -> 30 | I80: S.US.PYPL | J80: 23 | K80: S.US.CDNS | L80: 0.2196678393 | N80: 0.2196678393 | S80: PYPL | AB80: S.US.PYPL | AC80: =RTD("cqg.rtd",,"StudyData",AB80, "Bar", "", "Low","A","0",,,,,"T") -> 223.09 | AD80: =RTD("cqg.rtd",,"StudyData",AB80, "Bar", "", "Close","D","0",,,,,"T") -> 258.26 | AE80: -0.1361805932
A81: 15 | B81: S.US.QCOM | C81: =RTD("cqg.rtd", ,"ContractData",B81, "LongDescription",, "T") -> QUALCOMM Inc | D81: =RTD("cqg.rtd",,"StudyData",B81, "Bar", "", "High","A","0",,,,,"T") -> 167.94 | E81: =RTD("cqg.rtd",,"StudyData",B81, "Bar", "", "Close","D","0",,,,,"T") -> 131.77 | F81: 0.2744934355 | H81: =RANK($F81,$F$1:F$102)+COUNTIF($F$1:F81,F81)-1 -> 15 | I81: S.US.QCOM | J81: 22 | K81: S.US.XLNX | L81: 0.2213638155 | N81: 0.2213638155 | S81: QCOM | AB81: S.US.QCOM | AC81: =RTD("cqg.rtd",,"StudyData",AB81, "Bar", "", "Low","A","0",,,,,"T") -> 122.99 | AD81: =RTD("cqg.rtd",,"StudyData",AB81, "Bar", "", "Close","D","0",,,,,"T") -> 131.77 | AE81: -0.06663125142
A82: 51 | B82: S.US.REGN | C82: =RTD("cqg.rtd", ,"ContractData",B82, "LongDescription",, "T") -> Regeneron Pharm Inc | D82: =RTD("cqg.rtd",,"StudyData",B82, "Bar", "", "High","A","0",,,,,"T") -> 558.91 | E82: =RTD("cqg.rtd",,"StudyData",B82, "Bar", "", "Close","D","0",,,,,"T") -> 502.85 | F82: 0.1114845381 | H82: =RANK($F82,$F$1:F$102)+COUNTIF($F$1:F82,F82)-1 -> 51 | I82: S.US.REGN | J82: 21 | K82: S.US.VRSK | L82: 0.2232075141 | N82: 0.2232075141 | S82: REGN | AB82: S.US.REGN | AC82: =RTD("cqg.rtd",,"StudyData",AB82, "Bar", "", "Low","A","0",,,,,"T") -> 441 | AD82: =RTD("cqg.rtd",,"StudyData",AB82, "Bar", "", "Close","D","0",,,,,"T") -> 502.85 | AE82: -0.1229989062
A83: 47 | B83: S.US.ROST | C83: =RTD("cqg.rtd", ,"ContractData",B83, "LongDescription",, "T") -> Ross Stores Inc | D83: =RTD("cqg.rtd",,"StudyData",B83, "Bar", "", "High","A","0",,,,,"T") -> 134.21 | E83: =RTD("cqg.rtd",,"StudyData",B83, "Bar", "", "Close","D","0",,,,,"T") -> 118.09 | F83: 0.1365060547 | H83: =RANK($F83,$F$1:F$102)+COUNTIF($F$1:F83,F83)-1 -> 47 | I83: S.US.ROST | J83: 20 | K83: S.US.AMD | L83: 0.2274863929 | N83: 0.2274863929 | S83: ROST | AB83: S.US.ROST | AC83: =RTD("cqg.rtd",,"StudyData",AB83, "Bar", "", "Low","A","0",,,,,"T") -> 107.22 | AD83: =RTD("cqg.rtd",,"StudyData",AB83, "Bar", "", "Close","D","0",,,,,"T") -> 118.09 | AE83: -0.09204843763
A84: 59 | B84: S.US.SBUX | C84: =RTD("cqg.rtd", ,"ContractData",B84, "LongDescription",, "T") -> Starbucks Corp | D84: =RTD("cqg.rtd",,"StudyData",B84, "Bar", "", "High","A","0",,,,,"T") -> 118.98 | E84: =RTD("cqg.rtd",,"StudyData",B84, "Bar", "", "Close","D","0",,,,,"T") -> 110.52 | F84: 0.07654723127 | H84: =RANK($F84,$F$1:F$102)+COUNTIF($F$1:F84,F84)-1 -> 59 | I84: S.US.SBUX | J84: 19 | K84: S.US.FOXA | L84: 0.2341597796 | N84: 0.2341597796 | S84: SBUX | AB84: S.US.SBUX | AC84: =RTD("cqg.rtd",,"StudyData",AB84, "Bar", "", "Low","A","0",,,,,"T") -> 95.92 | AD84: =RTD("cqg.rtd",,"StudyData",AB84, "Bar", "", "Close","D","0",,,,,"T") -> 110.52 | AE84: -0.1321027868
A85: 11 | B85: S.US.SGEN | C85: =RTD("cqg.rtd", ,"ContractData",B85, "LongDescription",, "T") -> Seagen Inc. | D85: =RTD("cqg.rtd",,"StudyData",B85, "Bar", "", "High","A","0",,,,,"T") -> 199 | E85: =RTD("cqg.rtd",,"StudyData",B85, "Bar", "", "Close","D","0",,,,,"T") -> 144.13 | F85: 0.380697981 | H85: =RANK($F85,$F$1:F$102)+COUNTIF($F$1:F85,F85)-1 -> 11 | I85: S.US.SGEN | J85: 18 | K85: S.US.INCY | L85: 0.2394039331 | N85: 0.2394039331 | S85: SGEN | AB85: S.US.SGEN | AC85: =RTD("cqg.rtd",,"StudyData",AB85, "Bar", "", "Low","A","0",,,,,"T") -> 133.2 | AD85: =RTD("cqg.rtd",,"StudyData",AB85, "Bar", "", "Close","D","0",,,,,"T") -> 144.13 | AE85: -0.07583431624
A86: 13 | B86: S.US.SIRI | C86: =RTD("cqg.rtd", ,"ContractData",B86, "LongDescription",, "T") -> Sirius XM Holdings Inc. | D86: =RTD("cqg.rtd",,"StudyData",B86, "Bar", "", "High","A","0",,,,,"T") -> 8.14 | E86: =RTD("cqg.rtd",,"StudyData",B86, "Bar", "", "Close","D","0",,,,,"T") -> 6.35 | F86: 0.2818897638 | H86: =RANK($F86,$F$1:F$102)+COUNTIF($F$1:F86,F86)-1 -> 13 | I86: S.US.SIRI | J86: 17 | K86: S.US.ANSS | L86: 0.2570046546 | N86: 0.2570046546 | S86: SIRI | AB86: S.US.SIRI | AC86: =RTD("cqg.rtd",,"StudyData",AB86, "Bar", "", "Low","A","0",,,,,"T") -> 5.75 | AD86: =RTD("cqg.rtd",,"StudyData",AB86, "Bar", "", "Close","D","0",,,,,"T") -> 6.35 | AE86: -0.09448818898
A87: 27 | B87: S.US.SNPS | C87: =RTD("cqg.rtd", ,"ContractData",B87, "LongDescription",, "T") -> Synopsis | D87: =RTD("cqg.rtd",,"StudyData",B87, "Bar", "", "High","A","0",,,,,"T") -> 300.91 | E87: =RTD("cqg.rtd",,"StudyData",B87, "Bar", "", "Close","D","0",,,,,"T") -> 248.16 | F87: 0.2125644745 | H87: =RANK($F87,$F$1:F$102)+COUNTIF($F$1:F87,F87)-1 -> 27 | I87: S.US.SNPS | J87: 16 | K87: S.US.MTCH | L87: 0.2684627115 | N87: 0.2684627115 | S87: SNPS | AB87: S.US.SNPS | AC87: =RTD("cqg.rtd",,"StudyData",AB87, "Bar", "", "Low","A","0",,,,,"T") -> 217.69 | AD87: =RTD("cqg.rtd",,"StudyData",AB87, "Bar", "", "Close","D","0",,,,,"T") -> 248.16 | AE87: -0.1227836879
A88: 4 | B88: S.US.SPLK | C88: =RTD("cqg.rtd", ,"ContractData",B88, "LongDescription",, "T") -> Splunk, Inc. | D88: =RTD("cqg.rtd",,"StudyData",B88, "Bar", "", "High","A","0",,,,,"T") -> 178.18 | E88: =RTD("cqg.rtd",,"StudyData",B88, "Bar", "", "Close","D","0",,,,,"T") -> 113.29 | F88: 0.5727778268 | H88: =RANK($F88,$F$1:F$102)+COUNTIF($F$1:F88,F88)-1 -> 4 | I88: S.US.SPLK | J88: 15 | K88: S.US.QCOM | L88: 0.2744934355 | N88: 0.2744934355 | S88: SPLK | AB88: S.US.SPLK | AC88: =RTD("cqg.rtd",,"StudyData",AB88, "Bar", "", "Low","A","0",,,,,"T") -> 110.28 | AD88: =RTD("cqg.rtd",,"StudyData",AB88, "Bar", "", "Close","D","0",,,,,"T") -> 113.29 | AE88: -0.02656898226
A89: 26 | B89: S.US.SWKS | C89: =RTD("cqg.rtd", ,"ContractData",B89, "LongDescription",, "T") -> Skyworks Solutions Inc | D89: =RTD("cqg.rtd",,"StudyData",B89, "Bar", "", "High","A","0",,,,,"T") -> 204 | E89: =RTD("cqg.rtd",,"StudyData",B89, "Bar", "", "Close","D","0",,,,,"T") -> 168.05 | F89: 0.2139244273 | H89: =RANK($F89,$F$1:F$102)+COUNTIF($F$1:F89,F89)-1 -> 26 | I89: S.US.SWKS | J89: 14 | K89: S.US.WDAY | L89: 0.2763258858 | N89: 0.2763258858 | S89: SWKS | AB89: S.US.SWKS | AC89: =RTD("cqg.rtd",,"StudyData",AB89, "Bar", "", "Low","A","0",,,,,"T") -> 148.02 | AD89: =RTD("cqg.rtd",,"StudyData",AB89, "Bar", "", "Close","D","0",,,,,"T") -> 168.05 | AE89: -0.119190717
A90: 44 | B90: S.US.TCOM | C90: =RTD("cqg.rtd", ,"ContractData",B90, "LongDescription",, "T") -> Trip.com Group Limited | D90: =RTD("cqg.rtd",,"StudyData",B90, "Bar", "", "High","A","0",,,,,"T") -> 45.19 | E90: =RTD("cqg.rtd",,"StudyData",B90, "Bar", "", "Close","D","0",,,,,"T") -> 39.19 | F90: 0.1531002807 | H90: =RANK($F90,$F$1:F$102)+COUNTIF($F$1:F90,F90)-1 -> 44 | I90: S.US.TCOM | J90: 13 | K90: S.US.SIRI | L90: 0.2818897638 | N90: 0.2818897638 | S90: TCOM | AB90: S.US.TCOM | AC90: =RTD("cqg.rtd",,"StudyData",AB90, "Bar", "", "Low","A","0",,,,,"T") -> 30.98 | AD90: =RTD("cqg.rtd",,"StudyData",AB90, "Bar", "", "Close","D","0",,,,,"T") -> 39.19 | AE90: -0.2094922174
A91: 38 | B91: S.US.TEAM | C91: =RTD("cqg.rtd", ,"ContractData",B91, "LongDescription",, "T") -> Atlassian Corporation Plc | D91: =RTD("cqg.rtd",,"StudyData",B91, "Bar", "", "High","A","0",,,,,"T") -> 262.4 | E91: =RTD("cqg.rtd",,"StudyData",B91, "Bar", "", "Close","D","0",,,,,"T") -> 223.85 | F91: 0.1722135358 | H91: =RANK($F91,$F$1:F$102)+COUNTIF($F$1:F91,F91)-1 -> 38 | I91: S.US.TEAM | J91: 12 | K91: S.US.ILMN | L91: 0.36248192 | N91: 0.36248192 | S91: TEAM | AB91: S.US.TEAM | AC91: =RTD("cqg.rtd",,"StudyData",AB91, "Bar", "", "Low","A","0",,,,,"T") -> 198.8 | AD91: =RTD("cqg.rtd",,"StudyData",AB91, "Bar", "", "Close","D","0",,,,,"T") -> 223.85 | AE91: -0.1119052937
A92: 94 | B92: S.US.TMUS | C92: =RTD("cqg.rtd", ,"ContractData",B92, "LongDescription",, "T") -> T-Mobile US, Inc. | D92: =RTD("cqg.rtd",,"StudyData",B92, "Bar", "", "High","A","0",,,,,"T") -> 143.09 | E92: =RTD("cqg.rtd",,"StudyData",B92, "Bar", "", "Close","D","0",,,,,"T") -> 140.5 | F92: 0.0184341637 | H92: =RANK($F92,$F$1:F$102)+COUNTIF($F$1:F92,F92)-1 -> 94 | I92: S.US.TMUS | J92: 11 | K92: S.US.SGEN | L92: 0.380697981 | N92: 0.380697981 | S92: TMUS | AB92: S.US.TMUS | AC92: =RTD("cqg.rtd",,"StudyData",AB92, "Bar", "", "Low","A","0",,,,,"T") -> 115.89 | AD92: =RTD("cqg.rtd",,"StudyData",AB92, "Bar", "", "Close","D","0",,,,,"T") -> 140.5 | AE92: -0.1751601423
A93: 6 | B93: S.US.TSLA | C93: =RTD("cqg.rtd", ,"ContractData",B93, "LongDescription",, "T") -> Tesla, Inc. | D93: =RTD("cqg.rtd",,"StudyData",B93, "Bar", "", "High","A","0",,,,,"T") -> 900.4 | E93: =RTD("cqg.rtd",,"StudyData",B93, "Bar", "", "Close","D","0",,,,,"T") -> 599.85 | F93: 0.5010419271 | H93: =RANK($F93,$F$1:F$102)+COUNTIF($F$1:F93,F93)-1 -> 6 | I93: S.US.TSLA | J93: 10 | K93: S.US.OKTA | L93: 0.3882330721 | N93: 0.3882330721 | S93: TSLA | AB93: S.US.TSLA | AC93: =RTD("cqg.rtd",,"StudyData",AB93, "Bar", "", "Low","A","0",,,,,"T") -> 539.49 | AD93: =RTD("cqg.rtd",,"StudyData",AB93, "Bar", "", "Close","D","0",,,,,"T") -> 599.85 | AE93: -0.1006251563
A94: 67 | B94: S.US.TXN | C94: =RTD("cqg.rtd", ,"ContractData",B94, "LongDescription",, "T") -> Texas Instruments Inc | D94: =RTD("cqg.rtd",,"StudyData",B94, "Bar", "", "High","A","0",,,,,"T") -> 197.58 | E94: =RTD("cqg.rtd",,"StudyData",B94, "Bar", "", "Close","D","0",,,,,"T") -> 185.41 | F94: 0.06563831509 | H94: =RANK($F94,$F$1:F$102)+COUNTIF($F$1:F94,F94)-1 -> 67 | I94: S.US.TXN | J94: 9 | K94: S.US.DOCU | L94: 0.4027600957 | N94: 0.4027600957 | S94: TXN | AB94: S.US.TXN | AC94: =RTD("cqg.rtd",,"StudyData",AB94, "Bar", "", "Low","A","0",,,,,"T") -> 160.75 | AD94: =RTD("cqg.rtd",,"StudyData",AB94, "Bar", "", "Close","D","0",,,,,"T") -> 185.41 | AE94: -0.1330025349
A95: 21 | B95: S.US.VRSK | C95: =RTD("cqg.rtd", ,"ContractData",B95, "LongDescription",, "T") -> Verisk Analytics, Inc. | D95: =RTD("cqg.rtd",,"StudyData",B95, "Bar", "", "High","A","0",,,,,"T") -> 209.67 | E95: =RTD("cqg.rtd",,"StudyData",B95, "Bar", "", "Close","D","0",,,,,"T") -> 171.41 | F95: 0.2232075141 | H95: =RANK($F95,$F$1:F$102)+COUNTIF($F$1:F95,F95)-1 -> 21 | I95: S.US.VRSK | J95: 8 | K95: S.US.ZM | L95: 0.4034482759 | N95: 0.4034482759 | S95: VRSK | AB95: S.US.VRSK | AC95: =RTD("cqg.rtd",,"StudyData",AB95, "Bar", "", "Low","A","0",,,,,"T") -> 159.79 | AD95: =RTD("cqg.rtd",,"StudyData",AB95, "Bar", "", "Close","D","0",,,,,"T") -> 171.41 | AE95: -0.06779067732
A96: 78 | B96: S.US.VRSN | C96: =RTD("cqg.rtd", ,"ContractData",B96, "LongDescription",, "T") -> Verisign Inc | D96: =RTD("cqg.rtd",,"StudyData",B96, "Bar", "", "High","A","0",,,,,"T") -> 226.18 | E96: =RTD("cqg.rtd",,"StudyData",B96, "Bar", "", "Close","D","0",,,,,"T") -> 214.58 | F96: 0.05405909218 | H96: =RANK($F96,$F$1:F$102)+COUNTIF($F$1:F96,F96)-1 -> 78 | I96: S.US.VRSN | J96: 7 | K96: S.US.JD | L96: 0.4454084357 | N96: 0.4454084357 | S96: VRSN | AB96: S.US.VRSN | AC96: =RTD("cqg.rtd",,"StudyData",AB96, "Bar", "", "Low","A","0",,,,,"T") -> 184.6 | AD96: =RTD("cqg.rtd",,"StudyData",AB96, "Bar", "", "Close","D","0",,,,,"T") -> 214.58 | AE96: -0.1397147917
A97: 42 | B97: S.US.VRTX | C97: =RTD("cqg.rtd", ,"ContractData",B97, "LongDescription",, "T") -> Vertex Pharmaceuticals Incorporated | D97: =RTD("cqg.rtd",,"StudyData",B97, "Bar", "", "High","A","0",,,,,"T") -> 242.99 | E97: =RTD("cqg.rtd",,"StudyData",B97, "Bar", "", "Close","D","0",,,,,"T") -> 209.46 | F97: 0.1600782966 | H97: =RANK($F97,$F$1:F$102)+COUNTIF($F$1:F97,F97)-1 -> 42 | I97: S.US.VRTX | J97: 6 | K97: S.US.TSLA | L97: 0.5010419271 | N97: 0.5010419271 | S97: VRTX | AB97: S.US.VRTX | AC97: =RTD("cqg.rtd",,"StudyData",AB97, "Bar", "", "Low","A","0",,,,,"T") -> 204.62 | AD97: =RTD("cqg.rtd",,"StudyData",AB97, "Bar", "", "Close","D","0",,,,,"T") -> 209.46 | AE97: -0.02310703714
A98: 75 | B98: S.US.WBA | C98: =RTD("cqg.rtd", ,"ContractData",B98, "LongDescription",, "T") -> Walgreens Boots Alliance, Inc. | D98: =RTD("cqg.rtd",,"StudyData",B98, "Bar", "", "High","A","0",,,,,"T") -> 57.05 | E98: =RTD("cqg.rtd",,"StudyData",B98, "Bar", "", "Close","D","0",,,,,"T") -> 53.95 | F98: 0.05746061168 | H98: =RANK($F98,$F$1:F$102)+COUNTIF($F$1:F98,F98)-1 -> 75 | I98: S.US.WBA | J98: 5 | K98: S.US.MELI | L98: 0.5105966109 | N98: 0.5105966109 | S98: WBA | AB98: S.US.WBA | AC98: =RTD("cqg.rtd",,"StudyData",AB98, "Bar", "", "Low","A","0",,,,,"T") -> 39.94 | AD98: =RTD("cqg.rtd",,"StudyData",AB98, "Bar", "", "Close","D","0",,,,,"T") -> 53.95 | AE98: -0.2596848934
A99: 14 | B99: S.US.WDAY | C99: =RTD("cqg.rtd", ,"ContractData",B99, "LongDescription",, "T") -> Workday, Inc. | D99: =RTD("cqg.rtd",,"StudyData",B99, "Bar", "", "High","A","0",,,,,"T") -> 282.77 | E99: =RTD("cqg.rtd",,"StudyData",B99, "Bar", "", "Close","D","0",,,,,"T") -> 221.55 | F99: 0.2763258858 | H99: =RANK($F99,$F$1:F$102)+COUNTIF($F$1:F99,F99)-1 -> 14 | I99: S.US.WDAY | J99: 4 | K99: S.US.SPLK | L99: 0.5727778268 | N99: 0.5727778268 | S99: WDAY | AB99: S.US.WDAY | AC99: =RTD("cqg.rtd",,"StudyData",AB99, "Bar", "", "Low","A","0",,,,,"T") -> 217.6 | AD99: =RTD("cqg.rtd",,"StudyData",AB99, "Bar", "", "Close","D","0",,,,,"T") -> 221.55 | AE99: -0.01782893252
A100: 82 | B100: S.US.XEL | C100: =RTD("cqg.rtd", ,"ContractData",B100, "LongDescription",, "T") -> Xcel Energy Inc | D100: =RTD("cqg.rtd",,"StudyData",B100, "Bar", "", "High","A","0",,,,,"T") -> 72.94 | E100: =RTD("cqg.rtd",,"StudyData",B100, "Bar", "", "Close","D","0",,,,,"T") -> 70.14 | F100: 0.03992015968 | H100: =RANK($F100,$F$1:F$102)+COUNTIF($F$1:F100,F100)-1 -> 82 | I100: S.US.XEL | J100: 3 | K100: S.US.PDD | L100: 0.6021553998 | N100: 0.6021553998 | S100: XEL | AB100: S.US.XEL | AC100: =RTD("cqg.rtd",,"StudyData",AB100, "Bar", "", "Low","A","0",,,,,"T") -> 57.23 | AD100: =RTD("cqg.rtd",,"StudyData",AB100, "Bar", "", "Close","D","0",,,,,"T") -> 70.14 | AE100: -0.1840604505
A101: 22 | B101: S.US.XLNX | C101: =RTD("cqg.rtd", ,"ContractData",B101, "LongDescription",, "T") -> Xilinx Inc | D101: =RTD("cqg.rtd",,"StudyData",B101, "Bar", "", "High","A","0",,,,,"T") -> 154.93 | E101: =RTD("cqg.rtd",,"StudyData",B101, "Bar", "", "Close","D","0",,,,,"T") -> 126.85 | F101: 0.2213638155 | H101: =RANK($F101,$F$1:F$102)+COUNTIF($F$1:F101,F101)-1 -> 22 | I101: S.US.XLNX | J101: 2 | K101: S.US.PTON | L101: 0.626176219 | N101: 0.626176219 | S101: XLNX | AB101: S.US.XLNX | AC101: =RTD("cqg.rtd",,"StudyData",AB101, "Bar", "", "Low","A","0",,,,,"T") -> 111.84 | AD101: =RTD("cqg.rtd",,"StudyData",AB101, "Bar", "", "Close","D","0",,,,,"T") -> 126.85 | AE101: -0.1183287347
A102: 8 | B102: S.US.ZM | C102: =RTD("cqg.rtd", ,"ContractData",B102, "LongDescription",, "T") -> Zoom Video Communications, Inc. Class A | D102: =RTD("cqg.rtd",,"StudyData",B102, "Bar", "", "High","A","0",,,,,"T") -> 451.77 | E102: =RTD("cqg.rtd",,"StudyData",B102, "Bar", "", "Close","D","0",,,,,"T") -> 321.9 | F102: 0.4034482759 | H102: =RANK($F102,$F$1:F$102)+COUNTIF($F$1:F102,F102)-1 -> 8 | I102: S.US.ZM | J102: 1 | K102: S.US.BIDU | L102: 0.8484059179 | N102: 0.8484059179 | S102: ZM | AB102: S.US.ZM | AC102: =RTD("cqg.rtd",,"StudyData",AB102, "Bar", "", "Low","A","0",,,,,"T") -> 273.2 | AD102: =RTD("cqg.rtd",,"StudyData",AB102, "Bar", "", "Close","D","0",,,,,"T") -> 321.9 | AE102: -0.1512892203

Sheet Sheet3 (hidden)
B1: DATE | C1: TIME | D1: OPEN | E1: HIGH | F1: LOW | G1: CLOSE | H1: Date | I1: Time | K1: Chart | L1: Symbol | M1: Continuation | N1: Decimal=T, Tick=D | O1: CustomSessionName | P1: Type All or PrimaryOnly
A2: 0 | B2: =RTD("cqg.rtd",,"StudyData", $L$2, "FG", "", "Time", $K$2,$A2, $P$2, "", "","False") -> 2021-06-03 | C2: =RTD("cqg.rtd",,"StudyData", $L$2, "FG", "", "Time", $K$2, $A2,$P$2,$O$2, "","False") -> 44350 | D2: =RTD("cqg.rtd",,"StudyData", $L$2, "FG", "", "Open", $K$2, $A2, $P$2,$O$2,,$M$2,$N$2) -> 330.55 | E2: =RTD("cqg.rtd",,"StudyData", $L$2, "FG", "", "High", $K$2, $A2, $P$2,$O$2,,$M$2,$N$2) -> 330.89 | F2: =RTD("cqg.rtd",,"StudyData", $L$2, "FG", "", "Low", $K$2, $A2, $P$2,$O$2,,$M$2,$N$2) -> 328.28 | G2: =RTD("cqg.rtd",,"StudyData", $L$2, "FG", "", "Close", $K$2, $A2, $P$2,$O$2,,$M$2,$N$2) -> 329.35 | H2: =B2 -> 2021-06-03 | I2: =B2 -> 44350 | J2: =IF(OR($K$2="D",$K$2="W",$K$2=",'M"),TEXT(H2,"MM/DD/YY"),TEXT(I2,"HH:MM")) -> 06/03/21 | K2: =MainDisplay!O4 -> D | L2: =MainDisplay!M4 -> QQQ | M2: TRUE | N2: T | P2: PrimaryOnly
A3: =A2-1 -> -1 | B3: =RTD("cqg.rtd",,"StudyData", $L$2, "FG", "", "Time", $K$2,$A3, $P$2, "", "","False") -> 2021-06-02 | C3: =RTD("cqg.rtd",,"StudyData", $L$2, "FG", "", "Time", $K$2, $A3,$P$2,$O$2, "","False") -> 44349 | D3: =RTD("cqg.rtd",,"StudyData", $L$2, "FG", "", "Open", $K$2, $A3, $P$2,$O$2,,$M$2,$N$2) -> 333.25 | E3: =RTD("cqg.rtd",,"StudyData", $L$2, "FG", "", "High", $K$2, $A3, $P$2,$O$2,,$M$2,$N$2) -> 334.34 | F3: =RTD("cqg.rtd",,"StudyData", $L$2, "FG", "", "Low", $K$2, $A3, $P$2,$O$2,,$M$2,$N$2) -> 331.69 | G3: =RTD("cqg.rtd",,"StudyData", $L$2, "FG", "", "Close", $K$2, $A3, $P$2,$O$2,,$M$2,$N$2) -> 333.47 | H3: =B3 -> 2021-06-02 | I3: =B3 -> 44349 | J3: =IF(OR($K$2="D",$K$2="W",$K$2=",'M"),TEXT(H3,"MM/DD/YY"),TEXT(I3,"HH:MM")) -> 06/02/21
A4: =A3-1 -> -2 | B4: =RTD("cqg.rtd",,"StudyData", $L$2, "FG", "", "Time", $K$2,$A4, $P$2, "", "","False") -> 2021-06-01 | C4: =RTD("cqg.rtd",,"StudyData", $L$2, "FG", "", "Time", $K$2, $A4,$P$2,$O$2, "","False") -> 44348 | D4: =RTD("cqg.rtd",,"StudyData", $L$2, "FG", "", "Open", $K$2, $A4, $P$2,$O$2,,$M$2,$N$2) -> 335.3 | E4: =RTD("cqg.rtd",,"StudyData", $L$2, "FG", "", "High", $K$2, $A4, $P$2,$O$2,,$M$2,$N$2) -> 335.78 | F4: =RTD("cqg.rtd",,"StudyData", $L$2, "FG", "", "Low", $K$2, $A4, $P$2,$O$2,,$M$2,$N$2) -> 331.43 | G4: =RTD("cqg.rtd",,"StudyData", $L$2, "FG", "", "Close", $K$2, $A4, $P$2,$O$2,,$M$2,$N$2) -> 332.82 | H4: 2021-06-01 | I4: 44348 | J4: 06/01/21 | K4: Tick Size: | L4: =RTD("cqg.rtd", ,"ContractData", "Tsize("&L2&")", "LastQuoteToday",,"T") -> 0.01
A5: -3 | B5: =RTD("cqg.rtd",,"StudyData", $L$2, "FG", "", "Time", $K$2,$A5, $P$2, "", "","False") -> 2021-05-28 | C5: =RTD("cqg.rtd",,"StudyData", $L$2, "FG", "", "Time", $K$2, $A5,$P$2,$O$2, "","False") -> 44344 | D5: =RTD("cqg.rtd",,"StudyData", $L$2, "FG", "", "Open", $K$2, $A5, $P$2,$O$2,,$M$2,$N$2) -> 334.12 | E5: =RTD("cqg.rtd",,"StudyData", $L$2, "FG", "", "High", $K$2, $A5, $P$2,$O$2,,$M$2,$N$2) -> 335.56 | F5: =RTD("cqg.rtd",,"StudyData", $L$2, "FG", "", "Low", $K$2, $A5, $P$2,$O$2,,$M$2,$N$2) -> 332.91 | G5: =RTD("cqg.rtd",,"StudyData", $L$2, "FG", "", "Close", $K$2, $A5, $P$2,$O$2,,$M$2,$N$2) -> 333.93 | H5: 2021-05-28 | I5: 44344 | J5: 05/28/21 | K5: Tick Value: | L5: =RTD("cqg.rtd", ,"ContractData", "PriceToDollar(Tsize("&L2&"))", "LastQuoteToday",,"T") -> 0.01
A6: -4 | B6: =RTD("cqg.rtd",,"StudyData", $L$2, "FG", "", "Time", $K$2,$A6, $P$2, "", "","False") -> 2021-05-27 | C6: =RTD("cqg.rtd",,"StudyData", $L$2, "FG", "", "Time", $K$2, $A6,$P$2,$O$2, "","False") -> 44343 | D6: =RTD("cqg.rtd",,"StudyData", $L$2, "FG", "", "Open", $K$2, $A6, $P$2,$O$2,,$M$2,$N$2) -> 333.67 | E6: =RTD("cqg.rtd",,"StudyData", $L$2, "FG", "", "High", $K$2, $A6, $P$2,$O$2,,$M$2,$N$2) -> 334.54 | F6: =RTD("cqg.rtd",,"StudyData", $L$2, "FG", "", "Low", $K$2, $A6, $P$2,$O$2,,$M$2,$N$2) -> 332.67 | G6: =RTD("cqg.rtd",,"StudyData", $L$2, "FG", "", "Close", $K$2, $A6, $P$2,$O$2,,$M$2,$N$2) -> 332.88 | H6: 2021-05-27 | I6: 44343 | J6: 05/27/21 | N6: =MAX(E2:E55)+8*L4 -> 342.88
A7: -5 | B7: =RTD("cqg.rtd",,"StudyData", $L$2, "FG", "", "Time", $K$2,$A7, $P$2, "", "","False") -> 2021-05-26 | C7: =RTD("cqg.rtd",,"StudyData", $L$2, "FG", "", "Time", $K$2, $A7,$P$2,$O$2, "","False") -> 44342 | D7: =RTD("cqg.rtd",,"StudyData", $L$2, "FG", "", "Open", $K$2, $A7, $P$2,$O$2,,$M$2,$N$2) -> 333.66 | E7: =RTD("cqg.rtd",,"StudyData", $L$2, "FG", "", "High", $K$2, $A7, $P$2,$O$2,,$M$2,$N$2) -> 334.61 | F7: =RTD("cqg.rtd",,"StudyData", $L$2, "FG", "", "Low", $K$2, $A7, $P$2,$O$2,,$M$2,$N$2) -> 332.95 | G7: =RTD("cqg.rtd",,"StudyData", $L$2, "FG", "", "Close", $K$2, $A7, $P$2,$O$2,,$M$2,$N$2) -> 334.13 | H7: 2021-05-26 | I7: 44342 | J7: 05/26/21 | N7: =MIN(F2:F55)-8*L4 -> 307.3
A8: -6 | B8: =RTD("cqg.rtd",,"StudyData", $L$2, "FG", "", "Time", $K$2,$A8, $P$2, "", "","False") -> 2021-05-25 | C8: =RTD("cqg.rtd",,"StudyData", $L$2, "FG", "", "Time", $K$2, $A8,$P$2,$O$2, "","False") -> 44341 | D8: =RTD("cqg.rtd",,"StudyData", $L$2, "FG", "", "Open", $K$2, $A8, $P$2,$O$2,,$M$2,$N$2) -> 334.07 | E8: =RTD("cqg.rtd",,"StudyData", $L$2, "FG", "", "High", $K$2, $A8, $P$2,$O$2,,$M$2,$N$2) -> 334.81 | F8: =RTD("cqg.rtd",,"StudyData", $L$2, "FG", "", "Low", $K$2, $A8, $P$2,$O$2,,$M$2,$N$2) -> 331.75 | G8: =RTD("cqg.rtd",,"StudyData", $L$2, "FG", "", "Close", $K$2, $A8, $P$2,$O$2,,$M$2,$N$2) -> 332.97 | H8: 2021-05-25 | I8: 44341 | J8: 05/25/21 | L8: =RTD("cqg.rtd",,"ContractData",L2,"LongDescription",,"T")&" NC: "&L11&TEXT(L10,"$0.00")&", "&L11&TEXT(M10,"0.00%") -> Invesco QQQ Trust Series 1 NC: -$4.13, -1.24%
A9: -7 | B9: =RTD("cqg.rtd",,"StudyData", $L$2, "FG", "", "Time", $K$2,$A9, $P$2, "", "","False") -> 2021-05-24 | C9: =RTD("cqg.rtd",,"StudyData", $L$2, "FG", "", "Time", $K$2, $A9,$P$2,$O$2, "","False") -> 44340 | D9: =RTD("cqg.rtd",,"StudyData", $L$2, "FG", "", "Open", $K$2, $A9, $P$2,$O$2,,$M$2,$N$2) -> 329.37 | E9: =RTD("cqg.rtd",,"StudyData", $L$2, "FG", "", "High", $K$2, $A9, $P$2,$O$2,,$M$2,$N$2) -> 333.67 | F9: =RTD("cqg.rtd",,"StudyData", $L$2, "FG", "", "Low", $K$2, $A9, $P$2,$O$2,,$M$2,$N$2) -> 329 | G9: =RTD("cqg.rtd",,"StudyData", $L$2, "FG", "", "Close", $K$2, $A9, $P$2,$O$2,,$M$2,$N$2) -> 332.51 | H9: 2021-05-24 | I9: 44340 | J9: 05/24/21 | N9: =MAX(E2:E45) -> 342.8
A10: -8 | B10: =RTD("cqg.rtd",,"StudyData", $L$2, "FG", "", "Time", $K$2,$A10, $P$2, "", "","False") -> 2021-05-21 | C10: =RTD("cqg.rtd",,"StudyData", $L$2, "FG", "", "Time", $K$2, $A10,$P$2,$O$2, "","False") -> 44337 | D10: =RTD("cqg.rtd",,"StudyData", $L$2, "FG", "", "Open", $K$2, $A10, $P$2,$O$2,,$M$2,$N$2) -> 330.43 | E10: =RTD("cqg.rtd",,"StudyData", $L$2, "FG", "", "High", $K$2, $A10, $P$2,$O$2,,$M$2,$N$2) -> 330.86 | F10: =RTD("cqg.rtd",,"StudyData", $L$2, "FG", "", "Low", $K$2, $A10, $P$2,$O$2,,$M$2,$N$2) -> 326.64 | G10: =RTD("cqg.rtd",,"StudyData", $L$2, "FG", "", "Close", $K$2, $A10, $P$2,$O$2,,$M$2,$N$2) -> 327.01 | H10: 2021-05-21 | I10: 44337 | J10: 05/21/21 | L10: =IF(M10="","",RTD("cqg.rtd", ,"ContractData",L2, "NetLastTrade",,"T")) -> -4.13 | M10: =IFERROR(RTD("cqg.rtd", ,"ContractData",L2, "PercentNetLastTrade",,"T")/100,"") -> -0.01238492218
A11: -9 | B11: =RTD("cqg.rtd",,"StudyData", $L$2, "FG", "", "Time", $K$2,$A11, $P$2, "", "","False") -> 2021-05-20 | C11: =RTD("cqg.rtd",,"StudyData", $L$2, "FG", "", "Time", $K$2, $A11,$P$2,$O$2, "","False") -> 44336 | D11: =RTD("cqg.rtd",,"StudyData", $L$2, "FG", "", "Open", $K$2, $A11, $P$2,$O$2,,$M$2,$N$2) -> 324.12 | E11: =RTD("cqg.rtd",,"StudyData", $L$2, "FG", "", "High", $K$2, $A11, $P$2,$O$2,,$M$2,$N$2) -> 329.71 | F11: =RTD("cqg.rtd",,"StudyData", $L$2, "FG", "", "Low", $K$2, $A11, $P$2,$O$2,,$M$2,$N$2) -> 323.89 | G11: =RTD("cqg.rtd",,"StudyData", $L$2, "FG", "", "Close", $K$2, $A11, $P$2,$O$2,,$M$2,$N$2) -> 328.83 | H11: 2021-05-20 | I11: 44336 | J11: 05/20/21 | L11: =IF(L10="","",IF(L10>0,"+"," ")) -> 
A12: -10 | B12: =RTD("cqg.rtd",,"StudyData", $L$2, "FG", "", "Time", $K$2,$A12, $P$2, "", "","False") -> 2021-05-19 | C12: =RTD("cqg.rtd",,"StudyData", $L$2, "FG", "", "Time", $K$2, $A12,$P$2,$O$2, "","False") -> 44335 | D12: =RTD("cqg.rtd",,"StudyData", $L$2, "FG", "", "Open", $K$2, $A12, $P$2,$O$2,,$M$2,$N$2) -> 316.66 | E12: =RTD("cqg.rtd",,"StudyData", $L$2, "FG", "", "High", $K$2, $A12, $P$2,$O$2,,$M$2,$N$2) -> 322.9 | F12: =RTD("cqg.rtd",,"StudyData", $L$2, "FG", "", "Low", $K$2, $A12, $P$2,$O$2,,$M$2,$N$2) -> 316.3 | G12: =RTD("cqg.rtd",,"StudyData", $L$2, "FG", "", "Close", $K$2, $A12, $P$2,$O$2,,$M$2,$N$2) -> 322.59 | H12: 2021-05-19 | I12: 44335 | J12: 05/19/21
A13: -11 | B13: =RTD("cqg.rtd",,"StudyData", $L$2, "FG", "", "Time", $K$2,$A13, $P$2, "", "","False") -> 2021-05-18 | C13: =RTD("cqg.rtd",,"StudyData", $L$2, "FG", "", "Time", $K$2, $A13,$P$2,$O$2, "","False") -> 44334 | D13: =RTD("cqg.rtd",,"StudyData", $L$2, "FG", "", "Open", $K$2, $A13, $P$2,$O$2,,$M$2,$N$2) -> 325.39 | E13: =RTD("cqg.rtd",,"StudyData", $L$2, "FG", "", "High", $K$2, $A13, $P$2,$O$2,,$M$2,$N$2) -> 326.65 | F13: =RTD("cqg.rtd",,"StudyData", $L$2, "FG", "", "Low", $K$2, $A13, $P$2,$O$2,,$M$2,$N$2) -> 321.85 | G13: =RTD("cqg.rtd",,"StudyData", $L$2, "FG", "", "Close", $K$2, $A13, $P$2,$O$2,,$M$2,$N$2) -> 322.22 | H13: 2021-05-18 | I13: 44334 | J13: 05/18/21
A14: -12 | B14: =RTD("cqg.rtd",,"StudyData", $L$2, "FG", "", "Time", $K$2,$A14, $P$2, "", "","False") -> 2021-05-17 | C14: =RTD("cqg.rtd",,"StudyData", $L$2, "FG", "", "Time", $K$2, $A14,$P$2,$O$2, "","False") -> 44333 | D14: =RTD("cqg.rtd",,"StudyData", $L$2, "FG", "", "Open", $K$2, $A14, $P$2,$O$2,,$M$2,$N$2) -> 324.63 | E14: =RTD("cqg.rtd",,"StudyData", $L$2, "FG", "", "High", $K$2, $A14, $P$2,$O$2,,$M$2,$N$2) -> 325.35 | F14: =RTD("cqg.rtd",,"StudyData", $L$2, "FG", "", "Low", $K$2, $A14, $P$2,$O$2,,$M$2,$N$2) -> 321.45 | G14: =RTD("cqg.rtd",,"StudyData", $L$2, "FG", "", "Close", $K$2, $A14, $P$2,$O$2,,$M$2,$N$2) -> 324.41 | H14: 2021-05-17 | I14: 44333 | J14: 05/17/21
A15: -13 | B15: =RTD("cqg.rtd",,"StudyData", $L$2, "FG", "", "Time", $K$2,$A15, $P$2, "", "","False") -> 2021-05-14 | C15: =RTD("cqg.rtd",,"StudyData", $L$2, "FG", "", "Time", $K$2, $A15,$P$2,$O$2, "","False") -> 44330 | D15: =RTD("cqg.rtd",,"StudyData", $L$2, "FG", "", "Open", $K$2, $A15, $P$2,$O$2,,$M$2,$N$2) -> 322.6 | E15: =RTD("cqg.rtd",,"StudyData", $L$2, "FG", "", "High", $K$2, $A15, $P$2,$O$2,,$M$2,$N$2) -> 327.33 | F15: =RTD("cqg.rtd",,"StudyData", $L$2, "FG", "", "Low", $K$2, $A15, $P$2,$O$2,,$M$2,$N$2) -> 322.08 | G15: =RTD("cqg.rtd",,"StudyData", $L$2, "FG", "", "Close", $K$2, $A15, $P$2,$O$2,,$M$2,$N$2) -> 326.39 | H15: 2021-05-14 | I15: 44330 | J15: 05/14/21
A16: -14 | B16: =RTD("cqg.rtd",,"StudyData", $L$2, "FG", "", "Time", $K$2,$A16, $P$2, "", "","False") -> 2021-05-13 | C16: =RTD("cqg.rtd",,"StudyData", $L$2, "FG", "", "Time", $K$2, $A16,$P$2,$O$2, "","False") -> 44329 | D16: =RTD("cqg.rtd",,"StudyData", $L$2, "FG", "", "Open", $K$2, $A16, $P$2,$O$2,,$M$2,$N$2) -> 319.92 | E16: =RTD("cqg.rtd",,"StudyData", $L$2, "FG", "", "High", $K$2, $A16, $P$2,$O$2,,$M$2,$N$2) -> 322.4 | F16: =RTD("cqg.rtd",,"StudyData", $L$2, "FG", "", "Low", $K$2, $A16, $P$2,$O$2,,$M$2,$N$2) -> 316.9 | G16: =RTD("cqg.rtd",,"StudyData", $L$2, "FG", "", "Close", $K$2, $A16, $P$2,$O$2,,$M$2,$N$2) -> 319.34 | H16: 2021-05-13 | I16: 44329 | J16: 05/13/21
A17: -15 | B17: =RTD("cqg.rtd",,"StudyData", $L$2, "FG", "", "Time", $K$2,$A17, $P$2, "", "","False") -> 2021-05-12 | C17: =RTD("cqg.rtd",,"StudyData", $L$2, "FG", "", "Time", $K$2, $A17,$P$2,$O$2, "","False") -> 44328 | D17: =RTD("cqg.rtd",,"StudyData", $L$2, "FG", "", "Open", $K$2, $A17, $P$2,$O$2,,$M$2,$N$2) -> 320.23 | E17: =RTD("cqg.rtd",,"StudyData", $L$2, "FG", "", "High", $K$2, $A17, $P$2,$O$2,,$M$2,$N$2) -> 322.62 | F17: =RTD("cqg.rtd",,"StudyData", $L$2, "FG", "", "Low", $K$2, $A17, $P$2,$O$2,,$M$2,$N$2) -> 316 | G17: =RTD("cqg.rtd",,"StudyData", $L$2, "FG", "", "Close", $K$2, $A17, $P$2,$O$2,,$M$2,$N$2) -> 316.89 | H17: 2021-05-12 | I17: 44328 | J17: 05/12/21
A18: -16 | B18: =RTD("cqg.rtd",,"StudyData", $L$2, "FG", "", "Time", $K$2,$A18, $P$2, "", "","False") -> 2021-05-11 | C18: =RTD("cqg.rtd",,"StudyData", $L$2, "FG", "", "Time", $K$2, $A18,$P$2,$O$2, "","False") -> 44327 | D18: =RTD("cqg.rtd",,"StudyData", $L$2, "FG", "", "Open", $K$2, $A18, $P$2,$O$2,,$M$2,$N$2) -> 319.7 | E18: =RTD("cqg.rtd",,"StudyData", $L$2, "FG", "", "High", $K$2, $A18, $P$2,$O$2,,$M$2,$N$2) -> 326.12 | F18: =RTD("cqg.rtd",,"StudyData", $L$2, "FG", "", "Low", $K$2, $A18, $P$2,$O$2,,$M$2,$N$2) -> 319.02 | G18: =RTD("cqg.rtd",,"StudyData", $L$2, "FG", "", "Close", $K$2, $A18, $P$2,$O$2,,$M$2,$N$2) -> 325.31 | H18: 2021-05-11 | I18: 44327 | J18: 05/11/21
A19: -17 | B19: =RTD("cqg.rtd",,"StudyData", $L$2, "FG", "", "Time", $K$2,$A19, $P$2, "", "","False") -> 2021-05-10 | C19: =RTD("cqg.rtd",,"StudyData", $L$2, "FG", "", "Time", $K$2, $A19,$P$2,$O$2, "","False") -> 44326 | D19: =RTD("cqg.rtd",,"StudyData", $L$2, "FG", "", "Open", $K$2, $A19, $P$2,$O$2,,$M$2,$N$2) -> 332.78 | E19: =RTD("cqg.rtd",,"StudyData", $L$2, "FG", "", "High", $K$2, $A19, $P$2,$O$2,,$M$2,$N$2) -> 332.96 | F19: =RTD("cqg.rtd",,"StudyData", $L$2, "FG", "", "Low", $K$2, $A19, $P$2,$O$2,,$M$2,$N$2) -> 325.08 | G19: =RTD("cqg.rtd",,"StudyData", $L$2, "FG", "", "Close", $K$2, $A19, $P$2,$O$2,,$M$2,$N$2) -> 325.76 | H19: 2021-05-10 | I19: 44326 | J19: 05/10/21
A20: -18 | B20: =RTD("cqg.rtd",,"StudyData", $L$2, "FG", "", "Time", $K$2,$A20, $P$2, "", "","False") -> 2021-05-07 | C20: =RTD("cqg.rtd",,"StudyData", $L$2, "FG", "", "Time", $K$2, $A20,$P$2,$O$2, "","False") -> 44323 | D20: =RTD("cqg.rtd",,"StudyData", $L$2, "FG", "", "Open", $K$2, $A20, $P$2,$O$2,,$M$2,$N$2) -> 334.37 | E20: =RTD("cqg.rtd",,"StudyData", $L$2, "FG", "", "High", $K$2, $A20, $P$2,$O$2,,$M$2,$N$2) -> 336.65 | F20: =RTD("cqg.rtd",,"StudyData", $L$2, "FG", "", "Low", $K$2, $A20, $P$2,$O$2,,$M$2,$N$2) -> 333.06 | G20: =RTD("cqg.rtd",,"StudyData", $L$2, "FG", "", "Close", $K$2, $A20, $P$2,$O$2,,$M$2,$N$2) -> 334.2 | H20: 2021-05-07 | I20: 44323 | J20: 05/07/21
A21: -19 | B21: =RTD("cqg.rtd",,"StudyData", $L$2, "FG", "", "Time", $K$2,$A21, $P$2, "", "","False") -> 2021-05-06 | C21: =RTD("cqg.rtd",,"StudyData", $L$2, "FG", "", "Time", $K$2, $A21,$P$2,$O$2, "","False") -> 44322 | D21: =RTD("cqg.rtd",,"StudyData", $L$2, "FG", "", "Open", $K$2, $A21, $P$2,$O$2,,$M$2,$N$2) -> 328.76 | E21: =RTD("cqg.rtd",,"StudyData", $L$2, "FG", "", "High", $K$2, $A21, $P$2,$O$2,,$M$2,$N$2) -> 331.87 | F21: =RTD("cqg.rtd",,"StudyData", $L$2, "FG", "", "Low", $K$2, $A21, $P$2,$O$2,,$M$2,$N$2) -> 326.45 | G21: =RTD("cqg.rtd",,"StudyData", $L$2, "FG", "", "Close", $K$2, $A21, $P$2,$O$2,,$M$2,$N$2) -> 331.51 | H21: 2021-05-06 | I21: 44322 | J21: 05/06/21
A22: -20 | B22: =RTD("cqg.rtd",,"StudyData", $L$2, "FG", "", "Time", $K$2,$A22, $P$2, "", "","False") -> 2021-05-05 | C22: =RTD("cqg.rtd",,"StudyData", $L$2, "FG", "", "Time", $K$2, $A22,$P$2,$O$2, "","False") -> 44321 | D22: =RTD("cqg.rtd",,"StudyData", $L$2, "FG", "", "Open", $K$2, $A22, $P$2,$O$2,,$M$2,$N$2) -> 332.25 | E22: =RTD("cqg.rtd",,"StudyData", $L$2, "FG", "", "High", $K$2, $A22, $P$2,$O$2,,$M$2,$N$2) -> 333.14 | F22: =RTD("cqg.rtd",,"StudyData", $L$2, "FG", "", "Low", $K$2, $A22, $P$2,$O$2,,$M$2,$N$2) -> 328.23 | G22: =RTD("cqg.rtd",,"StudyData", $L$2, "FG", "", "Close", $K$2, $A22, $P$2,$O$2,,$M$2,$N$2) -> 329.03 | H22: 2021-05-05 | I22: 44321 | J22: 05/05/21
A23: -21 | B23: =RTD("cqg.rtd",,"StudyData", $L$2, "FG", "", "Time", $K$2,$A23, $P$2, "", "","False") -> 2021-05-04 | C23: =RTD("cqg.rtd",,"StudyData", $L$2, "FG", "", "Time", $K$2, $A23,$P$2,$O$2, "","False") -> 44320 | D23: =RTD("cqg.rtd",,"StudyData", $L$2, "FG", "", "Open", $K$2, $A23, $P$2,$O$2,,$M$2,$N$2) -> 333.56 | E23: =RTD("cqg.rtd",,"StudyData", $L$2, "FG", "", "High", $K$2, $A23, $P$2,$O$2,,$M$2,$N$2) -> 333.89 | F23: =RTD("cqg.rtd",,"StudyData", $L$2, "FG", "", "Low", $K$2, $A23, $P$2,$O$2,,$M$2,$N$2) -> 326.21 | G23: =RTD("cqg.rtd",,"StudyData", $L$2, "FG", "", "Close", $K$2, $A23, $P$2,$O$2,,$M$2,$N$2) -> 330.14 | H23: 2021-05-04 | I23: 44320 | J23: 05/04/21
A24: -22 | B24: =RTD("cqg.rtd",,"StudyData", $L$2, "FG", "", "Time", $K$2,$A24, $P$2, "", "","False") -> 2021-05-03 | C24: =RTD("cqg.rtd",,"StudyData", $L$2, "FG", "", "Time", $K$2, $A24,$P$2,$O$2, "","False") -> 44319 | D24: =RTD("cqg.rtd",,"StudyData", $L$2, "FG", "", "Open", $K$2, $A24, $P$2,$O$2,,$M$2,$N$2) -> 339.23 | E24: =RTD("cqg.rtd",,"StudyData", $L$2, "FG", "", "High", $K$2, $A24, $P$2,$O$2,,$M$2,$N$2) -> 340 | F24: =RTD("cqg.rtd",,"StudyData", $L$2, "FG", "", "Low", $K$2, $A24, $P$2,$O$2,,$M$2,$N$2) -> 335.73 | G24: =RTD("cqg.rtd",,"StudyData", $L$2, "FG", "", "Close", $K$2, $A24, $P$2,$O$2,,$M$2,$N$2) -> 336.19 | H24: 2021-05-03 | I24: 44319 | J24: 05/03/21
A25: -23 | B25: =RTD("cqg.rtd",,"StudyData", $L$2, "FG", "", "Time", $K$2,$A25, $P$2, "", "","False") -> 2021-04-30 | C25: =RTD("cqg.rtd",,"StudyData", $L$2, "FG", "", "Time", $K$2, $A25,$P$2,$O$2, "","False") -> 44316 | D25: =RTD("cqg.rtd",,"StudyData", $L$2, "FG", "", "Open", $K$2, $A25, $P$2,$O$2,,$M$2,$N$2) -> 337.7 | E25: =RTD("cqg.rtd",,"StudyData", $L$2, "FG", "", "High", $K$2, $A25, $P$2,$O$2,,$M$2,$N$2) -> 340.26 | F25: =RTD("cqg.rtd",,"StudyData", $L$2, "FG", "", "Low", $K$2, $A25, $P$2,$O$2,,$M$2,$N$2) -> 337.05 | G25: =RTD("cqg.rtd",,"StudyData", $L$2, "FG", "", "Close", $K$2, $A25, $P$2,$O$2,,$M$2,$N$2) -> 337.99 | H25: 2021-04-30 | I25: 44316 | J25: 04/30/21
A26: -24 | B26: =RTD("cqg.rtd",,"StudyData", $L$2, "FG", "", "Time", $K$2,$A26, $P$2, "", "","False") -> 2021-04-29 | C26: =RTD("cqg.rtd",,"StudyData", $L$2, "FG", "", "Time", $K$2, $A26,$P$2,$O$2, "","False") -> 44315 | D26: =RTD("cqg.rtd",,"StudyData", $L$2, "FG", "", "Open", $K$2, $A26, $P$2,$O$2,,$M$2,$N$2) -> 342.37 | E26: =RTD("cqg.rtd",,"StudyData", $L$2, "FG", "", "High", $K$2, $A26, $P$2,$O$2,,$M$2,$N$2) -> 342.8 | F26: =RTD("cqg.rtd",,"StudyData", $L$2, "FG", "", "Low", $K$2, $A26, $P$2,$O$2,,$M$2,$N$2) -> 336.9 | G26: =RTD("cqg.rtd",,"StudyData", $L$2, "FG", "", "Close", $K$2, $A26, $P$2,$O$2,,$M$2,$N$2) -> 340.22 | H26: 2021-04-29 | I26: 44315 | J26: 04/29/21
A27: -25 | B27: =RTD("cqg.rtd",,"StudyData", $L$2, "FG", "", "Time", $K$2,$A27, $P$2, "", "","False") -> 2021-04-28 | C27: =RTD("cqg.rtd",,"StudyData", $L$2, "FG", "", "Time", $K$2, $A27,$P$2,$O$2, "","False") -> 44314 | D27: =RTD("cqg.rtd",,"StudyData", $L$2, "FG", "", "Open", $K$2, $A27, $P$2,$O$2,,$M$2,$N$2) -> 339.81 | E27: =RTD("cqg.rtd",,"StudyData", $L$2, "FG", "", "High", $K$2, $A27, $P$2,$O$2,,$M$2,$N$2) -> 340.85 | F27: =RTD("cqg.rtd",,"StudyData", $L$2, "FG", "", "Low", $K$2, $A27, $P$2,$O$2,,$M$2,$N$2) -> 338.33 | G27: =RTD("cqg.rtd",,"StudyData", $L$2, "FG", "", "Close", $K$2, $A27, $P$2,$O$2,,$M$2,$N$2) -> 339 | H27: 2021-04-28 | I27: 44314 | J27: 04/28/21
A28: -26 | B28: =RTD("cqg.rtd",,"StudyData", $L$2, "FG", "", "Time", $K$2,$A28, $P$2, "", "","False") -> 2021-04-27 | C28: =RTD("cqg.rtd",,"StudyData", $L$2, "FG", "", "Time", $K$2, $A28,$P$2,$O$2, "","False") -> 44313 | D28: =RTD("cqg.rtd",,"StudyData", $L$2, "FG", "", "Open", $K$2, $A28, $P$2,$O$2,,$M$2,$N$2) -> 341.93 | E28: =RTD("cqg.rtd",,"StudyData", $L$2, "FG", "", "High", $K$2, $A28, $P$2,$O$2,,$M$2,$N$2) -> 342.15 | F28: =RTD("cqg.rtd",,"StudyData", $L$2, "FG", "", "Low", $K$2, $A28, $P$2,$O$2,,$M$2,$N$2) -> 339.17 | G28: =RTD("cqg.rtd",,"StudyData", $L$2, "FG", "", "Close", $K$2, $A28, $P$2,$O$2,,$M$2,$N$2) -> 340.15 | H28: 2021-04-27 | I28: 44313 | J28: 04/27/21
A29: -27 | B29: =RTD("cqg.rtd",,"StudyData", $L$2, "FG", "", "Time", $K$2,$A29, $P$2, "", "","False") -> 2021-04-26 | C29: =RTD("cqg.rtd",,"StudyData", $L$2, "FG", "", "Time", $K$2, $A29,$P$2,$O$2, "","False") -> 44312 | D29: =RTD("cqg.rtd",,"StudyData", $L$2, "FG", "", "Open", $K$2, $A29, $P$2,$O$2,,$M$2,$N$2) -> 339.67 | E29: =RTD("cqg.rtd",,"StudyData", $L$2, "FG", "", "High", $K$2, $A29, $P$2,$O$2,,$M$2,$N$2) -> 342.2 | F29: =RTD("cqg.rtd",,"StudyData", $L$2, "FG", "", "Low", $K$2, $A29, $P$2,$O$2,,$M$2,$N$2) -> 338.9 | G29: =RTD("cqg.rtd",,"StudyData", $L$2, "FG", "", "Close", $K$2, $A29, $P$2,$O$2,,$M$2,$N$2) -> 341.63 | H29: 2021-04-26 | I29: 44312 | J29: 04/26/21
A30: -28 | B30: =RTD("cqg.rtd",,"StudyData", $L$2, "FG", "", "Time", $K$2,$A30, $P$2, "", "","False") -> 2021-04-23 | C30: =RTD("cqg.rtd",,"StudyData", $L$2, "FG", "", "Time", $K$2, $A30,$P$2,$O$2, "","False") -> 44309 | D30: =RTD("cqg.rtd",,"StudyData", $L$2, "FG", "", "Open", $K$2, $A30, $P$2,$O$2,,$M$2,$N$2) -> 335.85 | E30: =RTD("cqg.rtd",,"StudyData", $L$2, "FG", "", "High", $K$2, $A30, $P$2,$O$2,,$M$2,$N$2) -> 340.76 | F30: =RTD("cqg.rtd",,"StudyData", $L$2, "FG", "", "Low", $K$2, $A30, $P$2,$O$2,,$M$2,$N$2) -> 335.85 | G30: =RTD("cqg.rtd",,"StudyData", $L$2, "FG", "", "Close", $K$2, $A30, $P$2,$O$2,,$M$2,$N$2) -> 339.42 | H30: 2021-04-23 | I30: 44309 | J30: 04/23/21
A31: -29 | B31: =RTD("cqg.rtd",,"StudyData", $L$2, "FG", "", "Time", $K$2,$A31, $P$2, "", "","False") -> 2021-04-22 | C31: =RTD("cqg.rtd",,"StudyData", $L$2, "FG", "", "Time", $K$2, $A31,$P$2,$O$2, "","False") -> 44308 | D31: =RTD("cqg.rtd",,"StudyData", $L$2, "FG", "", "Open", $K$2, $A31, $P$2,$O$2,,$M$2,$N$2) -> 338.89 | E31: =RTD("cqg.rtd",,"StudyData", $L$2, "FG", "", "High", $K$2, $A31, $P$2,$O$2,,$M$2,$N$2) -> 339.9 | F31: =RTD("cqg.rtd",,"StudyData", $L$2, "FG", "", "Low", $K$2, $A31, $P$2,$O$2,,$M$2,$N$2) -> 334.01 | G31: =RTD("cqg.rtd",,"StudyData", $L$2, "FG", "", "Close", $K$2, $A31, $P$2,$O$2,,$M$2,$N$2) -> 335.2 | H31: 2021-04-22 | I31: 44308 | J31: 04/22/21
A32: -30 | B32: =RTD("cqg.rtd",,"StudyData", $L$2, "FG", "", "Time", $K$2,$A32, $P$2, "", "","False") -> 2021-04-21 | C32: =RTD("cqg.rtd",,"StudyData", $L$2, "FG", "", "Time", $K$2, $A32,$P$2,$O$2, "","False") -> 44307 | D32: =RTD("cqg.rtd",,"StudyData", $L$2, "FG", "", "Open", $K$2, $A32, $P$2,$O$2,,$M$2,$N$2) -> 335.09 | E32: =RTD("cqg.rtd",,"StudyData", $L$2, "FG", "", "High", $K$2, $A32, $P$2,$O$2,,$M$2,$N$2) -> 339.48 | F32: =RTD("cqg.rtd",,"StudyData", $L$2, "FG", "", "Low", $K$2, $A32, $P$2,$O$2,,$M$2,$N$2) -> 333.97 | G32: =RTD("cqg.rtd",,"StudyData", $L$2, "FG", "", "Close", $K$2, $A32, $P$2,$O$2,,$M$2,$N$2) -> 339.29 | H32: 2021-04-21 | I32: 44307 | J32: 04/21/21
A33: -31 | B33: =RTD("cqg.rtd",,"StudyData", $L$2, "FG", "", "Time", $K$2,$A33, $P$2, "", "","False") -> 2021-04-20 | C33: =RTD("cqg.rtd",,"StudyData", $L$2, "FG", "", "Time", $K$2, $A33,$P$2,$O$2, "","False") -> 44306 | D33: =RTD("cqg.rtd",,"StudyData", $L$2, "FG", "", "Open", $K$2, $A33, $P$2,$O$2,,$M$2,$N$2) -> 338.2 | E33: =RTD("cqg.rtd",,"StudyData", $L$2, "FG", "", "High", $K$2, $A33, $P$2,$O$2,,$M$2,$N$2) -> 339.52 | F33: =RTD("cqg.rtd",,"StudyData", $L$2, "FG", "", "Low", $K$2, $A33, $P$2,$O$2,,$M$2,$N$2) -> 334.38 | G33: =RTD("cqg.rtd",,"StudyData", $L$2, "FG", "", "Close", $K$2, $A33, $P$2,$O$2,,$M$2,$N$2) -> 336.41 | H33: 2021-04-20 | I33: 44306 | J33: 04/20/21
A34: -32 | B34: =RTD("cqg.rtd",,"StudyData", $L$2, "FG", "", "Time", $K$2,$A34, $P$2, "", "","False") -> 2021-04-19 | C34: =RTD("cqg.rtd",,"StudyData", $L$2, "FG", "", "Time", $K$2, $A34,$P$2,$O$2, "","False") -> 44305 | D34: =RTD("cqg.rtd",,"StudyData", $L$2, "FG", "", "Open", $K$2, $A34, $P$2,$O$2,,$M$2,$N$2) -> 340.39 | E34: =RTD("cqg.rtd",,"StudyData", $L$2, "FG", "", "High", $K$2, $A34, $P$2,$O$2,,$M$2,$N$2) -> 341.58 | F34: =RTD("cqg.rtd",,"StudyData", $L$2, "FG", "", "Low", $K$2, $A34, $P$2,$O$2,,$M$2,$N$2) -> 336.9 | G34: =RTD("cqg.rtd",,"StudyData", $L$2, "FG", "", "Close", $K$2, $A34, $P$2,$O$2,,$M$2,$N$2) -> 338.88 | H34: 2021-04-19 | I34: 44305 | J34: 04/19/21
A35: -33 | B35: =RTD("cqg.rtd",,"StudyData", $L$2, "FG", "", "Time", $K$2,$A35, $P$2, "", "","False") -> 2021-04-16 | C35: =RTD("cqg.rtd",,"StudyData", $L$2, "FG", "", "Time", $K$2, $A35,$P$2,$O$2, "","False") -> 44302 | D35: =RTD("cqg.rtd",,"StudyData", $L$2, "FG", "", "Open", $K$2, $A35, $P$2,$O$2,,$M$2,$N$2) -> 342.15 | E35: =RTD("cqg.rtd",,"StudyData", $L$2, "FG", "", "High", $K$2, $A35, $P$2,$O$2,,$M$2,$N$2) -> 342.23 | F35: =RTD("cqg.rtd",,"StudyData", $L$2, "FG", "", "Low", $K$2, $A35, $P$2,$O$2,,$M$2,$N$2) -> 340.08 | G35: =RTD("cqg.rtd",,"StudyData", $L$2, "FG", "", "Close", $K$2, $A35, $P$2,$O$2,,$M$2,$N$2) -> 342.01 | H35: 2021-04-16 | I35: 44302 | J35: 04/16/21
A36: -34 | B36: =RTD("cqg.rtd",,"StudyData", $L$2, "FG", "", "Time", $K$2,$A36, $P$2, "", "","False") -> 2021-04-15 | C36: =RTD("cqg.rtd",,"StudyData", $L$2, "FG", "", "Time", $K$2, $A36,$P$2,$O$2, "","False") -> 44301 | D36: =RTD("cqg.rtd",,"StudyData", $L$2, "FG", "", "Open", $K$2, $A36, $P$2,$O$2,,$M$2,$N$2) -> 339.47 | E36: =RTD("cqg.rtd",,"StudyData", $L$2, "FG", "", "High", $K$2, $A36, $P$2,$O$2,,$M$2,$N$2) -> 342 | F36: =RTD("cqg.rtd",,"StudyData", $L$2, "FG", "", "Low", $K$2, $A36, $P$2,$O$2,,$M$2,$N$2) -> 339.33 | G36: =RTD("cqg.rtd",,"StudyData", $L$2, "FG", "", "Close", $K$2, $A36, $P$2,$O$2,,$M$2,$N$2) -> 341.61 | H36: 2021-04-15 | I36: 44301 | J36: 04/15/21
A37: -35 | B37: =RTD("cqg.rtd",,"StudyData", $L$2, "FG", "", "Time", $K$2,$A37, $P$2, "", "","False") -> 2021-04-14 | C37: =RTD("cqg.rtd",,"StudyData", $L$2, "FG", "", "Time", $K$2, $A37,$P$2,$O$2, "","False") -> 44300 | D37: =RTD("cqg.rtd",,"StudyData", $L$2, "FG", "", "Open", $K$2, $A37, $P$2,$O$2,,$M$2,$N$2) -> 340.85 | E37: =RTD("cqg.rtd",,"StudyData", $L$2, "FG", "", "High", $K$2, $A37, $P$2,$O$2,,$M$2,$N$2) -> 340.98 | F37: =RTD("cqg.rtd",,"StudyData", $L$2, "FG", "", "Low", $K$2, $A37, $P$2,$O$2,,$M$2,$N$2) -> 335.67 | G37: =RTD("cqg.rtd",,"StudyData", $L$2, "FG", "", "Close", $K$2, $A37, $P$2,$O$2,,$M$2,$N$2) -> 336.51 | H37: 2021-04-14 | I37: 44300 | J37: 04/14/21
A38: -36 | B38: =RTD("cqg.rtd",,"StudyData", $L$2, "FG", "", "Time", $K$2,$A38, $P$2, "", "","False") -> 2021-04-13 | C38: =RTD("cqg.rtd",,"StudyData", $L$2, "FG", "", "Time", $K$2, $A38,$P$2,$O$2, "","False") -> 44299 | D38: =RTD("cqg.rtd",,"StudyData", $L$2, "FG", "", "Open", $K$2, $A38, $P$2,$O$2,,$M$2,$N$2) -> 338.24 | E38: =RTD("cqg.rtd",,"StudyData", $L$2, "FG", "", "High", $K$2, $A38, $P$2,$O$2,,$M$2,$N$2) -> 341.08 | F38: =RTD("cqg.rtd",,"StudyData", $L$2, "FG", "", "Low", $K$2, $A38, $P$2,$O$2,,$M$2,$N$2) -> 338.02 | G38: =RTD("cqg.rtd",,"StudyData", $L$2, "FG", "", "Close", $K$2, $A38, $P$2,$O$2,,$M$2,$N$2) -> 340.6 | H38: 2021-04-13 | I38: 44299 | J38: 04/13/21
A39: -37 | B39: =RTD("cqg.rtd",,"StudyData", $L$2, "FG", "", "Time", $K$2,$A39, $P$2, "", "","False") -> 2021-04-12 | C39: =RTD("cqg.rtd",,"StudyData", $L$2, "FG", "", "Time", $K$2, $A39,$P$2,$O$2, "","False") -> 44298 | D39: =RTD("cqg.rtd",,"StudyData", $L$2, "FG", "", "Open", $K$2, $A39, $P$2,$O$2,,$M$2,$N$2) -> 336.04 | E39: =RTD("cqg.rtd",,"StudyData", $L$2, "FG", "", "High", $K$2, $A39, $P$2,$O$2,,$M$2,$N$2) -> 337.1 | F39: =RTD("cqg.rtd",,"StudyData", $L$2, "FG", "", "Low", $K$2, $A39, $P$2,$O$2,,$M$2,$N$2) -> 334.73 | G39: =RTD("cqg.rtd",,"StudyData", $L$2, "FG", "", "Close", $K$2, $A39, $P$2,$O$2,,$M$2,$N$2) -> 336.67 | H39: 2021-04-12 | I39: 44298 | J39: 04/12/21
A40: -38 | B40: =RTD("cqg.rtd",,"StudyData", $L$2, "FG", "", "Time", $K$2,$A40, $P$2, "", "","False") -> 2021-04-09 | C40: =RTD("cqg.rtd",,"StudyData", $L$2, "FG", "", "Time", $K$2, $A40,$P$2,$O$2, "","False") -> 44295 | D40: =RTD("cqg.rtd",,"StudyData", $L$2, "FG", "", "Open", $K$2, $A40, $P$2,$O$2,,$M$2,$N$2) -> 333.68 | E40: =RTD("cqg.rtd",,"StudyData", $L$2, "FG", "", "High", $K$2, $A40, $P$2,$O$2,,$M$2,$N$2) -> 337.32 | F40: =RTD("cqg.rtd",,"StudyData", $L$2, "FG", "", "Low", $K$2, $A40, $P$2,$O$2,,$M$2,$N$2) -> 332.92 | G40: =RTD("cqg.rtd",,"StudyData", $L$2, "FG", "", "Close", $K$2, $A40, $P$2,$O$2,,$M$2,$N$2) -> 337.11 | H40: 2021-04-09 | I40: 44295 | J40: 04/09/21
A41: -39 | B41: =RTD("cqg.rtd",,"StudyData", $L$2, "FG", "", "Time", $K$2,$A41, $P$2, "", "","False") -> 2021-04-08 | C41: =RTD("cqg.rtd",,"StudyData", $L$2, "FG", "", "Time", $K$2, $A41,$P$2,$O$2, "","False") -> 44294 | D41: =RTD("cqg.rtd",,"StudyData", $L$2, "FG", "", "Open", $K$2, $A41, $P$2,$O$2,,$M$2,$N$2) -> 334.56 | E41: =RTD("cqg.rtd",,"StudyData", $L$2, "FG", "", "High", $K$2, $A41, $P$2,$O$2,,$M$2,$N$2) -> 335.76 | F41: =RTD("cqg.rtd",,"StudyData", $L$2, "FG", "", "Low", $K$2, $A41, $P$2,$O$2,,$M$2,$N$2) -> 333.73 | G41: =RTD("cqg.rtd",,"StudyData", $L$2, "FG", "", "Close", $K$2, $A41, $P$2,$O$2,,$M$2,$N$2) -> 335.08 | H41: 2021-04-08 | I41: 44294 | J41: 04/08/21
A42: -40 | B42: =RTD("cqg.rtd",,"StudyData", $L$2, "FG", "", "Time", $K$2,$A42, $P$2, "", "","False") -> 2021-04-07 | C42: =RTD("cqg.rtd",,"StudyData", $L$2, "FG", "", "Time", $K$2, $A42,$P$2,$O$2, "","False") -> 44293 | D42: =RTD("cqg.rtd",,"StudyData", $L$2, "FG", "", "Open", $K$2, $A42, $P$2,$O$2,,$M$2,$N$2) -> 330.33 | E42: =RTD("cqg.rtd",,"StudyData", $L$2, "FG", "", "High", $K$2, $A42, $P$2,$O$2,,$M$2,$N$2) -> 332.48 | F42: =RTD("cqg.rtd",,"StudyData", $L$2, "FG", "", "Low", $K$2, $A42, $P$2,$O$2,,$M$2,$N$2) -> 329.37 | G42: =RTD("cqg.rtd",,"StudyData", $L$2, "FG", "", "Close", $K$2, $A42, $P$2,$O$2,,$M$2,$N$2) -> 331.62 | H42: 2021-04-07 | I42: 44293 | J42: 04/07/21
A43: -41 | B43: =RTD("cqg.rtd",,"StudyData", $L$2, "FG", "", "Time", $K$2,$A43, $P$2, "", "","False") -> 2021-04-06 | C43: =RTD("cqg.rtd",,"StudyData", $L$2, "FG", "", "Time", $K$2, $A43,$P$2,$O$2, "","False") -> 44292 | D43: =RTD("cqg.rtd",,"StudyData", $L$2, "FG", "", "Open", $K$2, $A43, $P$2,$O$2,,$M$2,$N$2) -> 330.73 | E43: =RTD("cqg.rtd",,"StudyData", $L$2, "FG", "", "High", $K$2, $A43, $P$2,$O$2,,$M$2,$N$2) -> 332.83 | F43: =RTD("cqg.rtd",,"StudyData", $L$2, "FG", "", "Low", $K$2, $A43, $P$2,$O$2,,$M$2,$N$2) -> 330.02 | G43: =RTD("cqg.rtd",,"StudyData", $L$2, "FG", "", "Close", $K$2, $A43, $P$2,$O$2,,$M$2,$N$2) -> 330.82 | H43: 2021-04-06 | I43: 44292 | J43: 04/06/21
A44: -42 | B44: =RTD("cqg.rtd",,"StudyData", $L$2, "FG", "", "Time", $K$2,$A44, $P$2, "", "","False") -> 2021-04-05 | C44: =RTD("cqg.rtd",,"StudyData", $L$2, "FG", "", "Time", $K$2, $A44,$P$2,$O$2, "","False") -> 44291 | D44: =RTD("cqg.rtd",,"StudyData", $L$2, "FG", "", "Open", $K$2, $A44, $P$2,$O$2,,$M$2,$N$2) -> 327.13 | E44: =RTD("cqg.rtd",,"StudyData", $L$2, "FG", "", "High", $K$2, $A44, $P$2,$O$2,,$M$2,$N$2) -> 331.84 | F44: =RTD("cqg.rtd",,"StudyData", $L$2, "FG", "", "Low", $K$2, $A44, $P$2,$O$2,,$M$2,$N$2) -> 326.88 | G44: =RTD("cqg.rtd",,"StudyData", $L$2, "FG", "", "Close", $K$2, $A44, $P$2,$O$2,,$M$2,$N$2) -> 331.05 | H44: 2021-04-05 | I44: 44291 | J44: 04/05/21
A45: -43 | B45: =RTD("cqg.rtd",,"StudyData", $L$2, "FG", "", "Time", $K$2,$A45, $P$2, "", "","False") -> 2021-04-01 | C45: =RTD("cqg.rtd",,"StudyData", $L$2, "FG", "", "Time", $K$2, $A45,$P$2,$O$2, "","False") -> 44287 | D45: =RTD("cqg.rtd",,"StudyData", $L$2, "FG", "", "Open", $K$2, $A45, $P$2,$O$2,,$M$2,$N$2) -> 323.07 | E45: =RTD("cqg.rtd",,"StudyData", $L$2, "FG", "", "High", $K$2, $A45, $P$2,$O$2,,$M$2,$N$2) -> 324.85 | F45: =RTD("cqg.rtd",,"StudyData", $L$2, "FG", "", "Low", $K$2, $A45, $P$2,$O$2,,$M$2,$N$2) -> 322.81 | G45: =RTD("cqg.rtd",,"StudyData", $L$2, "FG", "", "Close", $K$2, $A45, $P$2,$O$2,,$M$2,$N$2) -> 324.57 | H45: 2021-04-01 | I45: 44287 | J45: 04/01/21
A46: -44 | B46: =RTD("cqg.rtd",,"StudyData", $L$2, "FG", "", "Time", $K$2,$A46, $P$2, "", "","False") -> 2021-03-31 | C46: =RTD("cqg.rtd",,"StudyData", $L$2, "FG", "", "Time", $K$2, $A46,$P$2,$O$2, "","False") -> 44286 | D46: =RTD("cqg.rtd",,"StudyData", $L$2, "FG", "", "Open", $K$2, $A46, $P$2,$O$2,,$M$2,$N$2) -> 316.16 | E46: =RTD("cqg.rtd",,"StudyData", $L$2, "FG", "", "High", $K$2, $A46, $P$2,$O$2,,$M$2,$N$2) -> 320.74 | F46: =RTD("cqg.rtd",,"StudyData", $L$2, "FG", "", "Low", $K$2, $A46, $P$2,$O$2,,$M$2,$N$2) -> 315.81 | G46: =RTD("cqg.rtd",,"StudyData", $L$2, "FG", "", "Close", $K$2, $A46, $P$2,$O$2,,$M$2,$N$2) -> 319.13 | H46: 2021-03-31 | I46: 44286 | J46: 03/31/21
A47: -45 | B47: =RTD("cqg.rtd",,"StudyData", $L$2, "FG", "", "Time", $K$2,$A47, $P$2, "", "","False") -> 2021-03-30 | C47: =RTD("cqg.rtd",,"StudyData", $L$2, "FG", "", "Time", $K$2, $A47,$P$2,$O$2, "","False") -> 44285 | D47: =RTD("cqg.rtd",,"StudyData", $L$2, "FG", "", "Open", $K$2, $A47, $P$2,$O$2,,$M$2,$N$2) -> 313.89 | E47: =RTD("cqg.rtd",,"StudyData", $L$2, "FG", "", "High", $K$2, $A47, $P$2,$O$2,,$M$2,$N$2) -> 314.91 | F47: =RTD("cqg.rtd",,"StudyData", $L$2, "FG", "", "Low", $K$2, $A47, $P$2,$O$2,,$M$2,$N$2) -> 311.54 | G47: =RTD("cqg.rtd",,"StudyData", $L$2, "FG", "", "Close", $K$2, $A47, $P$2,$O$2,,$M$2,$N$2) -> 314.32 | H47: 2021-03-30 | I47: 44285 | J47: 03/30/21
A48: -46 | B48: =RTD("cqg.rtd",,"StudyData", $L$2, "FG", "", "Time", $K$2,$A48, $P$2, "", "","False") -> 2021-03-29 | C48: =RTD("cqg.rtd",,"StudyData", $L$2, "FG", "", "Time", $K$2, $A48,$P$2,$O$2, "","False") -> 44284 | D48: =RTD("cqg.rtd",,"StudyData", $L$2, "FG", "", "Open", $K$2, $A48, $P$2,$O$2,,$M$2,$N$2) -> 315.45 | E48: =RTD("cqg.rtd",,"StudyData", $L$2, "FG", "", "High", $K$2, $A48, $P$2,$O$2,,$M$2,$N$2) -> 316.99 | F48: =RTD("cqg.rtd",,"StudyData", $L$2, "FG", "", "Low", $K$2, $A48, $P$2,$O$2,,$M$2,$N$2) -> 312.47 | G48: =RTD("cqg.rtd",,"StudyData", $L$2, "FG", "", "Close", $K$2, $A48, $P$2,$O$2,,$M$2,$N$2) -> 315.91 | H48: 2021-03-29 | I48: 44284 | J48: 03/29/21
A49: -47 | B49: =RTD("cqg.rtd",,"StudyData", $L$2, "FG", "", "Time", $K$2,$A49, $P$2, "", "","False") -> 2021-03-26 | C49: =RTD("cqg.rtd",,"StudyData", $L$2, "FG", "", "Time", $K$2, $A49,$P$2,$O$2, "","False") -> 44281 | D49: =RTD("cqg.rtd",,"StudyData", $L$2, "FG", "", "Open", $K$2, $A49, $P$2,$O$2,,$M$2,$N$2) -> 311.11 | E49: =RTD("cqg.rtd",,"StudyData", $L$2, "FG", "", "High", $K$2, $A49, $P$2,$O$2,,$M$2,$N$2) -> 316.65 | F49: =RTD("cqg.rtd",,"StudyData", $L$2, "FG", "", "Low", $K$2, $A49, $P$2,$O$2,,$M$2,$N$2) -> 309.67 | G49: =RTD("cqg.rtd",,"StudyData", $L$2, "FG", "", "Close", $K$2, $A49, $P$2,$O$2,,$M$2,$N$2) -> 316 | H49: 2021-03-26 | I49: 44281 | J49: 03/26/21
A50: -48 | B50: =RTD("cqg.rtd",,"StudyData", $L$2, "FG", "", "Time", $K$2,$A50, $P$2, "", "","False") -> 2021-03-25 | C50: =RTD("cqg.rtd",,"StudyData", $L$2, "FG", "", "Time", $K$2, $A50,$P$2,$O$2, "","False") -> 44280 | D50: =RTD("cqg.rtd",,"StudyData", $L$2, "FG", "", "Open", $K$2, $A50, $P$2,$O$2,,$M$2,$N$2) -> 309.96 | E50: =RTD("cqg.rtd",,"StudyData", $L$2, "FG", "", "High", $K$2, $A50, $P$2,$O$2,,$M$2,$N$2) -> 312.88 | F50: =RTD("cqg.rtd",,"StudyData", $L$2, "FG", "", "Low", $K$2, $A50, $P$2,$O$2,,$M$2,$N$2) -> 307.38 | G50: =RTD("cqg.rtd",,"StudyData", $L$2, "FG", "", "Close", $K$2, $A50, $P$2,$O$2,,$M$2,$N$2) -> 311.33 | H50: 2021-03-25 | I50: 44280 | J50: 03/25/21
A51: -49 | B51: =RTD("cqg.rtd",,"StudyData", $L$2, "FG", "", "Time", $K$2,$A51, $P$2, "", "","False") -> 2021-03-24 | C51: =RTD("cqg.rtd",,"StudyData", $L$2, "FG", "", "Time", $K$2, $A51,$P$2,$O$2, "","False") -> 44279 | D51: =RTD("cqg.rtd",,"StudyData", $L$2, "FG", "", "Open", $K$2, $A51, $P$2,$O$2,,$M$2,$N$2) -> 318.63 | E51: =RTD("cqg.rtd",,"StudyData", $L$2, "FG", "", "High", $K$2, $A51, $P$2,$O$2,,$M$2,$N$2) -> 318.67 | F51: =RTD("cqg.rtd",,"StudyData", $L$2, "FG", "", "Low", $K$2, $A51, $P$2,$O$2,,$M$2,$N$2) -> 311.64 | G51: =RTD("cqg.rtd",,"StudyData", $L$2, "FG", "", "Close", $K$2, $A51, $P$2,$O$2,,$M$2,$N$2) -> 311.87 | H51: 2021-03-24 | I51: 44279 | J51: 03/24/21
A52: -50 | B52: =RTD("cqg.rtd",,"StudyData", $L$2, "FG", "", "Time", $K$2,$A52, $P$2, "", "","False") -> 2021-03-23 | C52: =RTD("cqg.rtd",,"StudyData", $L$2, "FG", "", "Time", $K$2, $A52,$P$2,$O$2, "","False") -> 44278 | D52: =RTD("cqg.rtd",,"StudyData", $L$2, "FG", "", "Open", $K$2, $A52, $P$2,$O$2,,$M$2,$N$2) -> 319.73 | E52: =RTD("cqg.rtd",,"StudyData", $L$2, "FG", "", "High", $K$2, $A52, $P$2,$O$2,,$M$2,$N$2) -> 321.09 | F52: =RTD("cqg.rtd",,"StudyData", $L$2, "FG", "", "Low", $K$2, $A52, $P$2,$O$2,,$M$2,$N$2) -> 316.37 | G52: =RTD("cqg.rtd",,"StudyData", $L$2, "FG", "", "Close", $K$2, $A52, $P$2,$O$2,,$M$2,$N$2) -> 317.22 | H52: 2021-03-23 | I52: 44278 | J52: 03/23/21
A53: -51 | B53: =RTD("cqg.rtd",,"StudyData", $L$2, "FG", "", "Time", $K$2,$A53, $P$2, "", "","False") -> 2021-03-22 | C53: =RTD("cqg.rtd",,"StudyData", $L$2, "FG", "", "Time", $K$2, $A53,$P$2,$O$2, "","False") -> 44277 | D53: =RTD("cqg.rtd",,"StudyData", $L$2, "FG", "", "Open", $K$2, $A53, $P$2,$O$2,,$M$2,$N$2) -> 315.21 | E53: =RTD("cqg.rtd",,"StudyData", $L$2, "FG", "", "High", $K$2, $A53, $P$2,$O$2,,$M$2,$N$2) -> 320.74 | F53: =RTD("cqg.rtd",,"StudyData", $L$2, "FG", "", "Low", $K$2, $A53, $P$2,$O$2,,$M$2,$N$2) -> 315.21 | G53: =RTD("cqg.rtd",,"StudyData", $L$2, "FG", "", "Close", $K$2, $A53, $P$2,$O$2,,$M$2,$N$2) -> 318.61 | H53: 2021-03-22 | I53: 44277 | J53: 03/22/21
A54: -52 | B54: =RTD("cqg.rtd",,"StudyData", $L$2, "FG", "", "Time", $K$2,$A54, $P$2, "", "","False") -> 2021-03-19 | C54: =RTD("cqg.rtd",,"StudyData", $L$2, "FG", "", "Time", $K$2, $A54,$P$2,$O$2, "","False") -> 44274 | D54: =RTD("cqg.rtd",,"StudyData", $L$2, "FG", "", "Open", $K$2, $A54, $P$2,$O$2,,$M$2,$N$2) -> 311.87 | E54: =RTD("cqg.rtd",,"StudyData", $L$2, "FG", "", "High", $K$2, $A54, $P$2,$O$2,,$M$2,$N$2) -> 314.73 | F54: =RTD("cqg.rtd",,"StudyData", $L$2, "FG", "", "Low", $K$2, $A54, $P$2,$O$2,,$M$2,$N$2) -> 309.66 | G54: =RTD("cqg.rtd",,"StudyData", $L$2, "FG", "", "Close", $K$2, $A54, $P$2,$O$2,,$M$2,$N$2) -> 313.14 | H54: 2021-03-19 | I54: 44274 | J54: 03/19/21
A55: -53 | B55: =RTD("cqg.rtd",,"StudyData", $L$2, "FG", "", "Time", $K$2,$A55, $P$2, "", "","False") -> 2021-03-18 | C55: =RTD("cqg.rtd",,"StudyData", $L$2, "FG", "", "Time", $K$2, $A55,$P$2,$O$2, "","False") -> 44273 | D55: =RTD("cqg.rtd",,"StudyData", $L$2, "FG", "", "Open", $K$2, $A55, $P$2,$O$2,,$M$2,$N$2) -> 316.87 | E55: =RTD("cqg.rtd",,"StudyData", $L$2, "FG", "", "High", $K$2, $A55, $P$2,$O$2,,$M$2,$N$2) -> 317.88 | F55: =RTD("cqg.rtd",,"StudyData", $L$2, "FG", "", "Low", $K$2, $A55, $P$2,$O$2,,$M$2,$N$2) -> 311.57 | G55: =RTD("cqg.rtd",,"StudyData", $L$2, "FG", "", "Close", $K$2, $A55, $P$2,$O$2,,$M$2,$N$2) -> 312.04 | H55: 2021-03-18 | I55: 44273 | J55: 03/18/21
A56: -54 | B56: =RTD("cqg.rtd",,"StudyData", $L$2, "FG", "", "Time", $K$2,$A56, $P$2, "", "","False") -> 2021-03-17 | C56: =RTD("cqg.rtd",,"StudyData", $L$2, "FG", "", "Time", $K$2, $A56,$P$2,$O$2, "","False") -> 44272 | D56: =RTD("cqg.rtd",,"StudyData", $L$2, "FG", "", "Open", $K$2, $A56, $P$2,$O$2,,$M$2,$N$2) -> 317.45 | E56: =RTD("cqg.rtd",,"StudyData", $L$2, "FG", "", "High", $K$2, $A56, $P$2,$O$2,,$M$2,$N$2) -> 323.85 | F56: =RTD("cqg.rtd",,"StudyData", $L$2, "FG", "", "Low", $K$2, $A56, $P$2,$O$2,,$M$2,$N$2) -> 315.68 | G56: =RTD("cqg.rtd",,"StudyData", $L$2, "FG", "", "Close", $K$2, $A56, $P$2,$O$2,,$M$2,$N$2) -> 321.9 | H56: 2021-03-17 | I56: 44272 | J56: 03/17/21
A57: -55 | B57: =RTD("cqg.rtd",,"StudyData", $L$2, "FG", "", "Time", $K$2,$A57, $P$2, "", "","False") -> 2021-03-16 | C57: =RTD("cqg.rtd",,"StudyData", $L$2, "FG", "", "Time", $K$2, $A57,$P$2,$O$2, "","False") -> 44271 | D57: =RTD("cqg.rtd",,"StudyData", $L$2, "FG", "", "Open", $K$2, $A57, $P$2,$O$2,,$M$2,$N$2) -> 321.09 | E57: =RTD("cqg.rtd",,"StudyData", $L$2, "FG", "", "High", $K$2, $A57, $P$2,$O$2,,$M$2,$N$2) -> 324.2 | F57: =RTD("cqg.rtd",,"StudyData", $L$2, "FG", "", "Low", $K$2, $A57, $P$2,$O$2,,$M$2,$N$2) -> 319.1 | G57: =RTD("cqg.rtd",,"StudyData", $L$2, "FG", "", "Close", $K$2, $A57, $P$2,$O$2,,$M$2,$N$2) -> 320.58 | H57: 2021-03-16 | I57: 44271 | J57: 03/16/21
A58: -56 | B58: =RTD("cqg.rtd",,"StudyData", $L$2, "FG", "", "Time", $K$2,$A58, $P$2, "", "","False") -> 2021-03-15 | C58: =RTD("cqg.rtd",,"StudyData", $L$2, "FG", "", "Time", $K$2, $A58,$P$2,$O$2, "","False") -> 44270 | D58: =RTD("cqg.rtd",,"StudyData", $L$2, "FG", "", "Open", $K$2, $A58, $P$2,$O$2,,$M$2,$N$2) -> 315.79 | E58: =RTD("cqg.rtd",,"StudyData", $L$2, "FG", "", "High", $K$2, $A58, $P$2,$O$2,,$M$2,$N$2) -> 319.37 | F58: =RTD("cqg.rtd",,"StudyData", $L$2, "FG", "", "Low", $K$2, $A58, $P$2,$O$2,,$M$2,$N$2) -> 314.09 | G58: =RTD("cqg.rtd",,"StudyData", $L$2, "FG", "", "Close", $K$2, $A58, $P$2,$O$2,,$M$2,$N$2) -> 318.83 | H58: 2021-03-15 | I58: 44270 | J58: 03/15/21
A59: -57 | B59: =RTD("cqg.rtd",,"StudyData", $L$2, "FG", "", "Time", $K$2,$A59, $P$2, "", "","False") -> 2021-03-12 | C59: =RTD("cqg.rtd",,"StudyData", $L$2, "FG", "", "Time", $K$2, $A59,$P$2,$O$2, "","False") -> 44267 | D59: =RTD("cqg.rtd",,"StudyData", $L$2, "FG", "", "Open", $K$2, $A59, $P$2,$O$2,,$M$2,$N$2) -> 313.86 | E59: =RTD("cqg.rtd",,"StudyData", $L$2, "FG", "", "High", $K$2, $A59, $P$2,$O$2,,$M$2,$N$2) -> 315.68 | F59: =RTD("cqg.rtd",,"StudyData", $L$2, "FG", "", "Low", $K$2, $A59, $P$2,$O$2,,$M$2,$N$2) -> 311.39 | G59: =RTD("cqg.rtd",,"StudyData", $L$2, "FG", "", "Close", $K$2, $A59, $P$2,$O$2,,$M$2,$N$2) -> 315.46 | H59: 2021-03-12 | I59: 44267 | J59: 03/12/21
A60: -58 | B60: =RTD("cqg.rtd",,"StudyData", $L$2, "FG", "", "Time", $K$2,$A60, $P$2, "", "","False") -> 2021-03-11 | C60: =RTD("cqg.rtd",,"StudyData", $L$2, "FG", "", "Time", $K$2, $A60,$P$2,$O$2, "","False") -> 44266 | D60: =RTD("cqg.rtd",,"StudyData", $L$2, "FG", "", "Open", $K$2, $A60, $P$2,$O$2,,$M$2,$N$2) -> 315.77 | E60: =RTD("cqg.rtd",,"StudyData", $L$2, "FG", "", "High", $K$2, $A60, $P$2,$O$2,,$M$2,$N$2) -> 319.86 | F60: =RTD("cqg.rtd",,"StudyData", $L$2, "FG", "", "Low", $K$2, $A60, $P$2,$O$2,,$M$2,$N$2) -> 314.85 | G60: =RTD("cqg.rtd",,"StudyData", $L$2, "FG", "", "Close", $K$2, $A60, $P$2,$O$2,,$M$2,$N$2) -> 318.04 | H60: 2021-03-11 | I60: 44266 | J60: 03/11/21
A61: -59 | B61: =RTD("cqg.rtd",,"StudyData", $L$2, "FG", "", "Time", $K$2,$A61, $P$2, "", "","False") -> 2021-03-10 | C61: =RTD("cqg.rtd",,"StudyData", $L$2, "FG", "", "Time", $K$2, $A61,$P$2,$O$2, "","False") -> 44265 | D61: =RTD("cqg.rtd",,"StudyData", $L$2, "FG", "", "Open", $K$2, $A61, $P$2,$O$2,,$M$2,$N$2) -> 316.16 | E61: =RTD("cqg.rtd",,"StudyData", $L$2, "FG", "", "High", $K$2, $A61, $P$2,$O$2,,$M$2,$N$2) -> 316.47 | F61: =RTD("cqg.rtd",,"StudyData", $L$2, "FG", "", "Low", $K$2, $A61, $P$2,$O$2,,$M$2,$N$2) -> 310.17 | G61: =RTD("cqg.rtd",,"StudyData", $L$2, "FG", "", "Close", $K$2, $A61, $P$2,$O$2,,$M$2,$N$2) -> 310.88 | H61: 2021-03-10 | I61: 44265 | J61: 03/10/21
A62: -60 | B62: =RTD("cqg.rtd",,"StudyData", $L$2, "FG", "", "Time", $K$2,$A62, $P$2, "", "","False") -> 2021-03-09 | C62: =RTD("cqg.rtd",,"StudyData", $L$2, "FG", "", "Time", $K$2, $A62,$P$2,$O$2, "","False") -> 44264 | D62: =RTD("cqg.rtd",,"StudyData", $L$2, "FG", "", "Open", $K$2, $A62, $P$2,$O$2,,$M$2,$N$2) -> 307.47 | E62: =RTD("cqg.rtd",,"StudyData", $L$2, "FG", "", "High", $K$2, $A62, $P$2,$O$2,,$M$2,$N$2) -> 313.73 | F62: =RTD("cqg.rtd",,"StudyData", $L$2, "FG", "", "Low", $K$2, $A62, $P$2,$O$2,,$M$2,$N$2) -> 306.92 | G62: =RTD("cqg.rtd",,"StudyData", $L$2, "FG", "", "Close", $K$2, $A62, $P$2,$O$2,,$M$2,$N$2) -> 311.77 | H62: 2021-03-09 | I62: 44264 | J62: 03/09/21
A63: -61 | B63: =RTD("cqg.rtd",,"StudyData", $L$2, "FG", "", "Time", $K$2,$A63, $P$2, "", "","False") -> 2021-03-08 | C63: =RTD("cqg.rtd",,"StudyData", $L$2, "FG", "", "Time", $K$2, $A63,$P$2,$O$2, "","False") -> 44263 | D63: =RTD("cqg.rtd",,"StudyData", $L$2, "FG", "", "Open", $K$2, $A63, $P$2,$O$2,,$M$2,$N$2) -> 308.12 | E63: =RTD("cqg.rtd",,"StudyData", $L$2, "FG", "", "High", $K$2, $A63, $P$2,$O$2,,$M$2,$N$2) -> 310.06 | F63: =RTD("cqg.rtd",,"StudyData", $L$2, "FG", "", "Low", $K$2, $A63, $P$2,$O$2,,$M$2,$N$2) -> 299.51 | G63: =RTD("cqg.rtd",,"StudyData", $L$2, "FG", "", "Close", $K$2, $A63, $P$2,$O$2,,$M$2,$N$2) -> 299.94 | H63: 2021-03-08 | I63: 44263 | J63: 03/08/21
A64: -62 | B64: =RTD("cqg.rtd",,"StudyData", $L$2, "FG", "", "Time", $K$2,$A64, $P$2, "", "","False") -> 2021-03-05 | C64: =RTD("cqg.rtd",,"StudyData", $L$2, "FG", "", "Time", $K$2, $A64,$P$2,$O$2, "","False") -> 44260 | D64: =RTD("cqg.rtd",,"StudyData", $L$2, "FG", "", "Open", $K$2, $A64, $P$2,$O$2,,$M$2,$N$2) -> 306.79 | E64: =RTD("cqg.rtd",,"StudyData", $L$2, "FG", "", "High", $K$2, $A64, $P$2,$O$2,,$M$2,$N$2) -> 309.6 | F64: =RTD("cqg.rtd",,"StudyData", $L$2, "FG", "", "Low", $K$2, $A64, $P$2,$O$2,,$M$2,$N$2) -> 297.45 | G64: =RTD("cqg.rtd",,"StudyData", $L$2, "FG", "", "Close", $K$2, $A64, $P$2,$O$2,,$M$2,$N$2) -> 308.68 | H64: 2021-03-05 | I64: 44260 | J64: 03/05/21
A65: -63 | B65: =RTD("cqg.rtd",,"StudyData", $L$2, "FG", "", "Time", $K$2,$A65, $P$2, "", "","False") -> 2021-03-04 | C65: =RTD("cqg.rtd",,"StudyData", $L$2, "FG", "", "Time", $K$2, $A65,$P$2,$O$2, "","False") -> 44259 | D65: =RTD("cqg.rtd",,"StudyData", $L$2, "FG", "", "Open", $K$2, $A65, $P$2,$O$2,,$M$2,$N$2) -> 308.78 | E65: =RTD("cqg.rtd",,"StudyData", $L$2, "FG", "", "High", $K$2, $A65, $P$2,$O$2,,$M$2,$N$2) -> 312.04 | F65: =RTD("cqg.rtd",,"StudyData", $L$2, "FG", "", "Low", $K$2, $A65, $P$2,$O$2,,$M$2,$N$2) -> 300.11 | G65: =RTD("cqg.rtd",,"StudyData", $L$2, "FG", "", "Close", $K$2, $A65, $P$2,$O$2,,$M$2,$N$2) -> 304.1 | H65: 2021-03-04 | I65: 44259 | J65: 03/04/21
A66: -64 | B66: =RTD("cqg.rtd",,"StudyData", $L$2, "FG", "", "Time", $K$2,$A66, $P$2, "", "","False") -> 2021-03-03 | C66: =RTD("cqg.rtd",,"StudyData", $L$2, "FG", "", "Time", $K$2, $A66,$P$2,$O$2, "","False") -> 44258 | D66: =RTD("cqg.rtd",,"StudyData", $L$2, "FG", "", "Open", $K$2, $A66, $P$2,$O$2,,$M$2,$N$2) -> 317.27 | E66: =RTD("cqg.rtd",,"StudyData", $L$2, "FG", "", "High", $K$2, $A66, $P$2,$O$2,,$M$2,$N$2) -> 318.24 | F66: =RTD("cqg.rtd",,"StudyData", $L$2, "FG", "", "Low", $K$2, $A66, $P$2,$O$2,,$M$2,$N$2) -> 308.89 | G66: =RTD("cqg.rtd",,"StudyData", $L$2, "FG", "", "Close", $K$2, $A66, $P$2,$O$2,,$M$2,$N$2) -> 309.16 | H66: 2021-03-03 | I66: 44258 | J66: 03/03/21
A67: -65 | B67: =RTD("cqg.rtd",,"StudyData", $L$2, "FG", "", "Time", $K$2,$A67, $P$2, "", "","False") -> 2021-03-02 | C67: =RTD("cqg.rtd",,"StudyData", $L$2, "FG", "", "Time", $K$2, $A67,$P$2,$O$2, "","False") -> 44257 | D67: =RTD("cqg.rtd",,"StudyData", $L$2, "FG", "", "Open", $K$2, $A67, $P$2,$O$2,,$M$2,$N$2) -> 324.25 | E67: =RTD("cqg.rtd",,"StudyData", $L$2, "FG", "", "High", $K$2, $A67, $P$2,$O$2,,$M$2,$N$2) -> 324.33 | F67: =RTD("cqg.rtd",,"StudyData", $L$2, "FG", "", "Low", $K$2, $A67, $P$2,$O$2,,$M$2,$N$2) -> 318.14 | G67: =RTD("cqg.rtd",,"StudyData", $L$2, "FG", "", "Close", $K$2, $A67, $P$2,$O$2,,$M$2,$N$2) -> 318.4 | H67: =B67 -> 2021-03-02 | I67: =B67 -> 44257 | J67: =IF(OR($K$2="D",$K$2="W",$K$2=",'M"),TEXT(H67,"MM/DD/YY"),TEXT(I67,"HH:MM")) -> 03/02/21
A68: =A67-1 -> -66 | B68: =RTD("cqg.rtd",,"StudyData", $L$2, "FG", "", "Time", $K$2,$A68, $P$2, "", "","False") -> 2021-03-01 | C68: =RTD("cqg.rtd",,"StudyData", $L$2, "FG", "", "Time", $K$2, $A68,$P$2,$O$2, "","False") -> 44256 | D68: =RTD("cqg.rtd",,"StudyData", $L$2, "FG", "", "Open", $K$2, $A68, $P$2,$O$2,,$M$2,$N$2) -> 319.27 | E68: =RTD("cqg.rtd",,"StudyData", $L$2, "FG", "", "High", $K$2, $A68, $P$2,$O$2,,$M$2,$N$2) -> 324.43 | F68: =RTD("cqg.rtd",,"StudyData", $L$2, "FG", "", "Low", $K$2, $A68, $P$2,$O$2,,$M$2,$N$2) -> 317.93 | G68: =RTD("cqg.rtd",,"StudyData", $L$2, "FG", "", "Close", $K$2, $A68, $P$2,$O$2,,$M$2,$N$2) -> 323.59 | H68: 2021-03-01 | I68: 44256 | J68: 03/01/21
A69: -67 | B69: =RTD("cqg.rtd",,"StudyData", $L$2, "FG", "", "Time", $K$2,$A69, $P$2, "", "","False") -> 2021-02-26 | C69: =RTD("cqg.rtd",,"StudyData", $L$2, "FG", "", "Time", $K$2, $A69,$P$2,$O$2, "","False") -> 44253 | D69: =RTD("cqg.rtd",,"StudyData", $L$2, "FG", "", "Open", $K$2, $A69, $P$2,$O$2,,$M$2,$N$2) -> 315.85 | E69: =RTD("cqg.rtd",,"StudyData", $L$2, "FG", "", "High", $K$2, $A69, $P$2,$O$2,,$M$2,$N$2) -> 319.11 | F69: =RTD("cqg.rtd",,"StudyData", $L$2, "FG", "", "Low", $K$2, $A69, $P$2,$O$2,,$M$2,$N$2) -> 310.88 | G69: =RTD("cqg.rtd",,"StudyData", $L$2, "FG", "", "Close", $K$2, $A69, $P$2,$O$2,,$M$2,$N$2) -> 314.14 | H69: 2021-02-26 | I69: 44253 | J69: 02/26/21
A70: -68 | B70: =RTD("cqg.rtd",,"StudyData", $L$2, "FG", "", "Time", $K$2,$A70, $P$2, "", "","False") -> 2021-02-25 | C70: =RTD("cqg.rtd",,"StudyData", $L$2, "FG", "", "Time", $K$2, $A70,$P$2,$O$2, "","False") -> 44252 | D70: =RTD("cqg.rtd",,"StudyData", $L$2, "FG", "", "Open", $K$2, $A70, $P$2,$O$2,,$M$2,$N$2) -> 321.39 | E70: =RTD("cqg.rtd",,"StudyData", $L$2, "FG", "", "High", $K$2, $A70, $P$2,$O$2,,$M$2,$N$2) -> 324.03 | F70: =RTD("cqg.rtd",,"StudyData", $L$2, "FG", "", "Low", $K$2, $A70, $P$2,$O$2,,$M$2,$N$2) -> 311.24 | G70: =RTD("cqg.rtd",,"StudyData", $L$2, "FG", "", "Close", $K$2, $A70, $P$2,$O$2,,$M$2,$N$2) -> 312.83 | H70: 2021-02-25 | I70: 44252 | J70: 02/25/21
A71: -69 | B71: =RTD("cqg.rtd",,"StudyData", $L$2, "FG", "", "Time", $K$2,$A71, $P$2, "", "","False") -> 2021-02-24 | C71: =RTD("cqg.rtd",,"StudyData", $L$2, "FG", "", "Time", $K$2, $A71,$P$2,$O$2, "","False") -> 44251 | D71: =RTD("cqg.rtd",,"StudyData", $L$2, "FG", "", "Open", $K$2, $A71, $P$2,$O$2,,$M$2,$N$2) -> 318.74 | E71: =RTD("cqg.rtd",,"StudyData", $L$2, "FG", "", "High", $K$2, $A71, $P$2,$O$2,,$M$2,$N$2) -> 324.99 | F71: =RTD("cqg.rtd",,"StudyData", $L$2, "FG", "", "Low", $K$2, $A71, $P$2,$O$2,,$M$2,$N$2) -> 316.11 | G71: =RTD("cqg.rtd",,"StudyData", $L$2, "FG", "", "Close", $K$2, $A71, $P$2,$O$2,,$M$2,$N$2) -> 324.13 | H71: 2021-02-24 | I71: 44251 | J71: 02/24/21
A72: -70 | B72: =RTD("cqg.rtd",,"StudyData", $L$2, "FG", "", "Time", $K$2,$A72, $P$2, "", "","False") -> 2021-02-23 | C72: =RTD("cqg.rtd",,"StudyData", $L$2, "FG", "", "Time", $K$2, $A72,$P$2,$O$2, "","False") -> 44250 | D72: =RTD("cqg.rtd",,"StudyData", $L$2, "FG", "", "Open", $K$2, $A72, $P$2,$O$2,,$M$2,$N$2) -> 317 | E72: =RTD("cqg.rtd",,"StudyData", $L$2, "FG", "", "High", $K$2, $A72, $P$2,$O$2,,$M$2,$N$2) -> 323.2 | F72: =RTD("cqg.rtd",,"StudyData", $L$2, "FG", "", "Low", $K$2, $A72, $P$2,$O$2,,$M$2,$N$2) -> 311 | G72: =RTD("cqg.rtd",,"StudyData", $L$2, "FG", "", "Close", $K$2, $A72, $P$2,$O$2,,$M$2,$N$2) -> 321.48 | H72: 2021-02-23 | I72: 44250 | J72: 02/23/21
A73: -71 | B73: =RTD("cqg.rtd",,"StudyData", $L$2, "FG", "", "Time", $K$2,$A73, $P$2, "", "","False") -> 2021-02-22 | C73: =RTD("cqg.rtd",,"StudyData", $L$2, "FG", "", "Time", $K$2, $A73,$P$2,$O$2, "","False") -> 44249 | D73: =RTD("cqg.rtd",,"StudyData", $L$2, "FG", "", "Open", $K$2, $A73, $P$2,$O$2,,$M$2,$N$2) -> 326.5 | E73: =RTD("cqg.rtd",,"StudyData", $L$2, "FG", "", "High", $K$2, $A73, $P$2,$O$2,,$M$2,$N$2) -> 327.8 | F73: =RTD("cqg.rtd",,"StudyData", $L$2, "FG", "", "Low", $K$2, $A73, $P$2,$O$2,,$M$2,$N$2) -> 322.14 | G73: =RTD("cqg.rtd",,"StudyData", $L$2, "FG", "", "Close", $K$2, $A73, $P$2,$O$2,,$M$2,$N$2) -> 322.44 | H73: 2021-02-22 | I73: 44249 | J73: 02/22/21
A74: -72 | B74: =RTD("cqg.rtd",,"StudyData", $L$2, "FG", "", "Time", $K$2,$A74, $P$2, "", "","False") -> 2021-02-19 | C74: =RTD("cqg.rtd",,"StudyData", $L$2, "FG", "", "Time", $K$2, $A74,$P$2,$O$2, "","False") -> 44246 | D74: =RTD("cqg.rtd",,"StudyData", $L$2, "FG", "", "Open", $K$2, $A74, $P$2,$O$2,,$M$2,$N$2) -> 333.86 | E74: =RTD("cqg.rtd",,"StudyData", $L$2, "FG", "", "High", $K$2, $A74, $P$2,$O$2,,$M$2,$N$2) -> 333.99 | F74: =RTD("cqg.rtd",,"StudyData", $L$2, "FG", "", "Low", $K$2, $A74, $P$2,$O$2,,$M$2,$N$2) -> 329.97 | G74: =RTD("cqg.rtd",,"StudyData", $L$2, "FG", "", "Close", $K$2, $A74, $P$2,$O$2,,$M$2,$N$2) -> 331.02 | H74: 2021-02-19 | I74: 44246 | J74: 02/19/21
A75: -73 | B75: =RTD("cqg.rtd",,"StudyData", $L$2, "FG", "", "Time", $K$2,$A75, $P$2, "", "","False") -> 2021-02-18 | C75: =RTD("cqg.rtd",,"StudyData", $L$2, "FG", "", "Time", $K$2, $A75,$P$2,$O$2, "","False") -> 44245 | D75: =RTD("cqg.rtd",,"StudyData", $L$2, "FG", "", "Open", $K$2, $A75, $P$2,$O$2,,$M$2,$N$2) -> 330.23 | E75: =RTD("cqg.rtd",,"StudyData", $L$2, "FG", "", "High", $K$2, $A75, $P$2,$O$2,,$M$2,$N$2) -> 333.2 | F75: =RTD("cqg.rtd",,"StudyData", $L$2, "FG", "", "Low", $K$2, $A75, $P$2,$O$2,,$M$2,$N$2) -> 328.36 | G75: =RTD("cqg.rtd",,"StudyData", $L$2, "FG", "", "Close", $K$2, $A75, $P$2,$O$2,,$M$2,$N$2) -> 332.47 | H75: 2021-02-18 | I75: 44245 | J75: 02/18/21
A76: -74 | B76: =RTD("cqg.rtd",,"StudyData", $L$2, "FG", "", "Time", $K$2,$A76, $P$2, "", "","False") -> 2021-02-17 | C76: =RTD("cqg.rtd",,"StudyData", $L$2, "FG", "", "Time", $K$2, $A76,$P$2,$O$2, "","False") -> 44244 | D76: =RTD("cqg.rtd",,"StudyData", $L$2, "FG", "", "Open", $K$2, $A76, $P$2,$O$2,,$M$2,$N$2) -> 332.47 | E76: =RTD("cqg.rtd",,"StudyData", $L$2, "FG", "", "High", $K$2, $A76, $P$2,$O$2,,$M$2,$N$2) -> 334.21 | F76: =RTD("cqg.rtd",,"StudyData", $L$2, "FG", "", "Low", $K$2, $A76, $P$2,$O$2,,$M$2,$N$2) -> 330.17 | G76: =RTD("cqg.rtd",,"StudyData", $L$2, "FG", "", "Close", $K$2, $A76, $P$2,$O$2,,$M$2,$N$2) -> 333.93 | H76: 2021-02-17 | I76: 44244 | J76: 02/17/21
A77: -75 | B77: =RTD("cqg.rtd",,"StudyData", $L$2, "FG", "", "Time", $K$2,$A77, $P$2, "", "","False") -> 2021-02-16 | C77: =RTD("cqg.rtd",,"StudyData", $L$2, "FG", "", "Time", $K$2, $A77,$P$2,$O$2, "","False") -> 44243 | D77: =RTD("cqg.rtd",,"StudyData", $L$2, "FG", "", "Open", $K$2, $A77, $P$2,$O$2,,$M$2,$N$2) -> 337.27 | E77: =RTD("cqg.rtd",,"StudyData", $L$2, "FG", "", "High", $K$2, $A77, $P$2,$O$2,,$M$2,$N$2) -> 338.19 | F77: =RTD("cqg.rtd",,"StudyData", $L$2, "FG", "", "Low", $K$2, $A77, $P$2,$O$2,,$M$2,$N$2) -> 334.34 | G77: =RTD("cqg.rtd",,"StudyData", $L$2, "FG", "", "Close", $K$2, $A77, $P$2,$O$2,,$M$2,$N$2) -> 335.54 | H77: 2021-02-16 | I77: 44243 | J77: 02/16/21
A78: -76 | B78: =RTD("cqg.rtd",,"StudyData", $L$2, "FG", "", "Time", $K$2,$A78, $P$2, "", "","False") -> 2021-02-12 | C78: =RTD("cqg.rtd",,"StudyData", $L$2, "FG", "", "Time", $K$2, $A78,$P$2,$O$2, "","False") -> 44239 | D78: =RTD("cqg.rtd",,"StudyData", $L$2, "FG", "", "Open", $K$2, $A78, $P$2,$O$2,,$M$2,$N$2) -> 333.71 | E78: =RTD("cqg.rtd",,"StudyData", $L$2, "FG", "", "High", $K$2, $A78, $P$2,$O$2,,$M$2,$N$2) -> 336.74 | F78: =RTD("cqg.rtd",,"StudyData", $L$2, "FG", "", "Low", $K$2, $A78, $P$2,$O$2,,$M$2,$N$2) -> 332.63 | G78: =RTD("cqg.rtd",,"StudyData", $L$2, "FG", "", "Close", $K$2, $A78, $P$2,$O$2,,$M$2,$N$2) -> 336.45 | H78: 2021-02-12 | I78: 44239 | J78: 02/12/21
A79: -77 | B79: =RTD("cqg.rtd",,"StudyData", $L$2, "FG", "", "Time", $K$2,$A79, $P$2, "", "","False") -> 2021-02-11 | C79: =RTD("cqg.rtd",,"StudyData", $L$2, "FG", "", "Time", $K$2, $A79,$P$2,$O$2, "","False") -> 44238 | D79: =RTD("cqg.rtd",,"StudyData", $L$2, "FG", "", "Open", $K$2, $A79, $P$2,$O$2,,$M$2,$N$2) -> 334.33 | E79: =RTD("cqg.rtd",,"StudyData", $L$2, "FG", "", "High", $K$2, $A79, $P$2,$O$2,,$M$2,$N$2) -> 335 | F79: =RTD("cqg.rtd",,"StudyData", $L$2, "FG", "", "Low", $K$2, $A79, $P$2,$O$2,,$M$2,$N$2) -> 332.12 | G79: =RTD("cqg.rtd",,"StudyData", $L$2, "FG", "", "Close", $K$2, $A79, $P$2,$O$2,,$M$2,$N$2) -> 334.58 | H79: 2021-02-11 | I79: 44238 | J79: 02/11/21
A80: -78 | B80: =RTD("cqg.rtd",,"StudyData", $L$2, "FG", "", "Time", $K$2,$A80, $P$2, "", "","False") -> 2021-02-10 | C80: =RTD("cqg.rtd",,"StudyData", $L$2, "FG", "", "Time", $K$2, $A80,$P$2,$O$2, "","False") -> 44237 | D80: =RTD("cqg.rtd",,"StudyData", $L$2, "FG", "", "Open", $K$2, $A80, $P$2,$O$2,,$M$2,$N$2) -> 334.99 | E80: =RTD("cqg.rtd",,"StudyData", $L$2, "FG", "", "High", $K$2, $A80, $P$2,$O$2,,$M$2,$N$2) -> 335.46 | F80: =RTD("cqg.rtd",,"StudyData", $L$2, "FG", "", "Low", $K$2, $A80, $P$2,$O$2,,$M$2,$N$2) -> 329.5 | G80: =RTD("cqg.rtd",,"StudyData", $L$2, "FG", "", "Close", $K$2, $A80, $P$2,$O$2,,$M$2,$N$2) -> 332.75 | H80: 2021-02-10 | I80: 44237 | J80: 02/10/21
A81: -79 | B81: =RTD("cqg.rtd",,"StudyData", $L$2, "FG", "", "Time", $K$2,$A81, $P$2, "", "","False") -> 2021-02-09 | C81: =RTD("cqg.rtd",,"StudyData", $L$2, "FG", "", "Time", $K$2, $A81,$P$2,$O$2, "","False") -> 44236 | D81: =RTD("cqg.rtd",,"StudyData", $L$2, "FG", "", "Open", $K$2, $A81, $P$2,$O$2,,$M$2,$N$2) -> 332.62 | E81: =RTD("cqg.rtd",,"StudyData", $L$2, "FG", "", "High", $K$2, $A81, $P$2,$O$2,,$M$2,$N$2) -> 334.81 | F81: =RTD("cqg.rtd",,"StudyData", $L$2, "FG", "", "Low", $K$2, $A81, $P$2,$O$2,,$M$2,$N$2) -> 332.61 | G81: =RTD("cqg.rtd",,"StudyData", $L$2, "FG", "", "Close", $K$2, $A81, $P$2,$O$2,,$M$2,$N$2) -> 333.51 | H81: 2021-02-09 | I81: 44236 | J81: 02/09/21
A82: -80 | B82: =RTD("cqg.rtd",,"StudyData", $L$2, "FG", "", "Time", $K$2,$A82, $P$2, "", "","False") -> 2021-02-08 | C82: =RTD("cqg.rtd",,"StudyData", $L$2, "FG", "", "Time", $K$2, $A82,$P$2,$O$2, "","False") -> 44235 | D82: =RTD("cqg.rtd",,"StudyData", $L$2, "FG", "", "Open", $K$2, $A82, $P$2,$O$2,,$M$2,$N$2) -> 333.1 | E82: =RTD("cqg.rtd",,"StudyData", $L$2, "FG", "", "High", $K$2, $A82, $P$2,$O$2,,$M$2,$N$2) -> 333.75 | F82: =RTD("cqg.rtd",,"StudyData", $L$2, "FG", "", "Low", $K$2, $A82, $P$2,$O$2,,$M$2,$N$2) -> 331.41 | G82: =RTD("cqg.rtd",,"StudyData", $L$2, "FG", "", "Close", $K$2, $A82, $P$2,$O$2,,$M$2,$N$2) -> 333.58 | H82: 2021-02-08 | I82: 44235 | J82: 02/08/21
A83: -81 | B83: =RTD("cqg.rtd",,"StudyData", $L$2, "FG", "", "Time", $K$2,$A83, $P$2, "", "","False") -> 2021-02-05 | C83: =RTD("cqg.rtd",,"StudyData", $L$2, "FG", "", "Time", $K$2, $A83,$P$2,$O$2, "","False") -> 44232 | D83: =RTD("cqg.rtd",,"StudyData", $L$2, "FG", "", "Open", $K$2, $A83, $P$2,$O$2,,$M$2,$N$2) -> 331.22 | E83: =RTD("cqg.rtd",,"StudyData", $L$2, "FG", "", "High", $K$2, $A83, $P$2,$O$2,,$M$2,$N$2) -> 332.4 | F83: =RTD("cqg.rtd",,"StudyData", $L$2, "FG", "", "Low", $K$2, $A83, $P$2,$O$2,,$M$2,$N$2) -> 329.53 | G83: =RTD("cqg.rtd",,"StudyData", $L$2, "FG", "", "Close", $K$2, $A83, $P$2,$O$2,,$M$2,$N$2) -> 331.36 | H83: 2021-02-05 | I83: 44232 | J83: 02/05/21
A84: -82 | B84: =RTD("cqg.rtd",,"StudyData", $L$2, "FG", "", "Time", $K$2,$A84, $P$2, "", "","False") -> 2021-02-04 | C84: =RTD("cqg.rtd",,"StudyData", $L$2, "FG", "", "Time", $K$2, $A84,$P$2,$O$2, "","False") -> 44231 | D84: =RTD("cqg.rtd",,"StudyData", $L$2, "FG", "", "Open", $K$2, $A84, $P$2,$O$2,,$M$2,$N$2) -> 327.82 | E84: =RTD("cqg.rtd",,"StudyData", $L$2, "FG", "", "High", $K$2, $A84, $P$2,$O$2,,$M$2,$N$2) -> 330.7 | F84: =RTD("cqg.rtd",,"StudyData", $L$2, "FG", "", "Low", $K$2, $A84, $P$2,$O$2,,$M$2,$N$2) -> 326.46 | G84: =RTD("cqg.rtd",,"StudyData", $L$2, "FG", "", "Close", $K$2, $A84, $P$2,$O$2,,$M$2,$N$2) -> 330.24 | H84: 2021-02-04 | I84: 44231 | J84: 02/04/21
A85: -83 | B85: =RTD("cqg.rtd",,"StudyData", $L$2, "FG", "", "Time", $K$2,$A85, $P$2, "", "","False") -> 2021-02-03 | C85: =RTD("cqg.rtd",,"StudyData", $L$2, "FG", "", "Time", $K$2, $A85,$P$2,$O$2, "","False") -> 44230 | D85: =RTD("cqg.rtd",,"StudyData", $L$2, "FG", "", "Open", $K$2, $A85, $P$2,$O$2,,$M$2,$N$2) -> 329.82 | E85: =RTD("cqg.rtd",,"StudyData", $L$2, "FG", "", "High", $K$2, $A85, $P$2,$O$2,,$M$2,$N$2) -> 330.19 | F85: =RTD("cqg.rtd",,"StudyData", $L$2, "FG", "", "Low", $K$2, $A85, $P$2,$O$2,,$M$2,$N$2) -> 326.32 | G85: =RTD("cqg.rtd",,"StudyData", $L$2, "FG", "", "Close", $K$2, $A85, $P$2,$O$2,,$M$2,$N$2) -> 326.38 | H85: 2021-02-03 | I85: 44230 | J85: 02/03/21
A86: -84 | B86: =RTD("cqg.rtd",,"StudyData", $L$2, "FG", "", "Time", $K$2,$A86, $P$2, "", "","False") -> 2021-02-02 | C86: =RTD("cqg.rtd",,"StudyData", $L$2, "FG", "", "Time", $K$2, $A86,$P$2,$O$2, "","False") -> 44229 | D86: =RTD("cqg.rtd",,"StudyData", $L$2, "FG", "", "Open", $K$2, $A86, $P$2,$O$2,,$M$2,$N$2) -> 325.48 | E86: =RTD("cqg.rtd",,"StudyData", $L$2, "FG", "", "High", $K$2, $A86, $P$2,$O$2,,$M$2,$N$2) -> 329.22 | F86: =RTD("cqg.rtd",,"StudyData", $L$2, "FG", "", "Low", $K$2, $A86, $P$2,$O$2,,$M$2,$N$2) -> 325.31 | G86: =RTD("cqg.rtd",,"StudyData", $L$2, "FG", "", "Close", $K$2, $A86, $P$2,$O$2,,$M$2,$N$2) -> 327.68 | H86: 2021-02-02 | I86: 44229 | J86: 02/02/21
A87: -85 | B87: =RTD("cqg.rtd",,"StudyData", $L$2, "FG", "", "Time", $K$2,$A87, $P$2, "", "","False") -> 2021-02-01 | C87: =RTD("cqg.rtd",,"StudyData", $L$2, "FG", "", "Time", $K$2, $A87,$P$2,$O$2, "","False") -> 44228 | D87: =RTD("cqg.rtd",,"StudyData", $L$2, "FG", "", "Open", $K$2, $A87, $P$2,$O$2,,$M$2,$N$2) -> 318.11 | E87: =RTD("cqg.rtd",,"StudyData", $L$2, "FG", "", "High", $K$2, $A87, $P$2,$O$2,,$M$2,$N$2) -> 323.54 | F87: =RTD("cqg.rtd",,"StudyData", $L$2, "FG", "", "Low", $K$2, $A87, $P$2,$O$2,,$M$2,$N$2) -> 316.02 | G87: =RTD("cqg.rtd",,"StudyData", $L$2, "FG", "", "Close", $K$2, $A87, $P$2,$O$2,,$M$2,$N$2) -> 322.42 | H87: 2021-02-01 | I87: 44228 | J87: 02/01/21
A88: -86 | B88: =RTD("cqg.rtd",,"StudyData", $L$2, "FG", "", "Time", $K$2,$A88, $P$2, "", "","False") -> 2021-01-29 | C88: =RTD("cqg.rtd",,"StudyData", $L$2, "FG", "", "Time", $K$2, $A88,$P$2,$O$2, "","False") -> 44225 | D88: =RTD("cqg.rtd",,"StudyData", $L$2, "FG", "", "Open", $K$2, $A88, $P$2,$O$2,,$M$2,$N$2) -> 319.58 | E88: =RTD("cqg.rtd",,"StudyData", $L$2, "FG", "", "High", $K$2, $A88, $P$2,$O$2,,$M$2,$N$2) -> 320.71 | F88: =RTD("cqg.rtd",,"StudyData", $L$2, "FG", "", "Low", $K$2, $A88, $P$2,$O$2,,$M$2,$N$2) -> 312.76 | G88: =RTD("cqg.rtd",,"StudyData", $L$2, "FG", "", "Close", $K$2, $A88, $P$2,$O$2,,$M$2,$N$2) -> 314.56 | H88: 2021-01-29 | I88: 44225 | J88: 01/29/21
A89: -87 | B89: =RTD("cqg.rtd",,"StudyData", $L$2, "FG", "", "Time", $K$2,$A89, $P$2, "", "","False") -> 2021-01-28 | C89: =RTD("cqg.rtd",,"StudyData", $L$2, "FG", "", "Time", $K$2, $A89,$P$2,$O$2, "","False") -> 44224 | D89: =RTD("cqg.rtd",,"StudyData", $L$2, "FG", "", "Open", $K$2, $A89, $P$2,$O$2,,$M$2,$N$2) -> 320.67 | E89: =RTD("cqg.rtd",,"StudyData", $L$2, "FG", "", "High", $K$2, $A89, $P$2,$O$2,,$M$2,$N$2) -> 326.42 | F89: =RTD("cqg.rtd",,"StudyData", $L$2, "FG", "", "Low", $K$2, $A89, $P$2,$O$2,,$M$2,$N$2) -> 320.03 | G89: =RTD("cqg.rtd",,"StudyData", $L$2, "FG", "", "Close", $K$2, $A89, $P$2,$O$2,,$M$2,$N$2) -> 321.32 | H89: 2021-01-28 | I89: 44224 | J89: 01/28/21
A90: -88 | B90: =RTD("cqg.rtd",,"StudyData", $L$2, "FG", "", "Time", $K$2,$A90, $P$2, "", "","False") -> 2021-01-27 | C90: =RTD("cqg.rtd",,"StudyData", $L$2, "FG", "", "Time", $K$2, $A90,$P$2,$O$2, "","False") -> 44223 | D90: =RTD("cqg.rtd",,"StudyData", $L$2, "FG", "", "Open", $K$2, $A90, $P$2,$O$2,,$M$2,$N$2) -> 326.26 | E90: =RTD("cqg.rtd",,"StudyData", $L$2, "FG", "", "High", $K$2, $A90, $P$2,$O$2,,$M$2,$N$2) -> 326.27 | F90: =RTD("cqg.rtd",,"StudyData", $L$2, "FG", "", "Low", $K$2, $A90, $P$2,$O$2,,$M$2,$N$2) -> 317.36 | G90: =RTD("cqg.rtd",,"StudyData", $L$2, "FG", "", "Close", $K$2, $A90, $P$2,$O$2,,$M$2,$N$2) -> 319.43 | H90: 2021-01-27 | I90: 44223 | J90: 01/27/21
A91: -89 | B91: =RTD("cqg.rtd",,"StudyData", $L$2, "FG", "", "Time", $K$2,$A91, $P$2, "", "","False") -> 2021-01-26 | C91: =RTD("cqg.rtd",,"StudyData", $L$2, "FG", "", "Time", $K$2, $A91,$P$2,$O$2, "","False") -> 44222 | D91: =RTD("cqg.rtd",,"StudyData", $L$2, "FG", "", "Open", $K$2, $A91, $P$2,$O$2,,$M$2,$N$2) -> 328.85 | E91: =RTD("cqg.rtd",,"StudyData", $L$2, "FG", "", "High", $K$2, $A91, $P$2,$O$2,,$M$2,$N$2) -> 329.76 | F91: =RTD("cqg.rtd",,"StudyData", $L$2, "FG", "", "Low", $K$2, $A91, $P$2,$O$2,,$M$2,$N$2) -> 327.22 | G91: =RTD("cqg.rtd",,"StudyData", $L$2, "FG", "", "Close", $K$2, $A91, $P$2,$O$2,,$M$2,$N$2) -> 328.59 | H91: 2021-01-26 | I91: 44222 | J91: 01/26/21
A92: -90 | B92: =RTD("cqg.rtd",,"StudyData", $L$2, "FG", "", "Time", $K$2,$A92, $P$2, "", "","False") -> 2021-01-25 | C92: =RTD("cqg.rtd",,"StudyData", $L$2, "FG", "", "Time", $K$2, $A92,$P$2,$O$2, "","False") -> 44221 | D92: =RTD("cqg.rtd",,"StudyData", $L$2, "FG", "", "Open", $K$2, $A92, $P$2,$O$2,,$M$2,$N$2) -> 328.91 | E92: =RTD("cqg.rtd",,"StudyData", $L$2, "FG", "", "High", $K$2, $A92, $P$2,$O$2,,$M$2,$N$2) -> 330.32 | F92: =RTD("cqg.rtd",,"StudyData", $L$2, "FG", "", "Low", $K$2, $A92, $P$2,$O$2,,$M$2,$N$2) -> 321.41 | G92: =RTD("cqg.rtd",,"StudyData", $L$2, "FG", "", "Close", $K$2, $A92, $P$2,$O$2,,$M$2,$N$2) -> 328.11 | H92: 2021-01-25 | I92: 44221 | J92: 01/25/21
A93: -91 | B93: =RTD("cqg.rtd",,"StudyData", $L$2, "FG", "", "Time", $K$2,$A93, $P$2, "", "","False") -> 2021-01-22 | C93: =RTD("cqg.rtd",,"StudyData", $L$2, "FG", "", "Time", $K$2, $A93,$P$2,$O$2, "","False") -> 44218 | D93: =RTD("cqg.rtd",,"StudyData", $L$2, "FG", "", "Open", $K$2, $A93, $P$2,$O$2,,$M$2,$N$2) -> 325.29 | E93: =RTD("cqg.rtd",,"StudyData", $L$2, "FG", "", "High", $K$2, $A93, $P$2,$O$2,,$M$2,$N$2) -> 326.46 | F93: =RTD("cqg.rtd",,"StudyData", $L$2, "FG", "", "Low", $K$2, $A93, $P$2,$O$2,,$M$2,$N$2) -> 324.71 | G93: =RTD("cqg.rtd",,"StudyData", $L$2, "FG", "", "Close", $K$2, $A93, $P$2,$O$2,,$M$2,$N$2) -> 325.42 | H93: 2021-01-22 | I93: 44218 | J93: 01/22/21
A94: -92 | B94: =RTD("cqg.rtd",,"StudyData", $L$2, "FG", "", "Time", $K$2,$A94, $P$2, "", "","False") -> 2021-01-21 | C94: =RTD("cqg.rtd",,"StudyData", $L$2, "FG", "", "Time", $K$2, $A94,$P$2,$O$2, "","False") -> 44217 | D94: =RTD("cqg.rtd",,"StudyData", $L$2, "FG", "", "Open", $K$2, $A94, $P$2,$O$2,,$M$2,$N$2) -> 325.15 | E94: =RTD("cqg.rtd",,"StudyData", $L$2, "FG", "", "High", $K$2, $A94, $P$2,$O$2,,$M$2,$N$2) -> 327.13 | F94: =RTD("cqg.rtd",,"StudyData", $L$2, "FG", "", "Low", $K$2, $A94, $P$2,$O$2,,$M$2,$N$2) -> 323.73 | G94: =RTD("cqg.rtd",,"StudyData", $L$2, "FG", "", "Close", $K$2, $A94, $P$2,$O$2,,$M$2,$N$2) -> 326.36 | H94: 2021-01-21 | I94: 44217 | J94: 01/21/21
A95: -93 | B95: =RTD("cqg.rtd",,"StudyData", $L$2, "FG", "", "Time", $K$2,$A95, $P$2, "", "","False") -> 2021-01-20 | C95: =RTD("cqg.rtd",,"StudyData", $L$2, "FG", "", "Time", $K$2, $A95,$P$2,$O$2, "","False") -> 44216 | D95: =RTD("cqg.rtd",,"StudyData", $L$2, "FG", "", "Open", $K$2, $A95, $P$2,$O$2,,$M$2,$N$2) -> 320.14 | E95: =RTD("cqg.rtd",,"StudyData", $L$2, "FG", "", "High", $K$2, $A95, $P$2,$O$2,,$M$2,$N$2) -> 324.74 | F95: =RTD("cqg.rtd",,"StudyData", $L$2, "FG", "", "Low", $K$2, $A95, $P$2,$O$2,,$M$2,$N$2) -> 319.77 | G95: =RTD("cqg.rtd",,"StudyData", $L$2, "FG", "", "Close", $K$2, $A95, $P$2,$O$2,,$M$2,$N$2) -> 323.77 | H95: 2021-01-20 | I95: 44216 | J95: 01/20/21
A96: -94 | B96: =RTD("cqg.rtd",,"StudyData", $L$2, "FG", "", "Time", $K$2,$A96, $P$2, "", "","False") -> 2021-01-19 | C96: =RTD("cqg.rtd",,"StudyData", $L$2, "FG", "", "Time", $K$2, $A96,$P$2,$O$2, "","False") -> 44215 | D96: =RTD("cqg.rtd",,"StudyData", $L$2, "FG", "", "Open", $K$2, $A96, $P$2,$O$2,,$M$2,$N$2) -> 314.25 | E96: =RTD("cqg.rtd",,"StudyData", $L$2, "FG", "", "High", $K$2, $A96, $P$2,$O$2,,$M$2,$N$2) -> 317.01 | F96: =RTD("cqg.rtd",,"StudyData", $L$2, "FG", "", "Low", $K$2, $A96, $P$2,$O$2,,$M$2,$N$2) -> 313.12 | G96: =RTD("cqg.rtd",,"StudyData", $L$2, "FG", "", "Close", $K$2, $A96, $P$2,$O$2,,$M$2,$N$2) -> 316.41 | H96: 2021-01-19 | I96: 44215 | J96: 01/19/21
A97: -95 | B97: =RTD("cqg.rtd",,"StudyData", $L$2, "FG", "", "Time", $K$2,$A97, $P$2, "", "","False") -> 2021-01-15 | C97: =RTD("cqg.rtd",,"StudyData", $L$2, "FG", "", "Time", $K$2, $A97,$P$2,$O$2, "","False") -> 44211 | D97: =RTD("cqg.rtd",,"StudyData", $L$2, "FG", "", "Open", $K$2, $A97, $P$2,$O$2,,$M$2,$N$2) -> 314.13 | E97: =RTD("cqg.rtd",,"StudyData", $L$2, "FG", "", "High", $K$2, $A97, $P$2,$O$2,,$M$2,$N$2) -> 315.12 | F97: =RTD("cqg.rtd",,"StudyData", $L$2, "FG", "", "Low", $K$2, $A97, $P$2,$O$2,,$M$2,$N$2) -> 310.58 | G97: =RTD("cqg.rtd",,"StudyData", $L$2, "FG", "", "Close", $K$2, $A97, $P$2,$O$2,,$M$2,$N$2) -> 311.86 | H97: 2021-01-15 | I97: 44211 | J97: 01/15/21
A98: -96 | B98: =RTD("cqg.rtd",,"StudyData", $L$2, "FG", "", "Time", $K$2,$A98, $P$2, "", "","False") -> 2021-01-14 | C98: =RTD("cqg.rtd",,"StudyData", $L$2, "FG", "", "Time", $K$2, $A98,$P$2,$O$2, "","False") -> 44210 | D98: =RTD("cqg.rtd",,"StudyData", $L$2, "FG", "", "Open", $K$2, $A98, $P$2,$O$2,,$M$2,$N$2) -> 316.5 | E98: =RTD("cqg.rtd",,"StudyData", $L$2, "FG", "", "High", $K$2, $A98, $P$2,$O$2,,$M$2,$N$2) -> 317.53 | F98: =RTD("cqg.rtd",,"StudyData", $L$2, "FG", "", "Low", $K$2, $A98, $P$2,$O$2,,$M$2,$N$2) -> 313.86 | G98: =RTD("cqg.rtd",,"StudyData", $L$2, "FG", "", "Close", $K$2, $A98, $P$2,$O$2,,$M$2,$N$2) -> 314.35 | H98: 2021-01-14 | I98: 44210 | J98: 01/14/21
A99: -97 | B99: =RTD("cqg.rtd",,"StudyData", $L$2, "FG", "", "Time", $K$2,$A99, $P$2, "", "","False") -> 2021-01-13 | C99: =RTD("cqg.rtd",,"StudyData", $L$2, "FG", "", "Time", $K$2, $A99,$P$2,$O$2, "","False") -> 44209 | D99: =RTD("cqg.rtd",,"StudyData", $L$2, "FG", "", "Open", $K$2, $A99, $P$2,$O$2,,$M$2,$N$2) -> 314.19 | E99: =RTD("cqg.rtd",,"StudyData", $L$2, "FG", "", "High", $K$2, $A99, $P$2,$O$2,,$M$2,$N$2) -> 316.86 | F99: =RTD("cqg.rtd",,"StudyData", $L$2, "FG", "", "Low", $K$2, $A99, $P$2,$O$2,,$M$2,$N$2) -> 313.57 | G99: =RTD("cqg.rtd",,"StudyData", $L$2, "FG", "", "Close", $K$2, $A99, $P$2,$O$2,,$M$2,$N$2) -> 316.04 | H99: 2021-01-13 | I99: 44209 | J99: 01/13/21
A100: -98 | B100: =RTD("cqg.rtd",,"StudyData", $L$2, "FG", "", "Time", $K$2,$A100, $P$2, "", "","False") -> 2021-01-12 | C100: =RTD("cqg.rtd",,"StudyData", $L$2, "FG", "", "Time", $K$2, $A100,$P$2,$O$2, "","False") -> 44208 | D100: =RTD("cqg.rtd",,"StudyData", $L$2, "FG", "", "Open", $K$2, $A100, $P$2,$O$2,,$M$2,$N$2) -> 314.46 | E100: =RTD("cqg.rtd",,"StudyData", $L$2, "FG", "", "High", $K$2, $A100, $P$2,$O$2,,$M$2,$N$2) -> 315.58 | F100: =RTD("cqg.rtd",,"StudyData", $L$2, "FG", "", "Low", $K$2, $A100, $P$2,$O$2,,$M$2,$N$2) -> 311.2 | G100: =RTD("cqg.rtd",,"StudyData", $L$2, "FG", "", "Close", $K$2, $A100, $P$2,$O$2,,$M$2,$N$2) -> 313.92 | H100: 2021-01-12 | I100: 44208 | J100: 01/12/21
A101: -99 | B101: =RTD("cqg.rtd",,"StudyData", $L$2, "FG", "", "Time", $K$2,$A101, $P$2, "", "","False") -> 2021-01-11 | C101: =RTD("cqg.rtd",,"StudyData", $L$2, "FG", "", "Time", $K$2, $A101,$P$2,$O$2, "","False") -> 44207 | D101: =RTD("cqg.rtd",,"StudyData", $L$2, "FG", "", "Open", $K$2, $A101, $P$2,$O$2,,$M$2,$N$2) -> 315.98 | E101: =RTD("cqg.rtd",,"StudyData", $L$2, "FG", "", "High", $K$2, $A101, $P$2,$O$2,,$M$2,$N$2) -> 317.19 | F101: =RTD("cqg.rtd",,"StudyData", $L$2, "FG", "", "Low", $K$2, $A101, $P$2,$O$2,,$M$2,$N$2) -> 313.75 | G101: =RTD("cqg.rtd",,"StudyData", $L$2, "FG", "", "Close", $K$2, $A101, $P$2,$O$2,,$M$2,$N$2) -> 314.42 | H101: 2021-01-11 | I101: 44207 | J101: 01/11/21
A102: -100 | B102: =RTD("cqg.rtd",,"StudyData", $L$2, "FG", "", "Time", $K$2,$A102, $P$2, "", "","False") -> 2021-01-08 | C102: =RTD("cqg.rtd",,"StudyData", $L$2, "FG", "", "Time", $K$2, $A102,$P$2,$O$2, "","False") -> 44204 | D102: =RTD("cqg.rtd",,"StudyData", $L$2, "FG", "", "Open", $K$2, $A102, $P$2,$O$2,,$M$2,$N$2) -> 317.34 | E102: =RTD("cqg.rtd",,"StudyData", $L$2, "FG", "", "High", $K$2, $A102, $P$2,$O$2,,$M$2,$N$2) -> 319.73 | F102: =RTD("cqg.rtd",,"StudyData", $L$2, "FG", "", "Low", $K$2, $A102, $P$2,$O$2,,$M$2,$N$2) -> 315.08 | G102: =RTD("cqg.rtd",,"StudyData", $L$2, "FG", "", "Close", $K$2, $A102, $P$2,$O$2,,$M$2,$N$2) -> 319.03 | H102: 2021-01-08 | I102: 44204 | J102: 01/08/21
A103: -101 | B103: =RTD("cqg.rtd",,"StudyData", $L$2, "FG", "", "Time", $K$2,$A103, $P$2, "", "","False") -> 2021-01-07 | C103: =RTD("cqg.rtd",,"StudyData", $L$2, "FG", "", "Time", $K$2, $A103,$P$2,$O$2, "","False") -> 44203 | D103: =RTD("cqg.rtd",,"StudyData", $L$2, "FG", "", "Open", $K$2, $A103, $P$2,$O$2,,$M$2,$N$2) -> 310.28 | E103: =RTD("cqg.rtd",,"StudyData", $L$2, "FG", "", "High", $K$2, $A103, $P$2,$O$2,,$M$2,$N$2) -> 315.84 | F103: =RTD("cqg.rtd",,"StudyData", $L$2, "FG", "", "Low", $K$2, $A103, $P$2,$O$2,,$M$2,$N$2) -> 310.25 | G103: =RTD("cqg.rtd",,"StudyData", $L$2, "FG", "", "Close", $K$2, $A103, $P$2,$O$2,,$M$2,$N$2) -> 314.98 | H103: 2021-01-07 | I103: 44203 | J103: 01/07/21
A104: -102 | B104: =RTD("cqg.rtd",,"StudyData", $L$2, "FG", "", "Time", $K$2,$A104, $P$2, "", "","False") -> 2021-01-06 | C104: =RTD("cqg.rtd",,"StudyData", $L$2, "FG", "", "Time", $K$2, $A104,$P$2,$O$2, "","False") -> 44202 | D104: =RTD("cqg.rtd",,"StudyData", $L$2, "FG", "", "Open", $K$2, $A104, $P$2,$O$2,,$M$2,$N$2) -> 307 | E104: =RTD("cqg.rtd",,"StudyData", $L$2, "FG", "", "High", $K$2, $A104, $P$2,$O$2,,$M$2,$N$2) -> 311.88 | F104: =RTD("cqg.rtd",,"StudyData", $L$2, "FG", "", "Low", $K$2, $A104, $P$2,$O$2,,$M$2,$N$2) -> 305.98 | G104: =RTD("cqg.rtd",,"StudyData", $L$2, "FG", "", "Close", $K$2, $A104, $P$2,$O$2,,$M$2,$N$2) -> 307.54 | H104: 2021-01-06 | I104: 44202 | J104: 01/06/21
A105: -103 | B105: =RTD("cqg.rtd",,"StudyData", $L$2, "FG", "", "Time", $K$2,$A105, $P$2, "", "","False") -> 2021-01-05 | C105: =RTD("cqg.rtd",,"StudyData", $L$2, "FG", "", "Time", $K$2, $A105,$P$2,$O$2, "","False") -> 44201 | D105: =RTD("cqg.rtd",,"StudyData", $L$2, "FG", "", "Open", $K$2, $A105, $P$2,$O$2,,$M$2,$N$2) -> 308.29 | E105: =RTD("cqg.rtd",,"StudyData", $L$2, "FG", "", "High", $K$2, $A105, $P$2,$O$2,,$M$2,$N$2) -> 312.17 | F105: =RTD("cqg.rtd",,"StudyData", $L$2, "FG", "", "Low", $K$2, $A105, $P$2,$O$2,,$M$2,$N$2) -> 308.29 | G105: =RTD("cqg.rtd",,"StudyData", $L$2, "FG", "", "Close", $K$2, $A105, $P$2,$O$2,,$M$2,$N$2) -> 311.86 | H105: 2021-01-05 | I105: 44201 | J105: 01/05/21
A106: -104 | B106: =RTD("cqg.rtd",,"StudyData", $L$2, "FG", "", "Time", $K$2,$A106, $P$2, "", "","False") -> 2021-01-04 | C106: =RTD("cqg.rtd",,"StudyData", $L$2, "FG", "", "Time", $K$2, $A106,$P$2,$O$2, "","False") -> 44200 | D106: =RTD("cqg.rtd",,"StudyData", $L$2, "FG", "", "Open", $K$2, $A106, $P$2,$O$2,,$M$2,$N$2) -> 315.11 | E106: =RTD("cqg.rtd",,"StudyData", $L$2, "FG", "", "High", $K$2, $A106, $P$2,$O$2,,$M$2,$N$2) -> 315.29 | F106: =RTD("cqg.rtd",,"StudyData", $L$2, "FG", "", "Low", $K$2, $A106, $P$2,$O$2,,$M$2,$N$2) -> 305.18 | G106: =RTD("cqg.rtd",,"StudyData", $L$2, "FG", "", "Close", $K$2, $A106, $P$2,$O$2,,$M$2,$N$2) -> 309.31 | H106: 2021-01-04 | I106: 44200 | J106: 01/04/21
A107: -105 | B107: =RTD("cqg.rtd",,"StudyData", $L$2, "FG", "", "Time", $K$2,$A107, $P$2, "", "","False") -> 2020-12-31 | C107: =RTD("cqg.rtd",,"StudyData", $L$2, "FG", "", "Time", $K$2, $A107,$P$2,$O$2, "","False") -> 44196 | D107: =RTD("cqg.rtd",,"StudyData", $L$2, "FG", "", "Open", $K$2, $A107, $P$2,$O$2,,$M$2,$N$2) -> 312.87 | E107: =RTD("cqg.rtd",,"StudyData", $L$2, "FG", "", "High", $K$2, $A107, $P$2,$O$2,,$M$2,$N$2) -> 314.24 | F107: =RTD("cqg.rtd",,"StudyData", $L$2, "FG", "", "Low", $K$2, $A107, $P$2,$O$2,,$M$2,$N$2) -> 311.76 | G107: =RTD("cqg.rtd",,"StudyData", $L$2, "FG", "", "Close", $K$2, $A107, $P$2,$O$2,,$M$2,$N$2) -> 313.74 | H107: 2020-12-31 | I107: 44196 | J107: 12/31/20
A108: -106 | B108: =RTD("cqg.rtd",,"StudyData", $L$2, "FG", "", "Time", $K$2,$A108, $P$2, "", "","False") -> 2020-12-30 | C108: =RTD("cqg.rtd",,"StudyData", $L$2, "FG", "", "Time", $K$2, $A108,$P$2,$O$2, "","False") -> 44195 | D108: =RTD("cqg.rtd",,"StudyData", $L$2, "FG", "", "Open", $K$2, $A108, $P$2,$O$2,,$M$2,$N$2) -> 314.16 | E108: =RTD("cqg.rtd",,"StudyData", $L$2, "FG", "", "High", $K$2, $A108, $P$2,$O$2,,$M$2,$N$2) -> 314.49 | F108: =RTD("cqg.rtd",,"StudyData", $L$2, "FG", "", "Low", $K$2, $A108, $P$2,$O$2,,$M$2,$N$2) -> 312.33 | G108: =RTD("cqg.rtd",,"StudyData", $L$2, "FG", "", "Close", $K$2, $A108, $P$2,$O$2,,$M$2,$N$2) -> 312.97 | H108: 2020-12-30 | I108: 44195 | J108: 12/30/20
A109: -107 | B109: =RTD("cqg.rtd",,"StudyData", $L$2, "FG", "", "Time", $K$2,$A109, $P$2, "", "","False") -> 2020-12-29 | C109: =RTD("cqg.rtd",,"StudyData", $L$2, "FG", "", "Time", $K$2, $A109,$P$2,$O$2, "","False") -> 44194 | D109: =RTD("cqg.rtd",,"StudyData", $L$2, "FG", "", "Open", $K$2, $A109, $P$2,$O$2,,$M$2,$N$2) -> 314.05 | E109: =RTD("cqg.rtd",,"StudyData", $L$2, "FG", "", "High", $K$2, $A109, $P$2,$O$2,,$M$2,$N$2) -> 314.68 | F109: =RTD("cqg.rtd",,"StudyData", $L$2, "FG", "", "Low", $K$2, $A109, $P$2,$O$2,,$M$2,$N$2) -> 312.03 | G109: =RTD("cqg.rtd",,"StudyData", $L$2, "FG", "", "Close", $K$2, $A109, $P$2,$O$2,,$M$2,$N$2) -> 312.96 | H109: 2020-12-29 | I109: 44194 | J109: 12/29/20
A110: -108 | B110: =RTD("cqg.rtd",,"StudyData", $L$2, "FG", "", "Time", $K$2,$A110, $P$2, "", "","False") -> 2020-12-28 | C110: =RTD("cqg.rtd",,"StudyData", $L$2, "FG", "", "Time", $K$2, $A110,$P$2,$O$2, "","False") -> 44193 | D110: =RTD("cqg.rtd",,"StudyData", $L$2, "FG", "", "Open", $K$2, $A110, $P$2,$O$2,,$M$2,$N$2) -> 312.25 | E110: =RTD("cqg.rtd",,"StudyData", $L$2, "FG", "", "High", $K$2, $A110, $P$2,$O$2,,$M$2,$N$2) -> 313.17 | F110: =RTD("cqg.rtd",,"StudyData", $L$2, "FG", "", "Low", $K$2, $A110, $P$2,$O$2,,$M$2,$N$2) -> 310.36 | G110: =RTD("cqg.rtd",,"StudyData", $L$2, "FG", "", "Close", $K$2, $A110, $P$2,$O$2,,$M$2,$N$2) -> 312.68 | H110: 2020-12-28 | I110: 44193 | J110: 12/28/20
A111: -109 | B111: =RTD("cqg.rtd",,"StudyData", $L$2, "FG", "", "Time", $K$2,$A111, $P$2, "", "","False") -> 2020-12-24 | C111: =RTD("cqg.rtd",,"StudyData", $L$2, "FG", "", "Time", $K$2, $A111,$P$2,$O$2, "","False") -> 44189 | D111: =RTD("cqg.rtd",,"StudyData", $L$2, "FG", "", "Open", $K$2, $A111, $P$2,$O$2,,$M$2,$N$2) -> 308.47 | E111: =RTD("cqg.rtd",,"StudyData", $L$2, "FG", "", "High", $K$2, $A111, $P$2,$O$2,,$M$2,$N$2) -> 310.02 | F111: =RTD("cqg.rtd",,"StudyData", $L$2, "FG", "", "Low", $K$2, $A111, $P$2,$O$2,,$M$2,$N$2) -> 308.39 | G111: =RTD("cqg.rtd",,"StudyData", $L$2, "FG", "", "Close", $K$2, $A111, $P$2,$O$2,,$M$2,$N$2) -> 309.56 | H111: 2020-12-24 | I111: 44189 | J111: 12/24/20
A112: -110 | B112: =RTD("cqg.rtd",,"StudyData", $L$2, "FG", "", "Time", $K$2,$A112, $P$2, "", "","False") -> 2020-12-23 | C112: =RTD("cqg.rtd",,"StudyData", $L$2, "FG", "", "Time", $K$2, $A112,$P$2,$O$2, "","False") -> 44188 | D112: =RTD("cqg.rtd",,"StudyData", $L$2, "FG", "", "Open", $K$2, $A112, $P$2,$O$2,,$M$2,$N$2) -> 309.81 | E112: =RTD("cqg.rtd",,"StudyData", $L$2, "FG", "", "High", $K$2, $A112, $P$2,$O$2,,$M$2,$N$2) -> 310.18 | F112: =RTD("cqg.rtd",,"StudyData", $L$2, "FG", "", "Low", $K$2, $A112, $P$2,$O$2,,$M$2,$N$2) -> 307.57 | G112: =RTD("cqg.rtd",,"StudyData", $L$2, "FG", "", "Close", $K$2, $A112, $P$2,$O$2,,$M$2,$N$2) -> 308.2 | H112: 2020-12-23 | I112: 44188 | J112: 12/23/20
A113: -111 | B113: =RTD("cqg.rtd",,"StudyData", $L$2, "FG", "", "Time", $K$2,$A113, $P$2, "", "","False") -> 2020-12-22 | C113: =RTD("cqg.rtd",,"StudyData", $L$2, "FG", "", "Time", $K$2, $A113,$P$2,$O$2, "","False") -> 44187 | D113: =RTD("cqg.rtd",,"StudyData", $L$2, "FG", "", "Open", $K$2, $A113, $P$2,$O$2,,$M$2,$N$2) -> 309.85 | E113: =RTD("cqg.rtd",,"StudyData", $L$2, "FG", "", "High", $K$2, $A113, $P$2,$O$2,,$M$2,$N$2) -> 310.71 | F113: =RTD("cqg.rtd",,"StudyData", $L$2, "FG", "", "Low", $K$2, $A113, $P$2,$O$2,,$M$2,$N$2) -> 306.84 | G113: =RTD("cqg.rtd",,"StudyData", $L$2, "FG", "", "Close", $K$2, $A113, $P$2,$O$2,,$M$2,$N$2) -> 309.76 | H113: 2020-12-22 | I113: 44187 | J113: 12/22/20
A114: -112 | B114: =RTD("cqg.rtd",,"StudyData", $L$2, "FG", "", "Time", $K$2,$A114, $P$2, "", "","False") -> 2020-12-21 | C114: =RTD("cqg.rtd",,"StudyData", $L$2, "FG", "", "Time", $K$2, $A114,$P$2,$O$2, "","False") -> 44186 | D114: =RTD("cqg.rtd",,"StudyData", $L$2, "FG", "", "Open", $K$2, $A114, $P$2,$O$2,,$M$2,$N$2) -> 306.46 | E114: =RTD("cqg.rtd",,"StudyData", $L$2, "FG", "", "High", $K$2, $A114, $P$2,$O$2,,$M$2,$N$2) -> 309.47 | F114: =RTD("cqg.rtd",,"StudyData", $L$2, "FG", "", "Low", $K$2, $A114, $P$2,$O$2,,$M$2,$N$2) -> 303.6 | G114: =RTD("cqg.rtd",,"StudyData", $L$2, "FG", "", "Close", $K$2, $A114, $P$2,$O$2,,$M$2,$N$2) -> 308.92 | H114: 2020-12-21 | I114: 44186 | J114: 12/21/20
A115: -113 | B115: =RTD("cqg.rtd",,"StudyData", $L$2, "FG", "", "Time", $K$2,$A115, $P$2, "", "","False") -> 2020-12-18 | C115: =RTD("cqg.rtd",,"StudyData", $L$2, "FG", "", "Time", $K$2, $A115,$P$2,$O$2, "","False") -> 44183 | D115: =RTD("cqg.rtd",,"StudyData", $L$2, "FG", "", "Open", $K$2, $A115, $P$2,$O$2,,$M$2,$N$2) -> 311.66 | E115: =RTD("cqg.rtd",,"StudyData", $L$2, "FG", "", "High", $K$2, $A115, $P$2,$O$2,,$M$2,$N$2) -> 311.98 | F115: =RTD("cqg.rtd",,"StudyData", $L$2, "FG", "", "Low", $K$2, $A115, $P$2,$O$2,,$M$2,$N$2) -> 307.61 | G115: =RTD("cqg.rtd",,"StudyData", $L$2, "FG", "", "Close", $K$2, $A115, $P$2,$O$2,,$M$2,$N$2) -> 310.06 | H115: 2020-12-18 | I115: 44183 | J115: 12/18/20
A116: -114 | B116: =RTD("cqg.rtd",,"StudyData", $L$2, "FG", "", "Time", $K$2,$A116, $P$2, "", "","False") -> 2020-12-17 | C116: =RTD("cqg.rtd",,"StudyData", $L$2, "FG", "", "Time", $K$2, $A116,$P$2,$O$2, "","False") -> 44182 | D116: =RTD("cqg.rtd",,"StudyData", $L$2, "FG", "", "Open", $K$2, $A116, $P$2,$O$2,,$M$2,$N$2) -> 310.63 | E116: =RTD("cqg.rtd",,"StudyData", $L$2, "FG", "", "High", $K$2, $A116, $P$2,$O$2,,$M$2,$N$2) -> 311.38 | F116: =RTD("cqg.rtd",,"StudyData", $L$2, "FG", "", "Low", $K$2, $A116, $P$2,$O$2,,$M$2,$N$2) -> 309.39 | G116: =RTD("cqg.rtd",,"StudyData", $L$2, "FG", "", "Close", $K$2, $A116, $P$2,$O$2,,$M$2,$N$2) -> 311 | H116: 2020-12-17 | I116: 44182 | J116: 12/17/20
A117: -115 | B117: =RTD("cqg.rtd",,"StudyData", $L$2, "FG", "", "Time", $K$2,$A117, $P$2, "", "","False") -> 2020-12-16 | C117: =RTD("cqg.rtd",,"StudyData", $L$2, "FG", "", "Time", $K$2, $A117,$P$2,$O$2, "","False") -> 44181 | D117: =RTD("cqg.rtd",,"StudyData", $L$2, "FG", "", "Open", $K$2, $A117, $P$2,$O$2,,$M$2,$N$2) -> 307.7 | E117: =RTD("cqg.rtd",,"StudyData", $L$2, "FG", "", "High", $K$2, $A117, $P$2,$O$2,,$M$2,$N$2) -> 309.78 | F117: =RTD("cqg.rtd",,"StudyData", $L$2, "FG", "", "Low", $K$2, $A117, $P$2,$O$2,,$M$2,$N$2) -> 306.62 | G117: =RTD("cqg.rtd",,"StudyData", $L$2, "FG", "", "Close", $K$2, $A117, $P$2,$O$2,,$M$2,$N$2) -> 308.98 | H117: 2020-12-16 | I117: 44181 | J117: 12/16/20
A118: -116 | B118: =RTD("cqg.rtd",,"StudyData", $L$2, "FG", "", "Time", $K$2,$A118, $P$2, "", "","False") -> 2020-12-15 | C118: =RTD("cqg.rtd",,"StudyData", $L$2, "FG", "", "Time", $K$2, $A118,$P$2,$O$2, "","False") -> 44180 | D118: =RTD("cqg.rtd",,"StudyData", $L$2, "FG", "", "Open", $K$2, $A118, $P$2,$O$2,,$M$2,$N$2) -> 306.37 | E118: =RTD("cqg.rtd",,"StudyData", $L$2, "FG", "", "High", $K$2, $A118, $P$2,$O$2,,$M$2,$N$2) -> 307.51 | F118: =RTD("cqg.rtd",,"StudyData", $L$2, "FG", "", "Low", $K$2, $A118, $P$2,$O$2,,$M$2,$N$2) -> 304.11 | G118: =RTD("cqg.rtd",,"StudyData", $L$2, "FG", "", "Close", $K$2, $A118, $P$2,$O$2,,$M$2,$N$2) -> 307.29 | H118: 2020-12-15 | I118: 44180 | J118: 12/15/20
A119: -117 | B119: =RTD("cqg.rtd",,"StudyData", $L$2, "FG", "", "Time", $K$2,$A119, $P$2, "", "","False") -> 2020-12-14 | C119: =RTD("cqg.rtd",,"StudyData", $L$2, "FG", "", "Time", $K$2, $A119,$P$2,$O$2, "","False") -> 44179 | D119: =RTD("cqg.rtd",,"StudyData", $L$2, "FG", "", "Open", $K$2, $A119, $P$2,$O$2,,$M$2,$N$2) -> 303.08 | E119: =RTD("cqg.rtd",,"StudyData", $L$2, "FG", "", "High", $K$2, $A119, $P$2,$O$2,,$M$2,$N$2) -> 306.05 | F119: =RTD("cqg.rtd",,"StudyData", $L$2, "FG", "", "Low", $K$2, $A119, $P$2,$O$2,,$M$2,$N$2) -> 303.01 | G119: =RTD("cqg.rtd",,"StudyData", $L$2, "FG", "", "Close", $K$2, $A119, $P$2,$O$2,,$M$2,$N$2) -> 304.04 | H119: 2020-12-14 | I119: 44179 | J119: 12/14/20
A120: -118 | B120: =RTD("cqg.rtd",,"StudyData", $L$2, "FG", "", "Time", $K$2,$A120, $P$2, "", "","False") -> 2020-12-11 | C120: =RTD("cqg.rtd",,"StudyData", $L$2, "FG", "", "Time", $K$2, $A120,$P$2,$O$2, "","False") -> 44176 | D120: =RTD("cqg.rtd",,"StudyData", $L$2, "FG", "", "Open", $K$2, $A120, $P$2,$O$2,,$M$2,$N$2) -> 300.81 | E120: =RTD("cqg.rtd",,"StudyData", $L$2, "FG", "", "High", $K$2, $A120, $P$2,$O$2,,$M$2,$N$2) -> 302 | F120: =RTD("cqg.rtd",,"StudyData", $L$2, "FG", "", "Low", $K$2, $A120, $P$2,$O$2,,$M$2,$N$2) -> 298.47 | G120: =RTD("cqg.rtd",,"StudyData", $L$2, "FG", "", "Close", $K$2, $A120, $P$2,$O$2,,$M$2,$N$2) -> 301.85 | H120: 2020-12-11 | I120: 44176 | J120: 12/11/20
A121: -119 | B121: =RTD("cqg.rtd",,"StudyData", $L$2, "FG", "", "Time", $K$2,$A121, $P$2, "", "","False") -> 2020-12-10 | C121: =RTD("cqg.rtd",,"StudyData", $L$2, "FG", "", "Time", $K$2, $A121,$P$2,$O$2, "","False") -> 44175 | D121: =RTD("cqg.rtd",,"StudyData", $L$2, "FG", "", "Open", $K$2, $A121, $P$2,$O$2,,$M$2,$N$2) -> 299.21 | E121: =RTD("cqg.rtd",,"StudyData", $L$2, "FG", "", "High", $K$2, $A121, $P$2,$O$2,,$M$2,$N$2) -> 303.68 | F121: =RTD("cqg.rtd",,"StudyData", $L$2, "FG", "", "Low", $K$2, $A121, $P$2,$O$2,,$M$2,$N$2) -> 298.09 | G121: =RTD("cqg.rtd",,"StudyData", $L$2, "FG", "", "Close", $K$2, $A121, $P$2,$O$2,,$M$2,$N$2) -> 302.52 | H121: 2020-12-10 | I121: 44175 | J121: 12/10/20
A122: -120 | B122: =RTD("cqg.rtd",,"StudyData", $L$2, "FG", "", "Time", $K$2,$A122, $P$2, "", "","False") -> 2020-12-09 | C122: =RTD("cqg.rtd",,"StudyData", $L$2, "FG", "", "Time", $K$2, $A122,$P$2,$O$2, "","False") -> 44174 | D122: =RTD("cqg.rtd",,"StudyData", $L$2, "FG", "", "Open", $K$2, $A122, $P$2,$O$2,,$M$2,$N$2) -> 308.07 | E122: =RTD("cqg.rtd",,"StudyData", $L$2, "FG", "", "High", $K$2, $A122, $P$2,$O$2,,$M$2,$N$2) -> 308.36 | F122: =RTD("cqg.rtd",,"StudyData", $L$2, "FG", "", "Low", $K$2, $A122, $P$2,$O$2,,$M$2,$N$2) -> 300.21 | G122: =RTD("cqg.rtd",,"StudyData", $L$2, "FG", "", "Close", $K$2, $A122, $P$2,$O$2,,$M$2,$N$2) -> 301.31 | H122: 2020-12-09 | I122: 44174 | J122: 12/09/20
A123: -121 | B123: =RTD("cqg.rtd",,"StudyData", $L$2, "FG", "", "Time", $K$2,$A123, $P$2, "", "","False") -> 2020-12-08 | C123: =RTD("cqg.rtd",,"StudyData", $L$2, "FG", "", "Time", $K$2, $A123,$P$2,$O$2, "","False") -> 44173 | D123: =RTD("cqg.rtd",,"StudyData", $L$2, "FG", "", "Open", $K$2, $A123, $P$2,$O$2,,$M$2,$N$2) -> 306.76 | E123: =RTD("cqg.rtd",,"StudyData", $L$2, "FG", "", "High", $K$2, $A123, $P$2,$O$2,,$M$2,$N$2) -> 308.6 | F123: =RTD("cqg.rtd",,"StudyData", $L$2, "FG", "", "Low", $K$2, $A123, $P$2,$O$2,,$M$2,$N$2) -> 304.95 | G123: =RTD("cqg.rtd",,"StudyData", $L$2, "FG", "", "Close", $K$2, $A123, $P$2,$O$2,,$M$2,$N$2) -> 308.29 | H123: 2020-12-08 | I123: 44173 | J123: 12/08/20
A124: -122 | B124: =RTD("cqg.rtd",,"StudyData", $L$2, "FG", "", "Time", $K$2,$A124, $P$2, "", "","False") -> 2020-12-07 | C124: =RTD("cqg.rtd",,"StudyData", $L$2, "FG", "", "Time", $K$2, $A124,$P$2,$O$2, "","False") -> 44172 | D124: =RTD("cqg.rtd",,"StudyData", $L$2, "FG", "", "Open", $K$2, $A124, $P$2,$O$2,,$M$2,$N$2) -> 305.71 | E124: =RTD("cqg.rtd",,"StudyData", $L$2, "FG", "", "High", $K$2, $A124, $P$2,$O$2,,$M$2,$N$2) -> 307.63 | F124: =RTD("cqg.rtd",,"StudyData", $L$2, "FG", "", "Low", $K$2, $A124, $P$2,$O$2,,$M$2,$N$2) -> 305.52 | G124: =RTD("cqg.rtd",,"StudyData", $L$2, "FG", "", "Close", $K$2, $A124, $P$2,$O$2,,$M$2,$N$2) -> 307.25 | H124: 2020-12-07 | I124: 44172 | J124: 12/07/20
A125: -123 | B125: =RTD("cqg.rtd",,"StudyData", $L$2, "FG", "", "Time", $K$2,$A125, $P$2, "", "","False") -> 2020-12-04 | C125: =RTD("cqg.rtd",,"StudyData", $L$2, "FG", "", "Time", $K$2, $A125,$P$2,$O$2, "","False") -> 44169 | D125: =RTD("cqg.rtd",,"StudyData", $L$2, "FG", "", "Open", $K$2, $A125, $P$2,$O$2,,$M$2,$N$2) -> 304.33 | E125: =RTD("cqg.rtd",,"StudyData", $L$2, "FG", "", "High", $K$2, $A125, $P$2,$O$2,,$M$2,$N$2) -> 305.75 | F125: =RTD("cqg.rtd",,"StudyData", $L$2, "FG", "", "Low", $K$2, $A125, $P$2,$O$2,,$M$2,$N$2) -> 303.63 | G125: =RTD("cqg.rtd",,"StudyData", $L$2, "FG", "", "Close", $K$2, $A125, $P$2,$O$2,,$M$2,$N$2) -> 305.52 | H125: 2020-12-04 | I125: 44169 | J125: 12/04/20
A126: -124 | B126: =RTD("cqg.rtd",,"StudyData", $L$2, "FG", "", "Time", $K$2,$A126, $P$2, "", "","False") -> 2020-12-03 | C126: =RTD("cqg.rtd",,"StudyData", $L$2, "FG", "", "Time", $K$2, $A126,$P$2,$O$2, "","False") -> 44168 | D126: =RTD("cqg.rtd",,"StudyData", $L$2, "FG", "", "Open", $K$2, $A126, $P$2,$O$2,,$M$2,$N$2) -> 304.07 | E126: =RTD("cqg.rtd",,"StudyData", $L$2, "FG", "", "High", $K$2, $A126, $P$2,$O$2,,$M$2,$N$2) -> 305.88 | F126: =RTD("cqg.rtd",,"StudyData", $L$2, "FG", "", "Low", $K$2, $A126, $P$2,$O$2,,$M$2,$N$2) -> 303.53 | G126: =RTD("cqg.rtd",,"StudyData", $L$2, "FG", "", "Close", $K$2, $A126, $P$2,$O$2,,$M$2,$N$2) -> 304.28 | H126: 2020-12-03 | I126: 44168 | J126: 12/03/20
A127: -125 | B127: =RTD("cqg.rtd",,"StudyData", $L$2, "FG", "", "Time", $K$2,$A127, $P$2, "", "","False") -> 2020-12-02 | C127: =RTD("cqg.rtd",,"StudyData", $L$2, "FG", "", "Time", $K$2, $A127,$P$2,$O$2, "","False") -> 44167 | D127: =RTD("cqg.rtd",,"StudyData", $L$2, "FG", "", "Open", $K$2, $A127, $P$2,$O$2,,$M$2,$N$2) -> 302.22 | E127: =RTD("cqg.rtd",,"StudyData", $L$2, "FG", "", "High", $K$2, $A127, $P$2,$O$2,,$M$2,$N$2) -> 304.2 | F127: =RTD("cqg.rtd",,"StudyData", $L$2, "FG", "", "Low", $K$2, $A127, $P$2,$O$2,,$M$2,$N$2) -> 300.35 | G127: =RTD("cqg.rtd",,"StudyData", $L$2, "FG", "", "Close", $K$2, $A127, $P$2,$O$2,,$M$2,$N$2) -> 303.85 | H127: 2020-12-02 | I127: 44167 | J127: 12/02/20
A128: -126 | B128: =RTD("cqg.rtd",,"StudyData", $L$2, "FG", "", "Time", $K$2,$A128, $P$2, "", "","False") -> 2020-12-01 | C128: =RTD("cqg.rtd",,"StudyData", $L$2, "FG", "", "Time", $K$2, $A128,$P$2,$O$2, "","False") -> 44166 | D128: =RTD("cqg.rtd",,"StudyData", $L$2, "FG", "", "Open", $K$2, $A128, $P$2,$O$2,,$M$2,$N$2) -> 301.87 | E128: =RTD("cqg.rtd",,"StudyData", $L$2, "FG", "", "High", $K$2, $A128, $P$2,$O$2,,$M$2,$N$2) -> 305.14 | F128: =RTD("cqg.rtd",,"StudyData", $L$2, "FG", "", "Low", $K$2, $A128, $P$2,$O$2,,$M$2,$N$2) -> 300.83 | G128: =RTD("cqg.rtd",,"StudyData", $L$2, "FG", "", "Close", $K$2, $A128, $P$2,$O$2,,$M$2,$N$2) -> 303.46 | H128: 2020-12-01 | I128: 44166 | J128: 12/01/20
A129: -127 | B129: =RTD("cqg.rtd",,"StudyData", $L$2, "FG", "", "Time", $K$2,$A129, $P$2, "", "","False") -> 2020-11-30 | C129: =RTD("cqg.rtd",,"StudyData", $L$2, "FG", "", "Time", $K$2, $A129,$P$2,$O$2, "","False") -> 44165 | D129: =RTD("cqg.rtd",,"StudyData", $L$2, "FG", "", "Open", $K$2, $A129, $P$2,$O$2,,$M$2,$N$2) -> 299.3 | E129: =RTD("cqg.rtd",,"StudyData", $L$2, "FG", "", "High", $K$2, $A129, $P$2,$O$2,,$M$2,$N$2) -> 300.23 | F129: =RTD("cqg.rtd",,"StudyData", $L$2, "FG", "", "Low", $K$2, $A129, $P$2,$O$2,,$M$2,$N$2) -> 294.78 | G129: =RTD("cqg.rtd",,"StudyData", $L$2, "FG", "", "Close", $K$2, $A129, $P$2,$O$2,,$M$2,$N$2) -> 299.62 | H129: 2020-11-30 | I129: 44165 | J129: 11/30/20
A130: -128 | B130: =RTD("cqg.rtd",,"StudyData", $L$2, "FG", "", "Time", $K$2,$A130, $P$2, "", "","False") -> 2020-11-27 | C130: =RTD("cqg.rtd",,"StudyData", $L$2, "FG", "", "Time", $K$2, $A130,$P$2,$O$2, "","False") -> 44162 | D130: =RTD("cqg.rtd",,"StudyData", $L$2, "FG", "", "Open", $K$2, $A130, $P$2,$O$2,,$M$2,$N$2) -> 298.29 | E130: =RTD("cqg.rtd",,"StudyData", $L$2, "FG", "", "High", $K$2, $A130, $P$2,$O$2,,$M$2,$N$2) -> 300.17 | F130: =RTD("cqg.rtd",,"StudyData", $L$2, "FG", "", "Low", $K$2, $A130, $P$2,$O$2,,$M$2,$N$2) -> 297.9 | G130: =RTD("cqg.rtd",,"StudyData", $L$2, "FG", "", "Close", $K$2, $A130, $P$2,$O$2,,$M$2,$N$2) -> 299.01 | H130: 2020-11-27 | I130: 44162 | J130: 11/27/20
A131: -129 | B131: =RTD("cqg.rtd",,"StudyData", $L$2, "FG", "", "Time", $K$2,$A131, $P$2, "", "","False") -> 2020-11-25 | C131: =RTD("cqg.rtd",,"StudyData", $L$2, "FG", "", "Time", $K$2, $A131,$P$2,$O$2, "","False") -> 44160 | D131: =RTD("cqg.rtd",,"StudyData", $L$2, "FG", "", "Open", $K$2, $A131, $P$2,$O$2,,$M$2,$N$2) -> 295.44 | E131: =RTD("cqg.rtd",,"StudyData", $L$2, "FG", "", "High", $K$2, $A131, $P$2,$O$2,,$M$2,$N$2) -> 296.98 | F131: =RTD("cqg.rtd",,"StudyData", $L$2, "FG", "", "Low", $K$2, $A131, $P$2,$O$2,,$M$2,$N$2) -> 294.59 | G131: =RTD("cqg.rtd",,"StudyData", $L$2, "FG", "", "Close", $K$2, $A131, $P$2,$O$2,,$M$2,$N$2) -> 296.28 | H131: =B131 -> 2020-11-25 | I131: =B131 -> 44160 | J131: =IF(OR($K$2="D",$K$2="W",$K$2=",'M"),TEXT(H131,"MM/DD/YY"),TEXT(I131,"HH:MM")) -> 11/25/20
A132: =A131-1 -> -130 | B132: =RTD("cqg.rtd",,"StudyData", $L$2, "FG", "", "Time", $K$2,$A132, $P$2, "", "","False") -> 2020-11-24 | C132: =RTD("cqg.rtd",,"StudyData", $L$2, "FG", "", "Time", $K$2, $A132,$P$2,$O$2, "","False") -> 44159 | D132: =RTD("cqg.rtd",,"StudyData", $L$2, "FG", "", "Open", $K$2, $A132, $P$2,$O$2,,$M$2,$N$2) -> 291.49 | E132: =RTD("cqg.rtd",,"StudyData", $L$2, "FG", "", "High", $K$2, $A132, $P$2,$O$2,,$M$2,$N$2) -> 295.39 | F132: =RTD("cqg.rtd",,"StudyData", $L$2, "FG", "", "Low", $K$2, $A132, $P$2,$O$2,,$M$2,$N$2) -> 289.63 | G132: =RTD("cqg.rtd",,"StudyData", $L$2, "FG", "", "Close", $K$2, $A132, $P$2,$O$2,,$M$2,$N$2) -> 294.47 | H132: 2020-11-24 | I132: 44159 | J132: 11/24/20
A133: -131 | B133: =RTD("cqg.rtd",,"StudyData", $L$2, "FG", "", "Time", $K$2,$A133, $P$2, "", "","False") -> 2020-11-23 | C133: =RTD("cqg.rtd",,"StudyData", $L$2, "FG", "", "Time", $K$2, $A133,$P$2,$O$2, "","False") -> 44158 | D133: =RTD("cqg.rtd",,"StudyData", $L$2, "FG", "", "Open", $K$2, $A133, $P$2,$O$2,,$M$2,$N$2) -> 291.41 | E133: =RTD("cqg.rtd",,"StudyData", $L$2, "FG", "", "High", $K$2, $A133, $P$2,$O$2,,$M$2,$N$2) -> 292.75 | F133: =RTD("cqg.rtd",,"StudyData", $L$2, "FG", "", "Low", $K$2, $A133, $P$2,$O$2,,$M$2,$N$2) -> 288.07 | G133: =RTD("cqg.rtd",,"StudyData", $L$2, "FG", "", "Close", $K$2, $A133, $P$2,$O$2,,$M$2,$N$2) -> 290.39 | H133: 2020-11-23 | I133: 44158 | J133: 11/23/20
A134: -132 | B134: =RTD("cqg.rtd",,"StudyData", $L$2, "FG", "", "Time", $K$2,$A134, $P$2, "", "","False") -> 2020-11-20 | C134: =RTD("cqg.rtd",,"StudyData", $L$2, "FG", "", "Time", $K$2, $A134,$P$2,$O$2, "","False") -> 44155 | D134: =RTD("cqg.rtd",,"StudyData", $L$2, "FG", "", "Open", $K$2, $A134, $P$2,$O$2,,$M$2,$N$2) -> 292.3 | E134: =RTD("cqg.rtd",,"StudyData", $L$2, "FG", "", "High", $K$2, $A134, $P$2,$O$2,,$M$2,$N$2) -> 293.06 | F134: =RTD("cqg.rtd",,"StudyData", $L$2, "FG", "", "Low", $K$2, $A134, $P$2,$O$2,,$M$2,$N$2) -> 289.64 | G134: =RTD("cqg.rtd",,"StudyData", $L$2, "FG", "", "Close", $K$2, $A134, $P$2,$O$2,,$M$2,$N$2) -> 290.38 | H134: 2020-11-20 | I134: 44155 | J134: 11/20/20
A135: -133 | B135: =RTD("cqg.rtd",,"StudyData", $L$2, "FG", "", "Time", $K$2,$A135, $P$2, "", "","False") -> 2020-11-19 | C135: =RTD("cqg.rtd",,"StudyData", $L$2, "FG", "", "Time", $K$2, $A135,$P$2,$O$2, "","False") -> 44154 | D135: =RTD("cqg.rtd",,"StudyData", $L$2, "FG", "", "Open", $K$2, $A135, $P$2,$O$2,,$M$2,$N$2) -> 289.48 | E135: =RTD("cqg.rtd",,"StudyData", $L$2, "FG", "", "High", $K$2, $A135, $P$2,$O$2,,$M$2,$N$2) -> 292.7 | F135: =RTD("cqg.rtd",,"StudyData", $L$2, "FG", "", "Low", $K$2, $A135, $P$2,$O$2,,$M$2,$N$2) -> 288.85 | G135: =RTD("cqg.rtd",,"StudyData", $L$2, "FG", "", "Close", $K$2, $A135, $P$2,$O$2,,$M$2,$N$2) -> 292.38 | H135: 2020-11-19 | I135: 44154 | J135: 11/19/20
A136: -134 | B136: =RTD("cqg.rtd",,"StudyData", $L$2, "FG", "", "Time", $K$2,$A136, $P$2, "", "","False") -> 2020-11-18 | C136: =RTD("cqg.rtd",,"StudyData", $L$2, "FG", "", "Time", $K$2, $A136,$P$2,$O$2, "","False") -> 44153 | D136: =RTD("cqg.rtd",,"StudyData", $L$2, "FG", "", "Open", $K$2, $A136, $P$2,$O$2,,$M$2,$N$2) -> 291.7 | E136: =RTD("cqg.rtd",,"StudyData", $L$2, "FG", "", "High", $K$2, $A136, $P$2,$O$2,,$M$2,$N$2) -> 293.37 | F136: =RTD("cqg.rtd",,"StudyData", $L$2, "FG", "", "Low", $K$2, $A136, $P$2,$O$2,,$M$2,$N$2) -> 289.62 | G136: =RTD("cqg.rtd",,"StudyData", $L$2, "FG", "", "Close", $K$2, $A136, $P$2,$O$2,,$M$2,$N$2) -> 290.11 | H136: 2020-11-18 | I136: 44153 | J136: 11/18/20
A137: -135 | B137: =RTD("cqg.rtd",,"StudyData", $L$2, "FG", "", "Time", $K$2,$A137, $P$2, "", "","False") -> 2020-11-17 | C137: =RTD("cqg.rtd",,"StudyData", $L$2, "FG", "", "Time", $K$2, $A137,$P$2,$O$2, "","False") -> 44152 | D137: =RTD("cqg.rtd",,"StudyData", $L$2, "FG", "", "Open", $K$2, $A137, $P$2,$O$2,,$M$2,$N$2) -> 293.4 | E137: =RTD("cqg.rtd",,"StudyData", $L$2, "FG", "", "High", $K$2, $A137, $P$2,$O$2,,$M$2,$N$2) -> 293.74 | F137: =RTD("cqg.rtd",,"StudyData", $L$2, "FG", "", "Low", $K$2, $A137, $P$2,$O$2,,$M$2,$N$2) -> 291.61 | G137: =RTD("cqg.rtd",,"StudyData", $L$2, "FG", "", "Close", $K$2, $A137, $P$2,$O$2,,$M$2,$N$2) -> 292.27 | H137: 2020-11-17 | I137: 44152 | J137: 11/17/20
A138: -136 | B138: =RTD("cqg.rtd",,"StudyData", $L$2, "FG", "", "Time", $K$2,$A138, $P$2, "", "","False") -> 2020-11-16 | C138: =RTD("cqg.rtd",,"StudyData", $L$2, "FG", "", "Time", $K$2, $A138,$P$2,$O$2, "","False") -> 44151 | D138: =RTD("cqg.rtd",,"StudyData", $L$2, "FG", "", "Open", $K$2, $A138, $P$2,$O$2,,$M$2,$N$2) -> 290.68 | E138: =RTD("cqg.rtd",,"StudyData", $L$2, "FG", "", "High", $K$2, $A138, $P$2,$O$2,,$M$2,$N$2) -> 293.6 | F138: =RTD("cqg.rtd",,"StudyData", $L$2, "FG", "", "Low", $K$2, $A138, $P$2,$O$2,,$M$2,$N$2) -> 289.99 | G138: =RTD("cqg.rtd",,"StudyData", $L$2, "FG", "", "Close", $K$2, $A138, $P$2,$O$2,,$M$2,$N$2) -> 293.2 | H138: 2020-11-16 | I138: 44151 | J138: 11/16/20
A139: -137 | B139: =RTD("cqg.rtd",,"StudyData", $L$2, "FG", "", "Time", $K$2,$A139, $P$2, "", "","False") -> 2020-11-13 | C139: =RTD("cqg.rtd",,"StudyData", $L$2, "FG", "", "Time", $K$2, $A139,$P$2,$O$2, "","False") -> 44148 | D139: =RTD("cqg.rtd",,"StudyData", $L$2, "FG", "", "Open", $K$2, $A139, $P$2,$O$2,,$M$2,$N$2) -> 290.01 | E139: =RTD("cqg.rtd",,"StudyData", $L$2, "FG", "", "High", $K$2, $A139, $P$2,$O$2,,$M$2,$N$2) -> 291.57 | F139: =RTD("cqg.rtd",,"StudyData", $L$2, "FG", "", "Low", $K$2, $A139, $P$2,$O$2,,$M$2,$N$2) -> 287.87 | G139: =RTD("cqg.rtd",,"StudyData", $L$2, "FG", "", "Close", $K$2, $A139, $P$2,$O$2,,$M$2,$N$2) -> 290.93 | H139: 2020-11-13 | I139: 44148 | J139: 11/13/20
A140: -138 | B140: =RTD("cqg.rtd",,"StudyData", $L$2, "FG", "", "Time", $K$2,$A140, $P$2, "", "","False") -> 2020-11-12 | C140: =RTD("cqg.rtd",,"StudyData", $L$2, "FG", "", "Time", $K$2, $A140,$P$2,$O$2, "","False") -> 44147 | D140: =RTD("cqg.rtd",,"StudyData", $L$2, "FG", "", "Open", $K$2, $A140, $P$2,$O$2,,$M$2,$N$2) -> 290.72 | E140: =RTD("cqg.rtd",,"StudyData", $L$2, "FG", "", "High", $K$2, $A140, $P$2,$O$2,,$M$2,$N$2) -> 292.07 | F140: =RTD("cqg.rtd",,"StudyData", $L$2, "FG", "", "Low", $K$2, $A140, $P$2,$O$2,,$M$2,$N$2) -> 287.25 | G140: =RTD("cqg.rtd",,"StudyData", $L$2, "FG", "", "Close", $K$2, $A140, $P$2,$O$2,,$M$2,$N$2) -> 288.4 | H140: 2020-11-12 | I140: 44147 | J140: 11/12/20
A141: -139 | B141: =RTD("cqg.rtd",,"StudyData", $L$2, "FG", "", "Time", $K$2,$A141, $P$2, "", "","False") -> 2020-11-11 | C141: =RTD("cqg.rtd",,"StudyData", $L$2, "FG", "", "Time", $K$2, $A141,$P$2,$O$2, "","False") -> 44146 | D141: =RTD("cqg.rtd",,"StudyData", $L$2, "FG", "", "Open", $K$2, $A141, $P$2,$O$2,,$M$2,$N$2) -> 285.92 | E141: =RTD("cqg.rtd",,"StudyData", $L$2, "FG", "", "High", $K$2, $A141, $P$2,$O$2,,$M$2,$N$2) -> 290.5 | F141: =RTD("cqg.rtd",,"StudyData", $L$2, "FG", "", "Low", $K$2, $A141, $P$2,$O$2,,$M$2,$N$2) -> 285.53 | G141: =RTD("cqg.rtd",,"StudyData", $L$2, "FG", "", "Close", $K$2, $A141, $P$2,$O$2,,$M$2,$N$2) -> 289.76 | H141: 2020-11-11 | I141: 44146 | J141: 11/11/20
A142: -140 | B142: =RTD("cqg.rtd",,"StudyData", $L$2, "FG", "", "Time", $K$2,$A142, $P$2, "", "","False") -> 2020-11-10 | C142: =RTD("cqg.rtd",,"StudyData", $L$2, "FG", "", "Time", $K$2, $A142,$P$2,$O$2, "","False") -> 44145 | D142: =RTD("cqg.rtd",,"StudyData", $L$2, "FG", "", "Open", $K$2, $A142, $P$2,$O$2,,$M$2,$N$2) -> 285.26 | E142: =RTD("cqg.rtd",,"StudyData", $L$2, "FG", "", "High", $K$2, $A142, $P$2,$O$2,,$M$2,$N$2) -> 286.65 | F142: =RTD("cqg.rtd",,"StudyData", $L$2, "FG", "", "Low", $K$2, $A142, $P$2,$O$2,,$M$2,$N$2) -> 280.62 | G142: =RTD("cqg.rtd",,"StudyData", $L$2, "FG", "", "Close", $K$2, $A142, $P$2,$O$2,,$M$2,$N$2) -> 283.42 | H142: 2020-11-10 | I142: 44145 | J142: 11/10/20
A143: -141 | B143: =RTD("cqg.rtd",,"StudyData", $L$2, "FG", "", "Time", $K$2,$A143, $P$2, "", "","False") -> 2020-11-09 | C143: =RTD("cqg.rtd",,"StudyData", $L$2, "FG", "", "Time", $K$2, $A143,$P$2,$O$2, "","False") -> 44144 | D143: =RTD("cqg.rtd",,"StudyData", $L$2, "FG", "", "Open", $K$2, $A143, $P$2,$O$2,,$M$2,$N$2) -> 297.31 | E143: =RTD("cqg.rtd",,"StudyData", $L$2, "FG", "", "High", $K$2, $A143, $P$2,$O$2,,$M$2,$N$2) -> 299.14 | F143: =RTD("cqg.rtd",,"StudyData", $L$2, "FG", "", "Low", $K$2, $A143, $P$2,$O$2,,$M$2,$N$2) -> 288.12 | G143: =RTD("cqg.rtd",,"StudyData", $L$2, "FG", "", "Close", $K$2, $A143, $P$2,$O$2,,$M$2,$N$2) -> 288.59 | H143: 2020-11-09 | I143: 44144 | J143: 11/09/20
A144: -142 | B144: =RTD("cqg.rtd",,"StudyData", $L$2, "FG", "", "Time", $K$2,$A144, $P$2, "", "","False") -> 2020-11-06 | C144: =RTD("cqg.rtd",,"StudyData", $L$2, "FG", "", "Time", $K$2, $A144,$P$2,$O$2, "","False") -> 44141 | D144: =RTD("cqg.rtd",,"StudyData", $L$2, "FG", "", "Open", $K$2, $A144, $P$2,$O$2,,$M$2,$N$2) -> 293.58 | E144: =RTD("cqg.rtd",,"StudyData", $L$2, "FG", "", "High", $K$2, $A144, $P$2,$O$2,,$M$2,$N$2) -> 295.36 | F144: =RTD("cqg.rtd",,"StudyData", $L$2, "FG", "", "Low", $K$2, $A144, $P$2,$O$2,,$M$2,$N$2) -> 289.83 | G144: =RTD("cqg.rtd",,"StudyData", $L$2, "FG", "", "Close", $K$2, $A144, $P$2,$O$2,,$M$2,$N$2) -> 294.61 | H144: 2020-11-06 | I144: 44141 | J144: 11/06/20
A145: -143 | B145: =RTD("cqg.rtd",,"StudyData", $L$2, "FG", "", "Time", $K$2,$A145, $P$2, "", "","False") -> 2020-11-05 | C145: =RTD("cqg.rtd",,"StudyData", $L$2, "FG", "", "Time", $K$2, $A145,$P$2,$O$2, "","False") -> 44140 | D145: =RTD("cqg.rtd",,"StudyData", $L$2, "FG", "", "Open", $K$2, $A145, $P$2,$O$2,,$M$2,$N$2) -> 293.41 | E145: =RTD("cqg.rtd",,"StudyData", $L$2, "FG", "", "High", $K$2, $A145, $P$2,$O$2,,$M$2,$N$2) -> 295.39 | F145: =RTD("cqg.rtd",,"StudyData", $L$2, "FG", "", "Low", $K$2, $A145, $P$2,$O$2,,$M$2,$N$2) -> 292 | G145: =RTD("cqg.rtd",,"StudyData", $L$2, "FG", "", "Close", $K$2, $A145, $P$2,$O$2,,$M$2,$N$2) -> 294.39 | H145: 2020-11-05 | I145: 44140 | J145: 11/05/20
A146: -144 | B146: =RTD("cqg.rtd",,"StudyData", $L$2, "FG", "", "Time", $K$2,$A146, $P$2, "", "","False") -> 2020-11-04 | C146: =RTD("cqg.rtd",,"StudyData", $L$2, "FG", "", "Time", $K$2, $A146,$P$2,$O$2, "","False") -> 44139 | D146: =RTD("cqg.rtd",,"StudyData", $L$2, "FG", "", "Open", $K$2, $A146, $P$2,$O$2,,$M$2,$N$2) -> 283.56 | E146: =RTD("cqg.rtd",,"StudyData", $L$2, "FG", "", "High", $K$2, $A146, $P$2,$O$2,,$M$2,$N$2) -> 288.77 | F146: =RTD("cqg.rtd",,"StudyData", $L$2, "FG", "", "Low", $K$2, $A146, $P$2,$O$2,,$M$2,$N$2) -> 281.87 | G146: =RTD("cqg.rtd",,"StudyData", $L$2, "FG", "", "Close", $K$2, $A146, $P$2,$O$2,,$M$2,$N$2) -> 286.91 | H146: 2020-11-04 | I146: 44139 | J146: 11/04/20
A147: -145 | B147: =RTD("cqg.rtd",,"StudyData", $L$2, "FG", "", "Time", $K$2,$A147, $P$2, "", "","False") -> 2020-11-03 | C147: =RTD("cqg.rtd",,"StudyData", $L$2, "FG", "", "Time", $K$2, $A147,$P$2,$O$2, "","False") -> 44138 | D147: =RTD("cqg.rtd",,"StudyData", $L$2, "FG", "", "Open", $K$2, $A147, $P$2,$O$2,,$M$2,$N$2) -> 271.86 | E147: =RTD("cqg.rtd",,"StudyData", $L$2, "FG", "", "High", $K$2, $A147, $P$2,$O$2,,$M$2,$N$2) -> 276.82 | F147: =RTD("cqg.rtd",,"StudyData", $L$2, "FG", "", "Low", $K$2, $A147, $P$2,$O$2,,$M$2,$N$2) -> 270.84 | G147: =RTD("cqg.rtd",,"StudyData", $L$2, "FG", "", "Close", $K$2, $A147, $P$2,$O$2,,$M$2,$N$2) -> 274.65 | H147: 2020-11-03 | I147: 44138 | J147: 11/03/20
A148: -146 | B148: =RTD("cqg.rtd",,"StudyData", $L$2, "FG", "", "Time", $K$2,$A148, $P$2, "", "","False") -> 2020-11-02 | C148: =RTD("cqg.rtd",,"StudyData", $L$2, "FG", "", "Time", $K$2, $A148,$P$2,$O$2, "","False") -> 44137 | D148: =RTD("cqg.rtd",,"StudyData", $L$2, "FG", "", "Open", $K$2, $A148, $P$2,$O$2,,$M$2,$N$2) -> 271.73 | E148: =RTD("cqg.rtd",,"StudyData", $L$2, "FG", "", "High", $K$2, $A148, $P$2,$O$2,,$M$2,$N$2) -> 273.52 | F148: =RTD("cqg.rtd",,"StudyData", $L$2, "FG", "", "Low", $K$2, $A148, $P$2,$O$2,,$M$2,$N$2) -> 266.97 | G148: =RTD("cqg.rtd",,"StudyData", $L$2, "FG", "", "Close", $K$2, $A148, $P$2,$O$2,,$M$2,$N$2) -> 269.98 | H148: 2020-11-02 | I148: 44137 | J148: 11/02/20
A149: -147 | B149: =RTD("cqg.rtd",,"StudyData", $L$2, "FG", "", "Time", $K$2,$A149, $P$2, "", "","False") -> 2020-10-30 | C149: =RTD("cqg.rtd",,"StudyData", $L$2, "FG", "", "Time", $K$2, $A149,$P$2,$O$2, "","False") -> 44134 | D149: =RTD("cqg.rtd",,"StudyData", $L$2, "FG", "", "Open", $K$2, $A149, $P$2,$O$2,,$M$2,$N$2) -> 274.37 | E149: =RTD("cqg.rtd",,"StudyData", $L$2, "FG", "", "High", $K$2, $A149, $P$2,$O$2,,$M$2,$N$2) -> 275.24 | F149: =RTD("cqg.rtd",,"StudyData", $L$2, "FG", "", "Low", $K$2, $A149, $P$2,$O$2,,$M$2,$N$2) -> 267.07 | G149: =RTD("cqg.rtd",,"StudyData", $L$2, "FG", "", "Close", $K$2, $A149, $P$2,$O$2,,$M$2,$N$2) -> 269.38 | H149: 2020-10-30 | I149: 44134 | J149: 10/30/20
A150: -148 | B150: =RTD("cqg.rtd",,"StudyData", $L$2, "FG", "", "Time", $K$2,$A150, $P$2, "", "","False") -> 2020-10-29 | C150: =RTD("cqg.rtd",,"StudyData", $L$2, "FG", "", "Time", $K$2, $A150,$P$2,$O$2, "","False") -> 44133 | D150: =RTD("cqg.rtd",,"StudyData", $L$2, "FG", "", "Open", $K$2, $A150, $P$2,$O$2,,$M$2,$N$2) -> 273.04 | E150: =RTD("cqg.rtd",,"StudyData", $L$2, "FG", "", "High", $K$2, $A150, $P$2,$O$2,,$M$2,$N$2) -> 279.49 | F150: =RTD("cqg.rtd",,"StudyData", $L$2, "FG", "", "Low", $K$2, $A150, $P$2,$O$2,,$M$2,$N$2) -> 272.52 | G150: =RTD("cqg.rtd",,"StudyData", $L$2, "FG", "", "Close", $K$2, $A150, $P$2,$O$2,,$M$2,$N$2) -> 276.39 | H150: 2020-10-29 | I150: 44133 | J150: 10/29/20
A151: -149 | B151: =RTD("cqg.rtd",,"StudyData", $L$2, "FG", "", "Time", $K$2,$A151, $P$2, "", "","False") -> 2020-10-28 | C151: =RTD("cqg.rtd",,"StudyData", $L$2, "FG", "", "Time", $K$2, $A151,$P$2,$O$2, "","False") -> 44132 | D151: =RTD("cqg.rtd",,"StudyData", $L$2, "FG", "", "Open", $K$2, $A151, $P$2,$O$2,,$M$2,$N$2) -> 278.13 | E151: =RTD("cqg.rtd",,"StudyData", $L$2, "FG", "", "High", $K$2, $A151, $P$2,$O$2,,$M$2,$N$2) -> 278.64 | F151: =RTD("cqg.rtd",,"StudyData", $L$2, "FG", "", "Low", $K$2, $A151, $P$2,$O$2,,$M$2,$N$2) -> 271.38 | G151: =RTD("cqg.rtd",,"StudyData", $L$2, "FG", "", "Close", $K$2, $A151, $P$2,$O$2,,$M$2,$N$2) -> 271.64 | H151: 2020-10-28 | I151: 44132 | J151: 10/28/20
A152: -150 | B152: =RTD("cqg.rtd",,"StudyData", $L$2, "FG", "", "Time", $K$2,$A152, $P$2, "", "","False") -> 2020-10-27 | C152: =RTD("cqg.rtd",,"StudyData", $L$2, "FG", "", "Time", $K$2, $A152,$P$2,$O$2, "","False") -> 44131 | D152: =RTD("cqg.rtd",,"StudyData", $L$2, "FG", "", "Open", $K$2, $A152, $P$2,$O$2,,$M$2,$N$2) -> 281.42 | E152: =RTD("cqg.rtd",,"StudyData", $L$2, "FG", "", "High", $K$2, $A152, $P$2,$O$2,,$M$2,$N$2) -> 283.5 | F152: =RTD("cqg.rtd",,"StudyData", $L$2, "FG", "", "Low", $K$2, $A152, $P$2,$O$2,,$M$2,$N$2) -> 280.2 | G152: =RTD("cqg.rtd",,"StudyData", $L$2, "FG", "", "Close", $K$2, $A152, $P$2,$O$2,,$M$2,$N$2) -> 282.66 | H152: 2020-10-27 | I152: 44131 | J152: 10/27/20
A153: -151 | B153: =RTD("cqg.rtd",,"StudyData", $L$2, "FG", "", "Time", $K$2,$A153, $P$2, "", "","False") -> 2020-10-26 | C153: =RTD("cqg.rtd",,"StudyData", $L$2, "FG", "", "Time", $K$2, $A153,$P$2,$O$2, "","False") -> 44130 | D153: =RTD("cqg.rtd",,"StudyData", $L$2, "FG", "", "Open", $K$2, $A153, $P$2,$O$2,,$M$2,$N$2) -> 282.32 | E153: =RTD("cqg.rtd",,"StudyData", $L$2, "FG", "", "High", $K$2, $A153, $P$2,$O$2,,$M$2,$N$2) -> 285.3 | F153: =RTD("cqg.rtd",,"StudyData", $L$2, "FG", "", "Low", $K$2, $A153, $P$2,$O$2,,$M$2,$N$2) -> 276.76 | G153: =RTD("cqg.rtd",,"StudyData", $L$2, "FG", "", "Close", $K$2, $A153, $P$2,$O$2,,$M$2,$N$2) -> 280.47 | H153: 2020-10-26 | I153: 44130 | J153: 10/26/20
A154: -152 | B154: =RTD("cqg.rtd",,"StudyData", $L$2, "FG", "", "Time", $K$2,$A154, $P$2, "", "","False") -> 2020-10-23 | C154: =RTD("cqg.rtd",,"StudyData", $L$2, "FG", "", "Time", $K$2, $A154,$P$2,$O$2, "","False") -> 44127 | D154: =RTD("cqg.rtd",,"StudyData", $L$2, "FG", "", "Open", $K$2, $A154, $P$2,$O$2,,$M$2,$N$2) -> 284.79 | E154: =RTD("cqg.rtd",,"StudyData", $L$2, "FG", "", "High", $K$2, $A154, $P$2,$O$2,,$M$2,$N$2) -> 284.91 | F154: =RTD("cqg.rtd",,"StudyData", $L$2, "FG", "", "Low", $K$2, $A154, $P$2,$O$2,,$M$2,$N$2) -> 281.78 | G154: =RTD("cqg.rtd",,"StudyData", $L$2, "FG", "", "Close", $K$2, $A154, $P$2,$O$2,,$M$2,$N$2) -> 284.74 | H154: 2020-10-23 | I154: 44127 | J154: 10/23/20
A155: -153 | B155: =RTD("cqg.rtd",,"StudyData", $L$2, "FG", "", "Time", $K$2,$A155, $P$2, "", "","False") -> 2020-10-22 | C155: =RTD("cqg.rtd",,"StudyData", $L$2, "FG", "", "Time", $K$2, $A155,$P$2,$O$2, "","False") -> 44126 | D155: =RTD("cqg.rtd",,"StudyData", $L$2, "FG", "", "Open", $K$2, $A155, $P$2,$O$2,,$M$2,$N$2) -> 285.05 | E155: =RTD("cqg.rtd",,"StudyData", $L$2, "FG", "", "High", $K$2, $A155, $P$2,$O$2,,$M$2,$N$2) -> 285.98 | F155: =RTD("cqg.rtd",,"StudyData", $L$2, "FG", "", "Low", $K$2, $A155, $P$2,$O$2,,$M$2,$N$2) -> 280.82 | G155: =RTD("cqg.rtd",,"StudyData", $L$2, "FG", "", "Close", $K$2, $A155, $P$2,$O$2,,$M$2,$N$2) -> 284.18 | H155: 2020-10-22 | I155: 44126 | J155: 10/22/20
A156: -154 | B156: =RTD("cqg.rtd",,"StudyData", $L$2, "FG", "", "Time", $K$2,$A156, $P$2, "", "","False") -> 2020-10-21 | C156: =RTD("cqg.rtd",,"StudyData", $L$2, "FG", "", "Time", $K$2, $A156,$P$2,$O$2, "","False") -> 44125 | D156: =RTD("cqg.rtd",,"StudyData", $L$2, "FG", "", "Open", $K$2, $A156, $P$2,$O$2,,$M$2,$N$2) -> 284.67 | E156: =RTD("cqg.rtd",,"StudyData", $L$2, "FG", "", "High", $K$2, $A156, $P$2,$O$2,,$M$2,$N$2) -> 287.32 | F156: =RTD("cqg.rtd",,"StudyData", $L$2, "FG", "", "Low", $K$2, $A156, $P$2,$O$2,,$M$2,$N$2) -> 283.69 | G156: =RTD("cqg.rtd",,"StudyData", $L$2, "FG", "", "Close", $K$2, $A156, $P$2,$O$2,,$M$2,$N$2) -> 284.19 | H156: 2020-10-21 | I156: 44125 | J156: 10/21/20
A157: -155 | B157: =RTD("cqg.rtd",,"StudyData", $L$2, "FG", "", "Time", $K$2,$A157, $P$2, "", "","False") -> 2020-10-20 | C157: =RTD("cqg.rtd",,"StudyData", $L$2, "FG", "", "Time", $K$2, $A157,$P$2,$O$2, "","False") -> 44124 | D157: =RTD("cqg.rtd",,"StudyData", $L$2, "FG", "", "Open", $K$2, $A157, $P$2,$O$2,,$M$2,$N$2) -> 284.56 | E157: =RTD("cqg.rtd",,"StudyData", $L$2, "FG", "", "High", $K$2, $A157, $P$2,$O$2,,$M$2,$N$2) -> 287.62 | F157: =RTD("cqg.rtd",,"StudyData", $L$2, "FG", "", "Low", $K$2, $A157, $P$2,$O$2,,$M$2,$N$2) -> 282.95 | G157: =RTD("cqg.rtd",,"StudyData", $L$2, "FG", "", "Close", $K$2, $A157, $P$2,$O$2,,$M$2,$N$2) -> 284.41 | H157: 2020-10-20 | I157: 44124 | J157: 10/20/20
A158: -156 | B158: =RTD("cqg.rtd",,"StudyData", $L$2, "FG", "", "Time", $K$2,$A158, $P$2, "", "","False") -> 2020-10-19 | C158: =RTD("cqg.rtd",,"StudyData", $L$2, "FG", "", "Time", $K$2, $A158,$P$2,$O$2, "","False") -> 44123 | D158: =RTD("cqg.rtd",,"StudyData", $L$2, "FG", "", "Open", $K$2, $A158, $P$2,$O$2,,$M$2,$N$2) -> 290.49 | E158: =RTD("cqg.rtd",,"StudyData", $L$2, "FG", "", "High", $K$2, $A158, $P$2,$O$2,,$M$2,$N$2) -> 291.48 | F158: =RTD("cqg.rtd",,"StudyData", $L$2, "FG", "", "Low", $K$2, $A158, $P$2,$O$2,,$M$2,$N$2) -> 282.79 | G158: =RTD("cqg.rtd",,"StudyData", $L$2, "FG", "", "Close", $K$2, $A158, $P$2,$O$2,,$M$2,$N$2) -> 283.8 | H158: 2020-10-19 | I158: 44123 | J158: 10/19/20
A159: -157 | B159: =RTD("cqg.rtd",,"StudyData", $L$2, "FG", "", "Time", $K$2,$A159, $P$2, "", "","False") -> 2020-10-16 | C159: =RTD("cqg.rtd",,"StudyData", $L$2, "FG", "", "Time", $K$2, $A159,$P$2,$O$2, "","False") -> 44120 | D159: =RTD("cqg.rtd",,"StudyData", $L$2, "FG", "", "Open", $K$2, $A159, $P$2,$O$2,,$M$2,$N$2) -> 291.8 | E159: =RTD("cqg.rtd",,"StudyData", $L$2, "FG", "", "High", $K$2, $A159, $P$2,$O$2,,$M$2,$N$2) -> 293.26 | F159: =RTD("cqg.rtd",,"StudyData", $L$2, "FG", "", "Low", $K$2, $A159, $P$2,$O$2,,$M$2,$N$2) -> 287.67 | G159: =RTD("cqg.rtd",,"StudyData", $L$2, "FG", "", "Close", $K$2, $A159, $P$2,$O$2,,$M$2,$N$2) -> 288.51 | H159: 2020-10-16 | I159: 44120 | J159: 10/16/20
A160: -158 | B160: =RTD("cqg.rtd",,"StudyData", $L$2, "FG", "", "Time", $K$2,$A160, $P$2, "", "","False") -> 2020-10-15 | C160: =RTD("cqg.rtd",,"StudyData", $L$2, "FG", "", "Time", $K$2, $A160,$P$2,$O$2, "","False") -> 44119 | D160: =RTD("cqg.rtd",,"StudyData", $L$2, "FG", "", "Open", $K$2, $A160, $P$2,$O$2,,$M$2,$N$2) -> 287.25 | E160: =RTD("cqg.rtd",,"StudyData", $L$2, "FG", "", "High", $K$2, $A160, $P$2,$O$2,,$M$2,$N$2) -> 290.71 | F160: =RTD("cqg.rtd",,"StudyData", $L$2, "FG", "", "Low", $K$2, $A160, $P$2,$O$2,,$M$2,$N$2) -> 286.54 | G160: =RTD("cqg.rtd",,"StudyData", $L$2, "FG", "", "Close", $K$2, $A160, $P$2,$O$2,,$M$2,$N$2) -> 290.1 | H160: 2020-10-15 | I160: 44119 | J160: 10/15/20
A161: -159 | B161: =RTD("cqg.rtd",,"StudyData", $L$2, "FG", "", "Time", $K$2,$A161, $P$2, "", "","False") -> 2020-10-14 | C161: =RTD("cqg.rtd",,"StudyData", $L$2, "FG", "", "Time", $K$2, $A161,$P$2,$O$2, "","False") -> 44118 | D161: =RTD("cqg.rtd",,"StudyData", $L$2, "FG", "", "Open", $K$2, $A161, $P$2,$O$2,,$M$2,$N$2) -> 295.32 | E161: =RTD("cqg.rtd",,"StudyData", $L$2, "FG", "", "High", $K$2, $A161, $P$2,$O$2,,$M$2,$N$2) -> 296.35 | F161: =RTD("cqg.rtd",,"StudyData", $L$2, "FG", "", "Low", $K$2, $A161, $P$2,$O$2,,$M$2,$N$2) -> 290.26 | G161: =RTD("cqg.rtd",,"StudyData", $L$2, "FG", "", "Close", $K$2, $A161, $P$2,$O$2,,$M$2,$N$2) -> 292.06 | H161: 2020-10-14 | I161: 44118 | J161: 10/14/20
A162: -160 | B162: =RTD("cqg.rtd",,"StudyData", $L$2, "FG", "", "Time", $K$2,$A162, $P$2, "", "","False") -> 2020-10-13 | C162: =RTD("cqg.rtd",,"StudyData", $L$2, "FG", "", "Time", $K$2, $A162,$P$2,$O$2, "","False") -> 44117 | D162: =RTD("cqg.rtd",,"StudyData", $L$2, "FG", "", "Open", $K$2, $A162, $P$2,$O$2,,$M$2,$N$2) -> 296.34 | E162: =RTD("cqg.rtd",,"StudyData", $L$2, "FG", "", "High", $K$2, $A162, $P$2,$O$2,,$M$2,$N$2) -> 297.04 | F162: =RTD("cqg.rtd",,"StudyData", $L$2, "FG", "", "Low", $K$2, $A162, $P$2,$O$2,,$M$2,$N$2) -> 293.11 | G162: =RTD("cqg.rtd",,"StudyData", $L$2, "FG", "", "Close", $K$2, $A162, $P$2,$O$2,,$M$2,$N$2) -> 294.52 | H162: 2020-10-13 | I162: 44117 | J162: 10/13/20
A163: -161 | B163: =RTD("cqg.rtd",,"StudyData", $L$2, "FG", "", "Time", $K$2,$A163, $P$2, "", "","False") -> 2020-10-12 | C163: =RTD("cqg.rtd",,"StudyData", $L$2, "FG", "", "Time", $K$2, $A163,$P$2,$O$2, "","False") -> 44116 | D163: =RTD("cqg.rtd",,"StudyData", $L$2, "FG", "", "Open", $K$2, $A163, $P$2,$O$2,,$M$2,$N$2) -> 290.6 | E163: =RTD("cqg.rtd",,"StudyData", $L$2, "FG", "", "High", $K$2, $A163, $P$2,$O$2,,$M$2,$N$2) -> 297.46 | F163: =RTD("cqg.rtd",,"StudyData", $L$2, "FG", "", "Low", $K$2, $A163, $P$2,$O$2,,$M$2,$N$2) -> 289.47 | G163: =RTD("cqg.rtd",,"StudyData", $L$2, "FG", "", "Close", $K$2, $A163, $P$2,$O$2,,$M$2,$N$2) -> 294.53 | H163: 2020-10-12 | I163: 44116 | J163: 10/12/20
A164: -162 | B164: =RTD("cqg.rtd",,"StudyData", $L$2, "FG", "", "Time", $K$2,$A164, $P$2, "", "","False") -> 2020-10-09 | C164: =RTD("cqg.rtd",,"StudyData", $L$2, "FG", "", "Time", $K$2, $A164,$P$2,$O$2, "","False") -> 44113 | D164: =RTD("cqg.rtd",,"StudyData", $L$2, "FG", "", "Open", $K$2, $A164, $P$2,$O$2,,$M$2,$N$2) -> 283.09 | E164: =RTD("cqg.rtd",,"StudyData", $L$2, "FG", "", "High", $K$2, $A164, $P$2,$O$2,,$M$2,$N$2) -> 286.1 | F164: =RTD("cqg.rtd",,"StudyData", $L$2, "FG", "", "Low", $K$2, $A164, $P$2,$O$2,,$M$2,$N$2) -> 282.71 | G164: =RTD("cqg.rtd",,"StudyData", $L$2, "FG", "", "Close", $K$2, $A164, $P$2,$O$2,,$M$2,$N$2) -> 285.71 | H164: 2020-10-09 | I164: 44113 | J164: 10/09/20
A165: -163 | B165: =RTD("cqg.rtd",,"StudyData", $L$2, "FG", "", "Time", $K$2,$A165, $P$2, "", "","False") -> 2020-10-08 | C165: =RTD("cqg.rtd",,"StudyData", $L$2, "FG", "", "Time", $K$2, $A165,$P$2,$O$2, "","False") -> 44112 | D165: =RTD("cqg.rtd",,"StudyData", $L$2, "FG", "", "Open", $K$2, $A165, $P$2,$O$2,,$M$2,$N$2) -> 282.32 | E165: =RTD("cqg.rtd",,"StudyData", $L$2, "FG", "", "High", $K$2, $A165, $P$2,$O$2,,$M$2,$N$2) -> 282.47 | F165: =RTD("cqg.rtd",,"StudyData", $L$2, "FG", "", "Low", $K$2, $A165, $P$2,$O$2,,$M$2,$N$2) -> 280.31 | G165: =RTD("cqg.rtd",,"StudyData", $L$2, "FG", "", "Close", $K$2, $A165, $P$2,$O$2,,$M$2,$N$2) -> 281.41 | H165: 2020-10-08 | I165: 44112 | J165: 10/08/20
A166: -164 | B166: =RTD("cqg.rtd",,"StudyData", $L$2, "FG", "", "Time", $K$2,$A166, $P$2, "", "","False") -> 2020-10-07 | C166: =RTD("cqg.rtd",,"StudyData", $L$2, "FG", "", "Time", $K$2, $A166,$P$2,$O$2, "","False") -> 44111 | D166: =RTD("cqg.rtd",,"StudyData", $L$2, "FG", "", "Open", $K$2, $A166, $P$2,$O$2,,$M$2,$N$2) -> 277.83 | E166: =RTD("cqg.rtd",,"StudyData", $L$2, "FG", "", "High", $K$2, $A166, $P$2,$O$2,,$M$2,$N$2) -> 280.74 | F166: =RTD("cqg.rtd",,"StudyData", $L$2, "FG", "", "Low", $K$2, $A166, $P$2,$O$2,,$M$2,$N$2) -> 277.28 | G166: =RTD("cqg.rtd",,"StudyData", $L$2, "FG", "", "Close", $K$2, $A166, $P$2,$O$2,,$M$2,$N$2) -> 279.92 | H166: 2020-10-07 | I166: 44111 | J166: 10/07/20
A167: -165 | B167: =RTD("cqg.rtd",,"StudyData", $L$2, "FG", "", "Time", $K$2,$A167, $P$2, "", "","False") -> 2020-10-06 | C167: =RTD("cqg.rtd",,"StudyData", $L$2, "FG", "", "Time", $K$2, $A167,$P$2,$O$2, "","False") -> 44110 | D167: =RTD("cqg.rtd",,"StudyData", $L$2, "FG", "", "Open", $K$2, $A167, $P$2,$O$2,,$M$2,$N$2) -> 279.29 | E167: =RTD("cqg.rtd",,"StudyData", $L$2, "FG", "", "High", $K$2, $A167, $P$2,$O$2,,$M$2,$N$2) -> 281.19 | F167: =RTD("cqg.rtd",,"StudyData", $L$2, "FG", "", "Low", $K$2, $A167, $P$2,$O$2,,$M$2,$N$2) -> 274.25 | G167: =RTD("cqg.rtd",,"StudyData", $L$2, "FG", "", "Close", $K$2, $A167, $P$2,$O$2,,$M$2,$N$2) -> 275.16 | H167: 2020-10-06 | I167: 44110 | J167: 10/06/20
A168: -166 | B168: =RTD("cqg.rtd",,"StudyData", $L$2, "FG", "", "Time", $K$2,$A168, $P$2, "", "","False") -> 2020-10-05 | C168: =RTD("cqg.rtd",,"StudyData", $L$2, "FG", "", "Time", $K$2, $A168,$P$2,$O$2, "","False") -> 44109 | D168: =RTD("cqg.rtd",,"StudyData", $L$2, "FG", "", "Open", $K$2, $A168, $P$2,$O$2,,$M$2,$N$2) -> 276.34 | E168: =RTD("cqg.rtd",,"StudyData", $L$2, "FG", "", "High", $K$2, $A168, $P$2,$O$2,,$M$2,$N$2) -> 280.49 | F168: =RTD("cqg.rtd",,"StudyData", $L$2, "FG", "", "Low", $K$2, $A168, $P$2,$O$2,,$M$2,$N$2) -> 276.23 | G168: =RTD("cqg.rtd",,"StudyData", $L$2, "FG", "", "Close", $K$2, $A168, $P$2,$O$2,,$M$2,$N$2) -> 280.16 | H168: 2020-10-05 | I168: 44109 | J168: 10/05/20
A169: -167 | B169: =RTD("cqg.rtd",,"StudyData", $L$2, "FG", "", "Time", $K$2,$A169, $P$2, "", "","False") -> 2020-10-02 | C169: =RTD("cqg.rtd",,"StudyData", $L$2, "FG", "", "Time", $K$2, $A169,$P$2,$O$2, "","False") -> 44106 | D169: =RTD("cqg.rtd",,"StudyData", $L$2, "FG", "", "Open", $K$2, $A169, $P$2,$O$2,,$M$2,$N$2) -> 276.01 | E169: =RTD("cqg.rtd",,"StudyData", $L$2, "FG", "", "High", $K$2, $A169, $P$2,$O$2,,$M$2,$N$2) -> 282.24 | F169: =RTD("cqg.rtd",,"StudyData", $L$2, "FG", "", "Low", $K$2, $A169, $P$2,$O$2,,$M$2,$N$2) -> 273.44 | G169: =RTD("cqg.rtd",,"StudyData", $L$2, "FG", "", "Close", $K$2, $A169, $P$2,$O$2,,$M$2,$N$2) -> 274.31 | H169: 2020-10-02 | I169: 44106 | J169: 10/02/20
A170: -168 | B170: =RTD("cqg.rtd",,"StudyData", $L$2, "FG", "", "Time", $K$2,$A170, $P$2, "", "","False") -> 2020-10-01 | C170: =RTD("cqg.rtd",,"StudyData", $L$2, "FG", "", "Time", $K$2, $A170,$P$2,$O$2, "","False") -> 44105 | D170: =RTD("cqg.rtd",,"StudyData", $L$2, "FG", "", "Open", $K$2, $A170, $P$2,$O$2,,$M$2,$N$2) -> 281.79 | E170: =RTD("cqg.rtd",,"StudyData", $L$2, "FG", "", "High", $K$2, $A170, $P$2,$O$2,,$M$2,$N$2) -> 282.87 | F170: =RTD("cqg.rtd",,"StudyData", $L$2, "FG", "", "Low", $K$2, $A170, $P$2,$O$2,,$M$2,$N$2) -> 279.84 | G170: =RTD("cqg.rtd",,"StudyData", $L$2, "FG", "", "Close", $K$2, $A170, $P$2,$O$2,,$M$2,$N$2) -> 282.25 | H170: 2020-10-01 | I170: 44105 | J170: 10/01/20
A171: -169 | B171: =RTD("cqg.rtd",,"StudyData", $L$2, "FG", "", "Time", $K$2,$A171, $P$2, "", "","False") -> 2020-09-30 | C171: =RTD("cqg.rtd",,"StudyData", $L$2, "FG", "", "Time", $K$2, $A171,$P$2,$O$2, "","False") -> 44104 | D171: =RTD("cqg.rtd",,"StudyData", $L$2, "FG", "", "Open", $K$2, $A171, $P$2,$O$2,,$M$2,$N$2) -> 276.09 | E171: =RTD("cqg.rtd",,"StudyData", $L$2, "FG", "", "High", $K$2, $A171, $P$2,$O$2,,$M$2,$N$2) -> 281.09 | F171: =RTD("cqg.rtd",,"StudyData", $L$2, "FG", "", "Low", $K$2, $A171, $P$2,$O$2,,$M$2,$N$2) -> 275.88 | G171: =RTD("cqg.rtd",,"StudyData", $L$2, "FG", "", "Close", $K$2, $A171, $P$2,$O$2,,$M$2,$N$2) -> 277.84 | H171: 2020-09-30 | I171: 44104 | J171: 09/30/20
A172: -170 | B172: =RTD("cqg.rtd",,"StudyData", $L$2, "FG", "", "Time", $K$2,$A172, $P$2, "", "","False") -> 2020-09-29 | C172: =RTD("cqg.rtd",,"StudyData", $L$2, "FG", "", "Time", $K$2, $A172,$P$2,$O$2, "","False") -> 44103 | D172: =RTD("cqg.rtd",,"StudyData", $L$2, "FG", "", "Open", $K$2, $A172, $P$2,$O$2,,$M$2,$N$2) -> 276.72 | E172: =RTD("cqg.rtd",,"StudyData", $L$2, "FG", "", "High", $K$2, $A172, $P$2,$O$2,,$M$2,$N$2) -> 277.71 | F172: =RTD("cqg.rtd",,"StudyData", $L$2, "FG", "", "Low", $K$2, $A172, $P$2,$O$2,,$M$2,$N$2) -> 275.37 | G172: =RTD("cqg.rtd",,"StudyData", $L$2, "FG", "", "Close", $K$2, $A172, $P$2,$O$2,,$M$2,$N$2) -> 275.95 | H172: 2020-09-29 | I172: 44103 | J172: 09/29/20
A173: -171 | B173: =RTD("cqg.rtd",,"StudyData", $L$2, "FG", "", "Time", $K$2,$A173, $P$2, "", "","False") -> 2020-09-28 | C173: =RTD("cqg.rtd",,"StudyData", $L$2, "FG", "", "Time", $K$2, $A173,$P$2,$O$2, "","False") -> 44102 | D173: =RTD("cqg.rtd",,"StudyData", $L$2, "FG", "", "Open", $K$2, $A173, $P$2,$O$2,,$M$2,$N$2) -> 276.61 | E173: =RTD("cqg.rtd",,"StudyData", $L$2, "FG", "", "High", $K$2, $A173, $P$2,$O$2,,$M$2,$N$2) -> 277.96 | F173: =RTD("cqg.rtd",,"StudyData", $L$2, "FG", "", "Low", $K$2, $A173, $P$2,$O$2,,$M$2,$N$2) -> 271.67 | G173: =RTD("cqg.rtd",,"StudyData", $L$2, "FG", "", "Close", $K$2, $A173, $P$2,$O$2,,$M$2,$N$2) -> 277.2 | H173: 2020-09-28 | I173: 44102 | J173: 09/28/20
A174: -172 | B174: =RTD("cqg.rtd",,"StudyData", $L$2, "FG", "", "Time", $K$2,$A174, $P$2, "", "","False") -> 2020-09-25 | C174: =RTD("cqg.rtd",,"StudyData", $L$2, "FG", "", "Time", $K$2, $A174,$P$2,$O$2, "","False") -> 44099 | D174: =RTD("cqg.rtd",,"StudyData", $L$2, "FG", "", "Open", $K$2, $A174, $P$2,$O$2,,$M$2,$N$2) -> 265.82 | E174: =RTD("cqg.rtd",,"StudyData", $L$2, "FG", "", "High", $K$2, $A174, $P$2,$O$2,,$M$2,$N$2) -> 272.39 | F174: =RTD("cqg.rtd",,"StudyData", $L$2, "FG", "", "Low", $K$2, $A174, $P$2,$O$2,,$M$2,$N$2) -> 264.29 | G174: =RTD("cqg.rtd",,"StudyData", $L$2, "FG", "", "Close", $K$2, $A174, $P$2,$O$2,,$M$2,$N$2) -> 271.56 | H174: 2020-09-25 | I174: 44099 | J174: 09/25/20
A175: -173 | B175: =RTD("cqg.rtd",,"StudyData", $L$2, "FG", "", "Time", $K$2,$A175, $P$2, "", "","False") -> 2020-09-24 | C175: =RTD("cqg.rtd",,"StudyData", $L$2, "FG", "", "Time", $K$2, $A175,$P$2,$O$2, "","False") -> 44098 | D175: =RTD("cqg.rtd",,"StudyData", $L$2, "FG", "", "Open", $K$2, $A175, $P$2,$O$2,,$M$2,$N$2) -> 261.58 | E175: =RTD("cqg.rtd",,"StudyData", $L$2, "FG", "", "High", $K$2, $A175, $P$2,$O$2,,$M$2,$N$2) -> 268.7 | F175: =RTD("cqg.rtd",,"StudyData", $L$2, "FG", "", "Low", $K$2, $A175, $P$2,$O$2,,$M$2,$N$2) -> 261.22 | G175: =RTD("cqg.rtd",,"StudyData", $L$2, "FG", "", "Close", $K$2, $A175, $P$2,$O$2,,$M$2,$N$2) -> 265.39 | H175: 2020-09-24 | I175: 44098 | J175: 09/24/20
A176: -174 | B176: =RTD("cqg.rtd",,"StudyData", $L$2, "FG", "", "Time", $K$2,$A176, $P$2, "", "","False") -> 2020-09-23 | C176: =RTD("cqg.rtd",,"StudyData", $L$2, "FG", "", "Time", $K$2, $A176,$P$2,$O$2, "","False") -> 44097 | D176: =RTD("cqg.rtd",,"StudyData", $L$2, "FG", "", "Open", $K$2, $A176, $P$2,$O$2,,$M$2,$N$2) -> 272.15 | E176: =RTD("cqg.rtd",,"StudyData", $L$2, "FG", "", "High", $K$2, $A176, $P$2,$O$2,,$M$2,$N$2) -> 272.34 | F176: =RTD("cqg.rtd",,"StudyData", $L$2, "FG", "", "Low", $K$2, $A176, $P$2,$O$2,,$M$2,$N$2) -> 263.25 | G176: =RTD("cqg.rtd",,"StudyData", $L$2, "FG", "", "Close", $K$2, $A176, $P$2,$O$2,,$M$2,$N$2) -> 264.16 | H176: 2020-09-23 | I176: 44097 | J176: 09/23/20
A177: -175 | B177: =RTD("cqg.rtd",,"StudyData", $L$2, "FG", "", "Time", $K$2,$A177, $P$2, "", "","False") -> 2020-09-22 | C177: =RTD("cqg.rtd",,"StudyData", $L$2, "FG", "", "Time", $K$2, $A177,$P$2,$O$2, "","False") -> 44096 | D177: =RTD("cqg.rtd",,"StudyData", $L$2, "FG", "", "Open", $K$2, $A177, $P$2,$O$2,,$M$2,$N$2) -> 270.05 | E177: =RTD("cqg.rtd",,"StudyData", $L$2, "FG", "", "High", $K$2, $A177, $P$2,$O$2,,$M$2,$N$2) -> 273.08 | F177: =RTD("cqg.rtd",,"StudyData", $L$2, "FG", "", "Low", $K$2, $A177, $P$2,$O$2,,$M$2,$N$2) -> 266.54 | G177: =RTD("cqg.rtd",,"StudyData", $L$2, "FG", "", "Close", $K$2, $A177, $P$2,$O$2,,$M$2,$N$2) -> 272.48 | H177: 2020-09-22 | I177: 44096 | J177: 09/22/20
A178: -176 | B178: =RTD("cqg.rtd",,"StudyData", $L$2, "FG", "", "Time", $K$2,$A178, $P$2, "", "","False") -> 2020-09-21 | C178: =RTD("cqg.rtd",,"StudyData", $L$2, "FG", "", "Time", $K$2, $A178,$P$2,$O$2, "","False") -> 44095 | D178: =RTD("cqg.rtd",,"StudyData", $L$2, "FG", "", "Open", $K$2, $A178, $P$2,$O$2,,$M$2,$N$2) -> 262.52 | E178: =RTD("cqg.rtd",,"StudyData", $L$2, "FG", "", "High", $K$2, $A178, $P$2,$O$2,,$M$2,$N$2) -> 268.38 | F178: =RTD("cqg.rtd",,"StudyData", $L$2, "FG", "", "Low", $K$2, $A178, $P$2,$O$2,,$M$2,$N$2) -> 260.11 | G178: =RTD("cqg.rtd",,"StudyData", $L$2, "FG", "", "Close", $K$2, $A178, $P$2,$O$2,,$M$2,$N$2) -> 267.51 | H178: 2020-09-21 | I178: 44095 | J178: 09/21/20
A179: -177 | B179: =RTD("cqg.rtd",,"StudyData", $L$2, "FG", "", "Time", $K$2,$A179, $P$2, "", "","False") -> 2020-09-18 | C179: =RTD("cqg.rtd",,"StudyData", $L$2, "FG", "", "Time", $K$2, $A179,$P$2,$O$2, "","False") -> 44092 | D179: =RTD("cqg.rtd",,"StudyData", $L$2, "FG", "", "Open", $K$2, $A179, $P$2,$O$2,,$M$2,$N$2) -> 271.62 | E179: =RTD("cqg.rtd",,"StudyData", $L$2, "FG", "", "High", $K$2, $A179, $P$2,$O$2,,$M$2,$N$2) -> 272.09 | F179: =RTD("cqg.rtd",,"StudyData", $L$2, "FG", "", "Low", $K$2, $A179, $P$2,$O$2,,$M$2,$N$2) -> 262.63 | G179: =RTD("cqg.rtd",,"StudyData", $L$2, "FG", "", "Close", $K$2, $A179, $P$2,$O$2,,$M$2,$N$2) -> 266.87 | H179: 2020-09-18 | I179: 44092 | J179: 09/18/20
A180: -178 | B180: =RTD("cqg.rtd",,"StudyData", $L$2, "FG", "", "Time", $K$2,$A180, $P$2, "", "","False") -> 2020-09-17 | C180: =RTD("cqg.rtd",,"StudyData", $L$2, "FG", "", "Time", $K$2, $A180,$P$2,$O$2, "","False") -> 44091 | D180: =RTD("cqg.rtd",,"StudyData", $L$2, "FG", "", "Open", $K$2, $A180, $P$2,$O$2,,$M$2,$N$2) -> 267.52 | E180: =RTD("cqg.rtd",,"StudyData", $L$2, "FG", "", "High", $K$2, $A180, $P$2,$O$2,,$M$2,$N$2) -> 272.37 | F180: =RTD("cqg.rtd",,"StudyData", $L$2, "FG", "", "Low", $K$2, $A180, $P$2,$O$2,,$M$2,$N$2) -> 266.68 | G180: =RTD("cqg.rtd",,"StudyData", $L$2, "FG", "", "Close", $K$2, $A180, $P$2,$O$2,,$M$2,$N$2) -> 270.32 | H180: 2020-09-17 | I180: 44091 | J180: 09/17/20
A181: -179 | B181: =RTD("cqg.rtd",,"StudyData", $L$2, "FG", "", "Time", $K$2,$A181, $P$2, "", "","False") -> 2020-09-16 | C181: =RTD("cqg.rtd",,"StudyData", $L$2, "FG", "", "Time", $K$2, $A181,$P$2,$O$2, "","False") -> 44090 | D181: =RTD("cqg.rtd",,"StudyData", $L$2, "FG", "", "Open", $K$2, $A181, $P$2,$O$2,,$M$2,$N$2) -> 279.77 | E181: =RTD("cqg.rtd",,"StudyData", $L$2, "FG", "", "High", $K$2, $A181, $P$2,$O$2,,$M$2,$N$2) -> 280.36 | F181: =RTD("cqg.rtd",,"StudyData", $L$2, "FG", "", "Low", $K$2, $A181, $P$2,$O$2,,$M$2,$N$2) -> 274.18 | G181: =RTD("cqg.rtd",,"StudyData", $L$2, "FG", "", "Close", $K$2, $A181, $P$2,$O$2,,$M$2,$N$2) -> 274.61 | H181: 2020-09-16 | I181: 44090 | J181: 09/16/20
A182: -180 | B182: =RTD("cqg.rtd",,"StudyData", $L$2, "FG", "", "Time", $K$2,$A182, $P$2, "", "","False") -> 2020-09-15 | C182: =RTD("cqg.rtd",,"StudyData", $L$2, "FG", "", "Time", $K$2, $A182,$P$2,$O$2, "","False") -> 44089 | D182: =RTD("cqg.rtd",,"StudyData", $L$2, "FG", "", "Open", $K$2, $A182, $P$2,$O$2,,$M$2,$N$2) -> 278.9 | E182: =RTD("cqg.rtd",,"StudyData", $L$2, "FG", "", "High", $K$2, $A182, $P$2,$O$2,,$M$2,$N$2) -> 280.45 | F182: =RTD("cqg.rtd",,"StudyData", $L$2, "FG", "", "Low", $K$2, $A182, $P$2,$O$2,,$M$2,$N$2) -> 277.26 | G182: =RTD("cqg.rtd",,"StudyData", $L$2, "FG", "", "Close", $K$2, $A182, $P$2,$O$2,,$M$2,$N$2) -> 279.06 | H182: 2020-09-15 | I182: 44089 | J182: 09/15/20
A183: -181 | B183: =RTD("cqg.rtd",,"StudyData", $L$2, "FG", "", "Time", $K$2,$A183, $P$2, "", "","False") -> 2020-09-14 | C183: =RTD("cqg.rtd",,"StudyData", $L$2, "FG", "", "Time", $K$2, $A183,$P$2,$O$2, "","False") -> 44088 | D183: =RTD("cqg.rtd",,"StudyData", $L$2, "FG", "", "Open", $K$2, $A183, $P$2,$O$2,,$M$2,$N$2) -> 274.28 | E183: =RTD("cqg.rtd",,"StudyData", $L$2, "FG", "", "High", $K$2, $A183, $P$2,$O$2,,$M$2,$N$2) -> 277.22 | F183: =RTD("cqg.rtd",,"StudyData", $L$2, "FG", "", "Low", $K$2, $A183, $P$2,$O$2,,$M$2,$N$2) -> 272.96 | G183: =RTD("cqg.rtd",,"StudyData", $L$2, "FG", "", "Close", $K$2, $A183, $P$2,$O$2,,$M$2,$N$2) -> 275.16 | H183: 2020-09-14 | I183: 44088 | J183: 09/14/20
A184: -182 | B184: =RTD("cqg.rtd",,"StudyData", $L$2, "FG", "", "Time", $K$2,$A184, $P$2, "", "","False") -> 2020-09-11 | C184: =RTD("cqg.rtd",,"StudyData", $L$2, "FG", "", "Time", $K$2, $A184,$P$2,$O$2, "","False") -> 44085 | D184: =RTD("cqg.rtd",,"StudyData", $L$2, "FG", "", "Open", $K$2, $A184, $P$2,$O$2,,$M$2,$N$2) -> 274.33 | E184: =RTD("cqg.rtd",,"StudyData", $L$2, "FG", "", "High", $K$2, $A184, $P$2,$O$2,,$M$2,$N$2) -> 275.22 | F184: =RTD("cqg.rtd",,"StudyData", $L$2, "FG", "", "Low", $K$2, $A184, $P$2,$O$2,,$M$2,$N$2) -> 266.9 | G184: =RTD("cqg.rtd",,"StudyData", $L$2, "FG", "", "Close", $K$2, $A184, $P$2,$O$2,,$M$2,$N$2) -> 270.45 | H184: 2020-09-11 | I184: 44085 | J184: 09/11/20
A185: -183 | B185: =RTD("cqg.rtd",,"StudyData", $L$2, "FG", "", "Time", $K$2,$A185, $P$2, "", "","False") -> 2020-09-10 | C185: =RTD("cqg.rtd",,"StudyData", $L$2, "FG", "", "Time", $K$2, $A185,$P$2,$O$2, "","False") -> 44084 | D185: =RTD("cqg.rtd",,"StudyData", $L$2, "FG", "", "Open", $K$2, $A185, $P$2,$O$2,,$M$2,$N$2) -> 280.97 | E185: =RTD("cqg.rtd",,"StudyData", $L$2, "FG", "", "High", $K$2, $A185, $P$2,$O$2,,$M$2,$N$2) -> 282.19 | F185: =RTD("cqg.rtd",,"StudyData", $L$2, "FG", "", "Low", $K$2, $A185, $P$2,$O$2,,$M$2,$N$2) -> 270.56 | G185: =RTD("cqg.rtd",,"StudyData", $L$2, "FG", "", "Close", $K$2, $A185, $P$2,$O$2,,$M$2,$N$2) -> 272.34 | H185: 2020-09-10 | I185: 44084 | J185: 09/10/20
A186: -184 | B186: =RTD("cqg.rtd",,"StudyData", $L$2, "FG", "", "Time", $K$2,$A186, $P$2, "", "","False") -> 2020-09-09 | C186: =RTD("cqg.rtd",,"StudyData", $L$2, "FG", "", "Time", $K$2, $A186,$P$2,$O$2, "","False") -> 44083 | D186: =RTD("cqg.rtd",,"StudyData", $L$2, "FG", "", "Open", $K$2, $A186, $P$2,$O$2,,$M$2,$N$2) -> 275.54 | E186: =RTD("cqg.rtd",,"StudyData", $L$2, "FG", "", "High", $K$2, $A186, $P$2,$O$2,,$M$2,$N$2) -> 280.04 | F186: =RTD("cqg.rtd",,"StudyData", $L$2, "FG", "", "Low", $K$2, $A186, $P$2,$O$2,,$M$2,$N$2) -> 273 | G186: =RTD("cqg.rtd",,"StudyData", $L$2, "FG", "", "Close", $K$2, $A186, $P$2,$O$2,,$M$2,$N$2) -> 277.88 | H186: 2020-09-09 | I186: 44083 | J186: 09/09/20
A187: -185 | B187: =RTD("cqg.rtd",,"StudyData", $L$2, "FG", "", "Time", $K$2,$A187, $P$2, "", "","False") -> 2020-09-08 | C187: =RTD("cqg.rtd",,"StudyData", $L$2, "FG", "", "Time", $K$2, $A187,$P$2,$O$2, "","False") -> 44082 | D187: =RTD("cqg.rtd",,"StudyData", $L$2, "FG", "", "Open", $K$2, $A187, $P$2,$O$2,,$M$2,$N$2) -> 272.27 | E187: =RTD("cqg.rtd",,"StudyData", $L$2, "FG", "", "High", $K$2, $A187, $P$2,$O$2,,$M$2,$N$2) -> 278.22 | F187: =RTD("cqg.rtd",,"StudyData", $L$2, "FG", "", "Low", $K$2, $A187, $P$2,$O$2,,$M$2,$N$2) -> 269.4 | G187: =RTD("cqg.rtd",,"StudyData", $L$2, "FG", "", "Close", $K$2, $A187, $P$2,$O$2,,$M$2,$N$2) -> 269.95 | H187: 2020-09-08 | I187: 44082 | J187: 09/08/20
A188: -186 | B188: =RTD("cqg.rtd",,"StudyData", $L$2, "FG", "", "Time", $K$2,$A188, $P$2, "", "","False") -> 2020-09-04 | C188: =RTD("cqg.rtd",,"StudyData", $L$2, "FG", "", "Time", $K$2, $A188,$P$2,$O$2, "","False") -> 44078 | D188: =RTD("cqg.rtd",,"StudyData", $L$2, "FG", "", "Open", $K$2, $A188, $P$2,$O$2,,$M$2,$N$2) -> 285.76 | E188: =RTD("cqg.rtd",,"StudyData", $L$2, "FG", "", "High", $K$2, $A188, $P$2,$O$2,,$M$2,$N$2) -> 288.93 | F188: =RTD("cqg.rtd",,"StudyData", $L$2, "FG", "", "Low", $K$2, $A188, $P$2,$O$2,,$M$2,$N$2) -> 271.8 | G188: =RTD("cqg.rtd",,"StudyData", $L$2, "FG", "", "Close", $K$2, $A188, $P$2,$O$2,,$M$2,$N$2) -> 283.58 | H188: 2020-09-04 | I188: 44078 | J188: 09/04/20
A189: -187 | B189: =RTD("cqg.rtd",,"StudyData", $L$2, "FG", "", "Time", $K$2,$A189, $P$2, "", "","False") -> 2020-09-03 | C189: =RTD("cqg.rtd",,"StudyData", $L$2, "FG", "", "Time", $K$2, $A189,$P$2,$O$2, "","False") -> 44077 | D189: =RTD("cqg.rtd",,"StudyData", $L$2, "FG", "", "Open", $K$2, $A189, $P$2,$O$2,,$M$2,$N$2) -> 298.2 | E189: =RTD("cqg.rtd",,"StudyData", $L$2, "FG", "", "High", $K$2, $A189, $P$2,$O$2,,$M$2,$N$2) -> 298.62 | F189: =RTD("cqg.rtd",,"StudyData", $L$2, "FG", "", "Low", $K$2, $A189, $P$2,$O$2,,$M$2,$N$2) -> 284.41 | G189: =RTD("cqg.rtd",,"StudyData", $L$2, "FG", "", "Close", $K$2, $A189, $P$2,$O$2,,$M$2,$N$2) -> 287.41 | H189: 2020-09-03 | I189: 44077 | J189: 09/03/20
A190: -188 | B190: =RTD("cqg.rtd",,"StudyData", $L$2, "FG", "", "Time", $K$2,$A190, $P$2, "", "","False") -> 2020-09-02 | C190: =RTD("cqg.rtd",,"StudyData", $L$2, "FG", "", "Time", $K$2, $A190,$P$2,$O$2, "","False") -> 44076 | D190: =RTD("cqg.rtd",,"StudyData", $L$2, "FG", "", "Open", $K$2, $A190, $P$2,$O$2,,$M$2,$N$2) -> 303.26 | E190: =RTD("cqg.rtd",,"StudyData", $L$2, "FG", "", "High", $K$2, $A190, $P$2,$O$2,,$M$2,$N$2) -> 303.5 | F190: =RTD("cqg.rtd",,"StudyData", $L$2, "FG", "", "Low", $K$2, $A190, $P$2,$O$2,,$M$2,$N$2) -> 296.89 | G190: =RTD("cqg.rtd",,"StudyData", $L$2, "FG", "", "Close", $K$2, $A190, $P$2,$O$2,,$M$2,$N$2) -> 302.76 | H190: 2020-09-02 | I190: 44076 | J190: 09/02/20
A191: -189 | B191: =RTD("cqg.rtd",,"StudyData", $L$2, "FG", "", "Time", $K$2,$A191, $P$2, "", "","False") -> 2020-09-01 | C191: =RTD("cqg.rtd",,"StudyData", $L$2, "FG", "", "Time", $K$2, $A191,$P$2,$O$2, "","False") -> 44075 | D191: =RTD("cqg.rtd",,"StudyData", $L$2, "FG", "", "Open", $K$2, $A191, $P$2,$O$2,,$M$2,$N$2) -> 297.6 | E191: =RTD("cqg.rtd",,"StudyData", $L$2, "FG", "", "High", $K$2, $A191, $P$2,$O$2,,$M$2,$N$2) -> 300.39 | F191: =RTD("cqg.rtd",,"StudyData", $L$2, "FG", "", "Low", $K$2, $A191, $P$2,$O$2,,$M$2,$N$2) -> 295.79 | G191: =RTD("cqg.rtd",,"StudyData", $L$2, "FG", "", "Close", $K$2, $A191, $P$2,$O$2,,$M$2,$N$2) -> 299.92 | H191: 2020-09-01 | I191: 44075 | J191: 09/01/20
A192: -190 | B192: =RTD("cqg.rtd",,"StudyData", $L$2, "FG", "", "Time", $K$2,$A192, $P$2, "", "","False") -> 2020-08-31 | C192: =RTD("cqg.rtd",,"StudyData", $L$2, "FG", "", "Time", $K$2, $A192,$P$2,$O$2, "","False") -> 44074 | D192: =RTD("cqg.rtd",,"StudyData", $L$2, "FG", "", "Open", $K$2, $A192, $P$2,$O$2,,$M$2,$N$2) -> 293.16 | E192: =RTD("cqg.rtd",,"StudyData", $L$2, "FG", "", "High", $K$2, $A192, $P$2,$O$2,,$M$2,$N$2) -> 296.74 | F192: =RTD("cqg.rtd",,"StudyData", $L$2, "FG", "", "Low", $K$2, $A192, $P$2,$O$2,,$M$2,$N$2) -> 292.62 | G192: =RTD("cqg.rtd",,"StudyData", $L$2, "FG", "", "Close", $K$2, $A192, $P$2,$O$2,,$M$2,$N$2) -> 294.88 | H192: 2020-08-31 | I192: 44074 | J192: 08/31/20
A193: -191 | B193: =RTD("cqg.rtd",,"StudyData", $L$2, "FG", "", "Time", $K$2,$A193, $P$2, "", "","False") -> 2020-08-28 | C193: =RTD("cqg.rtd",,"StudyData", $L$2, "FG", "", "Time", $K$2, $A193,$P$2,$O$2, "","False") -> 44071 | D193: =RTD("cqg.rtd",,"StudyData", $L$2, "FG", "", "Open", $K$2, $A193, $P$2,$O$2,,$M$2,$N$2) -> 292.27 | E193: =RTD("cqg.rtd",,"StudyData", $L$2, "FG", "", "High", $K$2, $A193, $P$2,$O$2,,$M$2,$N$2) -> 293.18 | F193: =RTD("cqg.rtd",,"StudyData", $L$2, "FG", "", "Low", $K$2, $A193, $P$2,$O$2,,$M$2,$N$2) -> 290.93 | G193: =RTD("cqg.rtd",,"StudyData", $L$2, "FG", "", "Close", $K$2, $A193, $P$2,$O$2,,$M$2,$N$2) -> 292.53 | H193: 2020-08-28 | I193: 44071 | J193: 08/28/20
A194: -192 | B194: =RTD("cqg.rtd",,"StudyData", $L$2, "FG", "", "Time", $K$2,$A194, $P$2, "", "","False") -> 2020-08-27 | C194: =RTD("cqg.rtd",,"StudyData", $L$2, "FG", "", "Time", $K$2, $A194,$P$2,$O$2, "","False") -> 44070 | D194: =RTD("cqg.rtd",,"StudyData", $L$2, "FG", "", "Open", $K$2, $A194, $P$2,$O$2,,$M$2,$N$2) -> 293.08 | E194: =RTD("cqg.rtd",,"StudyData", $L$2, "FG", "", "High", $K$2, $A194, $P$2,$O$2,,$M$2,$N$2) -> 293.85 | F194: =RTD("cqg.rtd",,"StudyData", $L$2, "FG", "", "Low", $K$2, $A194, $P$2,$O$2,,$M$2,$N$2) -> 288.7 | G194: =RTD("cqg.rtd",,"StudyData", $L$2, "FG", "", "Close", $K$2, $A194, $P$2,$O$2,,$M$2,$N$2) -> 291.05 | H194: 2020-08-27 | I194: 44070 | J194: 08/27/20
A195: -193 | B195: =RTD("cqg.rtd",,"StudyData", $L$2, "FG", "", "Time", $K$2,$A195, $P$2, "", "","False") -> 2020-08-26 | C195: =RTD("cqg.rtd",,"StudyData", $L$2, "FG", "", "Time", $K$2, $A195,$P$2,$O$2, "","False") -> 44069 | D195: =RTD("cqg.rtd",,"StudyData", $L$2, "FG", "", "Open", $K$2, $A195, $P$2,$O$2,,$M$2,$N$2) -> 287.11 | E195: =RTD("cqg.rtd",,"StudyData", $L$2, "FG", "", "High", $K$2, $A195, $P$2,$O$2,,$M$2,$N$2) -> 292.56 | F195: =RTD("cqg.rtd",,"StudyData", $L$2, "FG", "", "Low", $K$2, $A195, $P$2,$O$2,,$M$2,$N$2) -> 286.96 | G195: =RTD("cqg.rtd",,"StudyData", $L$2, "FG", "", "Close", $K$2, $A195, $P$2,$O$2,,$M$2,$N$2) -> 291.96 | H195: =B195 -> 2020-08-26 | I195: =B195 -> 44069 | J195: =IF(OR($K$2="D",$K$2="W",$K$2=",'M"),TEXT(H195,"MM/DD/YY"),TEXT(I195,"HH:MM")) -> 08/26/20
A196: =A195-1 -> -194 | B196: =RTD("cqg.rtd",,"StudyData", $L$2, "FG", "", "Time", $K$2,$A196, $P$2, "", "","False") -> 2020-08-25 | C196: =RTD("cqg.rtd",,"StudyData", $L$2, "FG", "", "Time", $K$2, $A196,$P$2,$O$2, "","False") -> 44068 | D196: =RTD("cqg.rtd",,"StudyData", $L$2, "FG", "", "Open", $K$2, $A196, $P$2,$O$2,,$M$2,$N$2) -> 282.78 | E196: =RTD("cqg.rtd",,"StudyData", $L$2, "FG", "", "High", $K$2, $A196, $P$2,$O$2,,$M$2,$N$2) -> 286.1 | F196: =RTD("cqg.rtd",,"StudyData", $L$2, "FG", "", "Low", $K$2, $A196, $P$2,$O$2,,$M$2,$N$2) -> 282.37 | G196: =RTD("cqg.rtd",,"StudyData", $L$2, "FG", "", "Close", $K$2, $A196, $P$2,$O$2,,$M$2,$N$2) -> 285.86 | H196: 2020-08-25 | I196: 44068 | J196: 08/25/20
A197: -195 | B197: =RTD("cqg.rtd",,"StudyData", $L$2, "FG", "", "Time", $K$2,$A197, $P$2, "", "","False") -> 2020-08-24 | C197: =RTD("cqg.rtd",,"StudyData", $L$2, "FG", "", "Time", $K$2, $A197,$P$2,$O$2, "","False") -> 44067 | D197: =RTD("cqg.rtd",,"StudyData", $L$2, "FG", "", "Open", $K$2, $A197, $P$2,$O$2,,$M$2,$N$2) -> 285.06 | E197: =RTD("cqg.rtd",,"StudyData", $L$2, "FG", "", "High", $K$2, $A197, $P$2,$O$2,,$M$2,$N$2) -> 286 | F197: =RTD("cqg.rtd",,"StudyData", $L$2, "FG", "", "Low", $K$2, $A197, $P$2,$O$2,,$M$2,$N$2) -> 281.27 | G197: =RTD("cqg.rtd",,"StudyData", $L$2, "FG", "", "Close", $K$2, $A197, $P$2,$O$2,,$M$2,$N$2) -> 283.63 | H197: 2020-08-24 | I197: 44067 | J197: 08/24/20
A198: -196 | B198: =RTD("cqg.rtd",,"StudyData", $L$2, "FG", "", "Time", $K$2,$A198, $P$2, "", "","False") -> 2020-08-21 | C198: =RTD("cqg.rtd",,"StudyData", $L$2, "FG", "", "Time", $K$2, $A198,$P$2,$O$2, "","False") -> 44064 | D198: =RTD("cqg.rtd",,"StudyData", $L$2, "FG", "", "Open", $K$2, $A198, $P$2,$O$2,,$M$2,$N$2) -> 280.07 | E198: =RTD("cqg.rtd",,"StudyData", $L$2, "FG", "", "High", $K$2, $A198, $P$2,$O$2,,$M$2,$N$2) -> 282.34 | F198: =RTD("cqg.rtd",,"StudyData", $L$2, "FG", "", "Low", $K$2, $A198, $P$2,$O$2,,$M$2,$N$2) -> 279.46 | G198: =RTD("cqg.rtd",,"StudyData", $L$2, "FG", "", "Close", $K$2, $A198, $P$2,$O$2,,$M$2,$N$2) -> 281.87 | H198: 2020-08-21 | I198: 44064 | J198: 08/21/20
A199: -197 | B199: =RTD("cqg.rtd",,"StudyData", $L$2, "FG", "", "Time", $K$2,$A199, $P$2, "", "","False") -> 2020-08-20 | C199: =RTD("cqg.rtd",,"StudyData", $L$2, "FG", "", "Time", $K$2, $A199,$P$2,$O$2, "","False") -> 44063 | D199: =RTD("cqg.rtd",,"StudyData", $L$2, "FG", "", "Open", $K$2, $A199, $P$2,$O$2,,$M$2,$N$2) -> 275.3 | E199: =RTD("cqg.rtd",,"StudyData", $L$2, "FG", "", "High", $K$2, $A199, $P$2,$O$2,,$M$2,$N$2) -> 280.43 | F199: =RTD("cqg.rtd",,"StudyData", $L$2, "FG", "", "Low", $K$2, $A199, $P$2,$O$2,,$M$2,$N$2) -> 274.86 | G199: =RTD("cqg.rtd",,"StudyData", $L$2, "FG", "", "Close", $K$2, $A199, $P$2,$O$2,,$M$2,$N$2) -> 279.93 | H199: 2020-08-20 | I199: 44063 | J199: 08/20/20
A200: -198 | B200: =RTD("cqg.rtd",,"StudyData", $L$2, "FG", "", "Time", $K$2,$A200, $P$2, "", "","False") -> 2020-08-19 | C200: =RTD("cqg.rtd",,"StudyData", $L$2, "FG", "", "Time", $K$2, $A200,$P$2,$O$2, "","False") -> 44062 | D200: =RTD("cqg.rtd",,"StudyData", $L$2, "FG", "", "Open", $K$2, $A200, $P$2,$O$2,,$M$2,$N$2) -> 277.93 | E200: =RTD("cqg.rtd",,"StudyData", $L$2, "FG", "", "High", $K$2, $A200, $P$2,$O$2,,$M$2,$N$2) -> 279.02 | F200: =RTD("cqg.rtd",,"StudyData", $L$2, "FG", "", "Low", $K$2, $A200, $P$2,$O$2,,$M$2,$N$2) -> 275.57 | G200: =RTD("cqg.rtd",,"StudyData", $L$2, "FG", "", "Close", $K$2, $A200, $P$2,$O$2,,$M$2,$N$2) -> 276.1 | H200: 2020-08-19 | I200: 44062 | J200: 08/19/20
... 389 more rows
